{"text_format":"1","workbook":"xlsx","n_sheets":8,"sheets":["Information Required","Help & Reference","Grade Code","Initiative","Drop Down Lists (DO NOT DELETE)","LISTS","Care Lists","Service Lists"],"not_rendered":{"charts":0,"images":1,"macros":1,"external_links":2,"defined_names":46,"comments":1,"pivot_tables":0},"unopened":[],"bounds":{"document_bytes":16777216,"sheet_cells":100000,"rows_first":2000,"rows_last":500,"rows_between":2000,"halvings":0,"cell_chars":16384,"cell_head_chars":4096},"cells_cut":0,"cells_raw":0,"read":"whole","date_system":"1900"}

{"sheet":"Information Required","index":0,"n_rows":116,"n_cols":24,"rows_kept":116,"cut":false,"hidden":false,"merged":[[2,3,2,5],[1,3,1,5]]}
[]
[null,null,null,"Primary Notification - Information Required"]
[null,null,null,"For help on completing this form please see tab 'Help & Reference'"]
[]
["Date: "]
["Requested By:"]
["Approved By:"]
[]
[null,"Service Area\n(Select from Dropdown)","HG/CHO/National Function (Select from Dropdown)","Division/Care Group\n(Select from dropdown)","Location\n(Select from dropdown)","Funding Stream \n(Select from Dropdown)","Funds Allocation\n(Select from dropdown)","Workstream\n(Select from dropdown)","Title of Initiative\n(Free text)","Grade Code\n(Select from dropdown)","Grade\n(Will automatically populate based on Grade Code entered)","Contract Type\n(Select from Dropdown)","WTE\n(Free text)","SWPI Log No              (SWP&I Office use only)","PN No                                     (SWP&I Office use only)","Change Request Date\n(Enter in format dd/mm/yyyy)","Change Request Type\n(Select from Dropdown)\n*If \"Other\" please provide details in Comments","New Location\n(Select from dropdown)","New Grade Code\n(Select from dropdown)","New Grade\n (Will automatically populate based on Grade Code entered)","New WTE\n(Free text)","New Initiative\n(Select from dropdown)","Change Approved By","Comments\n(Free text)"]
["Example","Community","CHO 5","Primary Care","Tipperary, South","NSP 2022","Recurring","CHNs","Sample",2828,{"$f":"IF(ISNA(VLOOKUP(J10,'Grade Code'!A:B,2,FALSE)),\"\",VLOOKUP(J10,'Grade Code'!A:B,2,FALSE))","v":"Public Health Nurse"},"Indefinite Duration",1,2123,"PN/Community/CHO5/123",null,null,null,null,{"$f":"IF(ISNA(VLOOKUP(S10,'Grade Code'!A:B,2,FALSE)),\"\",VLOOKUP(S10,'Grade Code'!A:B,2,FALSE))","v":""}]
[null,null,null,null,null,null,null,null,null,null,{"$f":"IF(ISNA(VLOOKUP(J11,'Grade Code'!A:B,2,FALSE)),\"\",VLOOKUP(J11,'Grade Code'!A:B,2,FALSE))","v":""},null,null,null,null,null,null,null,null,{"$f":"IF(ISNA(VLOOKUP(S11,'Grade Code'!A:B,2,FALSE)),\"\",VLOOKUP(S11,'Grade Code'!A:B,2,FALSE))","v":""}]
[null,null,null,null,null,null,null,null,null,null,{"$f":"IF(ISNA(VLOOKUP(J12,'Grade Code'!A:B,2,FALSE)),\"\",VLOOKUP(J12,'Grade Code'!A:B,2,FALSE))","v":""},null,null,null,null,null,null,null,null,{"$f":"IF(ISNA(VLOOKUP(S12,'Grade Code'!A:B,2,FALSE)),\"\",VLOOKUP(S12,'Grade Code'!A:B,2,FALSE))","v":""}]
[null,null,null,null,null,null,null,null,null,null,{"$f":"IF(ISNA(VLOOKUP(J13,'Grade Code'!A:B,2,FALSE)),\"\",VLOOKUP(J13,'Grade Code'!A:B,2,FALSE))","v":""},null,null,null,null,null,null,null,null,{"$f":"IF(ISNA(VLOOKUP(S13,'Grade Code'!A:B,2,FALSE)),\"\",VLOOKUP(S13,'Grade Code'!A:B,2,FALSE))","v":""}]
[null,null,null,null,null,null,null,null,null,null,{"$f":"IF(ISNA(VLOOKUP(J14,'Grade Code'!A:B,2,FALSE)),\"\",VLOOKUP(J14,'Grade Code'!A:B,2,FALSE))","v":""},null,null,null,null,null,null,null,null,{"$f":"IF(ISNA(VLOOKUP(S14,'Grade Code'!A:B,2,FALSE)),\"\",VLOOKUP(S14,'Grade Code'!A:B,2,FALSE))","v":""}]
[null,null,null,null,null,null,null,null,null,null,{"$f":"IF(ISNA(VLOOKUP(J15,'Grade Code'!A:B,2,FALSE)),\"\",VLOOKUP(J15,'Grade Code'!A:B,2,FALSE))","v":""},null,null,null,null,null,null,null,null,{"$f":"IF(ISNA(VLOOKUP(S15,'Grade Code'!A:B,2,FALSE)),\"\",VLOOKUP(S15,'Grade Code'!A:B,2,FALSE))","v":""}]
[null,null,null,null,null,null,null,null,null,null,{"$f":"IF(ISNA(VLOOKUP(J16,'Grade Code'!A:B,2,FALSE)),\"\",VLOOKUP(J16,'Grade Code'!A:B,2,FALSE))","v":""},null,null,null,null,null,null,null,null,{"$f":"IF(ISNA(VLOOKUP(S16,'Grade Code'!A:B,2,FALSE)),\"\",VLOOKUP(S16,'Grade Code'!A:B,2,FALSE))","v":""}]
[null,null,null,null,null,null,null,null,null,null,{"$f":"IF(ISNA(VLOOKUP(J17,'Grade Code'!A:B,2,FALSE)),\"\",VLOOKUP(J17,'Grade Code'!A:B,2,FALSE))","v":""},null,null,null,null,null,null,null,null,{"$f":"IF(ISNA(VLOOKUP(S17,'Grade Code'!A:B,2,FALSE)),\"\",VLOOKUP(S17,'Grade Code'!A:B,2,FALSE))","v":""}]
[null,null,null,null,null,null,null,null,null,null,{"$f":"IF(ISNA(VLOOKUP(J18,'Grade Code'!A:B,2,FALSE)),\"\",VLOOKUP(J18,'Grade Code'!A:B,2,FALSE))","v":""},null,null,null,null,null,null,null,null,{"$f":"IF(ISNA(VLOOKUP(S18,'Grade Code'!A:B,2,FALSE)),\"\",VLOOKUP(S18,'Grade Code'!A:B,2,FALSE))","v":""}]
[null,null,null,null,null,null,null,null,null,null,{"$f":"IF(ISNA(VLOOKUP(J19,'Grade Code'!A:B,2,FALSE)),\"\",VLOOKUP(J19,'Grade Code'!A:B,2,FALSE))","v":""},null,null,null,null,null,null,null,null,{"$f":"IF(ISNA(VLOOKUP(S19,'Grade Code'!A:B,2,FALSE)),\"\",VLOOKUP(S19,'Grade Code'!A:B,2,FALSE))","v":""}]
[null,null,null,null,null,null,null,null,null,null,{"$f":"IF(ISNA(VLOOKUP(J20,'Grade Code'!A:B,2,FALSE)),\"\",VLOOKUP(J20,'Grade Code'!A:B,2,FALSE))","v":""},null,null,null,null,null,null,null,null,{"$f":"IF(ISNA(VLOOKUP(S20,'Grade Code'!A:B,2,FALSE)),\"\",VLOOKUP(S20,'Grade Code'!A:B,2,FALSE))","v":""}]
[null,null,null,null,null,null,null,null,null,null,{"$f":"IF(ISNA(VLOOKUP(J21,'Grade Code'!A:B,2,FALSE)),\"\",VLOOKUP(J21,'Grade Code'!A:B,2,FALSE))","v":""},null,null,null,null,null,null,null,null,{"$f":"IF(ISNA(VLOOKUP(S21,'Grade Code'!A:B,2,FALSE)),\"\",VLOOKUP(S21,'Grade Code'!A:B,2,FALSE))","v":""}]
[null,null,null,null,null,null,null,null,null,null,{"$f":"IF(ISNA(VLOOKUP(J22,'Grade Code'!A:B,2,FALSE)),\"\",VLOOKUP(J22,'Grade Code'!A:B,2,FALSE))","v":""},null,null,null,null,null,null,null,null,{"$f":"IF(ISNA(VLOOKUP(S22,'Grade Code'!A:B,2,FALSE)),\"\",VLOOKUP(S22,'Grade Code'!A:B,2,FALSE))","v":""}]
[null,null,null,null,null,null,null,null,null,null,{"$f":"IF(ISNA(VLOOKUP(J23,'Grade Code'!A:B,2,FALSE)),\"\",VLOOKUP(J23,'Grade Code'!A:B,2,FALSE))","v":""},null,null,null,null,null,null,null,null,{"$f":"IF(ISNA(VLOOKUP(S23,'Grade Code'!A:B,2,FALSE)),\"\",VLOOKUP(S23,'Grade Code'!A:B,2,FALSE))","v":""}]
[null,null,null,null,null,null,null,null,null,null,{"$f":"IF(ISNA(VLOOKUP(J24,'Grade Code'!A:B,2,FALSE)),\"\",VLOOKUP(J24,'Grade Code'!A:B,2,FALSE))","v":""},null,null,null,null,null,null,null,null,{"$f":"IF(ISNA(VLOOKUP(S24,'Grade Code'!A:B,2,FALSE)),\"\",VLOOKUP(S24,'Grade Code'!A:B,2,FALSE))","v":""}]
[null,null,null,null,null,null,null,null,null,null,{"$f":"IF(ISNA(VLOOKUP(J25,'Grade Code'!A:B,2,FALSE)),\"\",VLOOKUP(J25,'Grade Code'!A:B,2,FALSE))","v":""},null,null,null,null,null,null,null,null,{"$f":"IF(ISNA(VLOOKUP(S25,'Grade Code'!A:B,2,FALSE)),\"\",VLOOKUP(S25,'Grade Code'!A:B,2,FALSE))","v":""}]
[null,null,null,null,null,null,null,null,null,null,{"$f":"IF(ISNA(VLOOKUP(J26,'Grade Code'!A:B,2,FALSE)),\"\",VLOOKUP(J26,'Grade Code'!A:B,2,FALSE))","v":""},null,null,null,null,null,null,null,null,{"$f":"IF(ISNA(VLOOKUP(S26,'Grade Code'!A:B,2,FALSE)),\"\",VLOOKUP(S26,'Grade Code'!A:B,2,FALSE))","v":""}]
[null,null,null,null,null,null,null,null,null,null,{"$f":"IF(ISNA(VLOOKUP(J27,'Grade Code'!A:B,2,FALSE)),\"\",VLOOKUP(J27,'Grade Code'!A:B,2,FALSE))","v":""},null,null,null,null,null,null,null,null,{"$f":"IF(ISNA(VLOOKUP(S27,'Grade Code'!A:B,2,FALSE)),\"\",VLOOKUP(S27,'Grade Code'!A:B,2,FALSE))","v":""}]
[null,null,null,null,null,null,null,null,null,null,{"$f":"IF(ISNA(VLOOKUP(J28,'Grade Code'!A:B,2,FALSE)),\"\",VLOOKUP(J28,'Grade Code'!A:B,2,FALSE))","v":""},null,null,null,null,null,null,null,null,{"$f":"IF(ISNA(VLOOKUP(S28,'Grade Code'!A:B,2,FALSE)),\"\",VLOOKUP(S28,'Grade Code'!A:B,2,FALSE))","v":""}]
[null,null,null,null,null,null,null,null,null,null,{"$f":"IF(ISNA(VLOOKUP(J29,'Grade Code'!A:B,2,FALSE)),\"\",VLOOKUP(J29,'Grade Code'!A:B,2,FALSE))","v":""},null,null,null,null,null,null,null,null,{"$f":"IF(ISNA(VLOOKUP(S29,'Grade Code'!A:B,2,FALSE)),\"\",VLOOKUP(S29,'Grade Code'!A:B,2,FALSE))","v":""}]
[null,null,null,null,null,null,null,null,null,null,{"$f":"IF(ISNA(VLOOKUP(J30,'Grade Code'!A:B,2,FALSE)),\"\",VLOOKUP(J30,'Grade Code'!A:B,2,FALSE))","v":""},null,null,null,null,null,null,null,null,{"$f":"IF(ISNA(VLOOKUP(S30,'Grade Code'!A:B,2,FALSE)),\"\",VLOOKUP(S30,'Grade Code'!A:B,2,FALSE))","v":""}]
[null,null,null,null,null,null,null,null,null,null,{"$f":"IF(ISNA(VLOOKUP(J31,'Grade Code'!A:B,2,FALSE)),\"\",VLOOKUP(J31,'Grade Code'!A:B,2,FALSE))","v":""},null,null,null,null,null,null,null,null,{"$f":"IF(ISNA(VLOOKUP(S31,'Grade Code'!A:B,2,FALSE)),\"\",VLOOKUP(S31,'Grade Code'!A:B,2,FALSE))","v":""}]
[null,null,null,null,null,null,null,null,null,null,{"$f":"IF(ISNA(VLOOKUP(J32,'Grade Code'!A:B,2,FALSE)),\"\",VLOOKUP(J32,'Grade Code'!A:B,2,FALSE))","v":""},null,null,null,null,null,null,null,null,{"$f":"IF(ISNA(VLOOKUP(S32,'Grade Code'!A:B,2,FALSE)),\"\",VLOOKUP(S32,'Grade Code'!A:B,2,FALSE))","v":""}]
[null,null,null,null,null,null,null,null,null,null,{"$f":"IF(ISNA(VLOOKUP(J33,'Grade Code'!A:B,2,FALSE)),\"\",VLOOKUP(J33,'Grade Code'!A:B,2,FALSE))","v":""},null,null,null,null,null,null,null,null,{"$f":"IF(ISNA(VLOOKUP(S33,'Grade Code'!A:B,2,FALSE)),\"\",VLOOKUP(S33,'Grade Code'!A:B,2,FALSE))","v":""}]
[null,null,null,null,null,null,null,null,null,null,{"$f":"IF(ISNA(VLOOKUP(J34,'Grade Code'!A:B,2,FALSE)),\"\",VLOOKUP(J34,'Grade Code'!A:B,2,FALSE))","v":""},null,null,null,null,null,null,null,null,{"$f":"IF(ISNA(VLOOKUP(S34,'Grade Code'!A:B,2,FALSE)),\"\",VLOOKUP(S34,'Grade Code'!A:B,2,FALSE))","v":""}]
[null,null,null,null,null,null,null,null,null,null,{"$f":"IF(ISNA(VLOOKUP(J35,'Grade Code'!A:B,2,FALSE)),\"\",VLOOKUP(J35,'Grade Code'!A:B,2,FALSE))","v":""},null,null,null,null,null,null,null,null,{"$f":"IF(ISNA(VLOOKUP(S35,'Grade Code'!A:B,2,FALSE)),\"\",VLOOKUP(S35,'Grade Code'!A:B,2,FALSE))","v":""}]
[null,null,null,null,null,null,null,null,null,null,{"$f":"IF(ISNA(VLOOKUP(J36,'Grade Code'!A:B,2,FALSE)),\"\",VLOOKUP(J36,'Grade Code'!A:B,2,FALSE))","v":""},null,null,null,null,null,null,null,null,{"$f":"IF(ISNA(VLOOKUP(S36,'Grade Code'!A:B,2,FALSE)),\"\",VLOOKUP(S36,'Grade Code'!A:B,2,FALSE))","v":""}]
[null,null,null,null,null,null,null,null,null,null,{"$f":"IF(ISNA(VLOOKUP(J37,'Grade Code'!A:B,2,FALSE)),\"\",VLOOKUP(J37,'Grade Code'!A:B,2,FALSE))","v":""},null,null,null,null,null,null,null,null,{"$f":"IF(ISNA(VLOOKUP(S37,'Grade Code'!A:B,2,FALSE)),\"\",VLOOKUP(S37,'Grade Code'!A:B,2,FALSE))","v":""}]
[null,null,null,null,null,null,null,null,null,null,{"$f":"IF(ISNA(VLOOKUP(J38,'Grade Code'!A:B,2,FALSE)),\"\",VLOOKUP(J38,'Grade Code'!A:B,2,FALSE))","v":""},null,null,null,null,null,null,null,null,{"$f":"IF(ISNA(VLOOKUP(S38,'Grade Code'!A:B,2,FALSE)),\"\",VLOOKUP(S38,'Grade Code'!A:B,2,FALSE))","v":""}]
[null,null,null,null,null,null,null,null,null,null,{"$f":"IF(ISNA(VLOOKUP(J39,'Grade Code'!A:B,2,FALSE)),\"\",VLOOKUP(J39,'Grade Code'!A:B,2,FALSE))","v":""},null,null,null,null,null,null,null,null,{"$f":"IF(ISNA(VLOOKUP(S39,'Grade Code'!A:B,2,FALSE)),\"\",VLOOKUP(S39,'Grade Code'!A:B,2,FALSE))","v":""}]
[null,null,null,null,null,null,null,null,null,null,{"$f":"IF(ISNA(VLOOKUP(J40,'Grade Code'!A:B,2,FALSE)),\"\",VLOOKUP(J40,'Grade Code'!A:B,2,FALSE))","v":""},null,null,null,null,null,null,null,null,{"$f":"IF(ISNA(VLOOKUP(S40,'Grade Code'!A:B,2,FALSE)),\"\",VLOOKUP(S40,'Grade Code'!A:B,2,FALSE))","v":""}]
[null,null,null,null,null,null,null,null,null,null,{"$f":"IF(ISNA(VLOOKUP(J41,'Grade Code'!A:B,2,FALSE)),\"\",VLOOKUP(J41,'Grade Code'!A:B,2,FALSE))","v":""},null,null,null,null,null,null,null,null,{"$f":"IF(ISNA(VLOOKUP(S41,'Grade Code'!A:B,2,FALSE)),\"\",VLOOKUP(S41,'Grade Code'!A:B,2,FALSE))","v":""}]
[null,null,null,null,null,null,null,null,null,null,{"$f":"IF(ISNA(VLOOKUP(J42,'Grade Code'!A:B,2,FALSE)),\"\",VLOOKUP(J42,'Grade Code'!A:B,2,FALSE))","v":""},null,null,null,null,null,null,null,null,{"$f":"IF(ISNA(VLOOKUP(S42,'Grade Code'!A:B,2,FALSE)),\"\",VLOOKUP(S42,'Grade Code'!A:B,2,FALSE))","v":""}]
[null,null,null,null,null,null,null,null,null,null,{"$f":"IF(ISNA(VLOOKUP(J43,'Grade Code'!A:B,2,FALSE)),\"\",VLOOKUP(J43,'Grade Code'!A:B,2,FALSE))","v":""},null,null,null,null,null,null,null,null,{"$f":"IF(ISNA(VLOOKUP(S43,'Grade Code'!A:B,2,FALSE)),\"\",VLOOKUP(S43,'Grade Code'!A:B,2,FALSE))","v":""}]
[null,null,null,null,null,null,null,null,null,null,{"$f":"IF(ISNA(VLOOKUP(J44,'Grade Code'!A:B,2,FALSE)),\"\",VLOOKUP(J44,'Grade Code'!A:B,2,FALSE))","v":""},null,null,null,null,null,null,null,null,{"$f":"IF(ISNA(VLOOKUP(S44,'Grade Code'!A:B,2,FALSE)),\"\",VLOOKUP(S44,'Grade Code'!A:B,2,FALSE))","v":""}]
[null,null,null,null,null,null,null,null,null,null,{"$f":"IF(ISNA(VLOOKUP(J45,'Grade Code'!A:B,2,FALSE)),\"\",VLOOKUP(J45,'Grade Code'!A:B,2,FALSE))","v":""},null,null,null,null,null,null,null,null,{"$f":"IF(ISNA(VLOOKUP(S45,'Grade Code'!A:B,2,FALSE)),\"\",VLOOKUP(S45,'Grade Code'!A:B,2,FALSE))","v":""}]
[null,null,null,null,null,null,null,null,null,null,{"$f":"IF(ISNA(VLOOKUP(J46,'Grade Code'!A:B,2,FALSE)),\"\",VLOOKUP(J46,'Grade Code'!A:B,2,FALSE))","v":""},null,null,null,null,null,null,null,null,{"$f":"IF(ISNA(VLOOKUP(S46,'Grade Code'!A:B,2,FALSE)),\"\",VLOOKUP(S46,'Grade Code'!A:B,2,FALSE))","v":""}]
[null,null,null,null,null,null,null,null,null,null,{"$f":"IF(ISNA(VLOOKUP(J47,'Grade Code'!A:B,2,FALSE)),\"\",VLOOKUP(J47,'Grade Code'!A:B,2,FALSE))","v":""},null,null,null,null,null,null,null,null,{"$f":"IF(ISNA(VLOOKUP(S47,'Grade Code'!A:B,2,FALSE)),\"\",VLOOKUP(S47,'Grade Code'!A:B,2,FALSE))","v":""}]
[null,null,null,null,null,null,null,null,null,null,{"$f":"IF(ISNA(VLOOKUP(J48,'Grade Code'!A:B,2,FALSE)),\"\",VLOOKUP(J48,'Grade Code'!A:B,2,FALSE))","v":""},null,null,null,null,null,null,null,null,{"$f":"IF(ISNA(VLOOKUP(S48,'Grade Code'!A:B,2,FALSE)),\"\",VLOOKUP(S48,'Grade Code'!A:B,2,FALSE))","v":""}]
[null,null,null,null,null,null,null,null,null,null,{"$f":"IF(ISNA(VLOOKUP(J49,'Grade Code'!A:B,2,FALSE)),\"\",VLOOKUP(J49,'Grade Code'!A:B,2,FALSE))","v":""},null,null,null,null,null,null,null,null,{"$f":"IF(ISNA(VLOOKUP(S49,'Grade Code'!A:B,2,FALSE)),\"\",VLOOKUP(S49,'Grade Code'!A:B,2,FALSE))","v":""}]
[null,null,null,null,null,null,null,null,null,null,{"$f":"IF(ISNA(VLOOKUP(J50,'Grade Code'!A:B,2,FALSE)),\"\",VLOOKUP(J50,'Grade Code'!A:B,2,FALSE))","v":""},null,null,null,null,null,null,null,null,{"$f":"IF(ISNA(VLOOKUP(S50,'Grade Code'!A:B,2,FALSE)),\"\",VLOOKUP(S50,'Grade Code'!A:B,2,FALSE))","v":""}]
[null,null,null,null,null,null,null,null,null,null,{"$f":"IF(ISNA(VLOOKUP(J51,'Grade Code'!A:B,2,FALSE)),\"\",VLOOKUP(J51,'Grade Code'!A:B,2,FALSE))","v":""},null,null,null,null,null,null,null,null,{"$f":"IF(ISNA(VLOOKUP(S51,'Grade Code'!A:B,2,FALSE)),\"\",VLOOKUP(S51,'Grade Code'!A:B,2,FALSE))","v":""}]
[null,null,null,null,null,null,null,null,null,null,{"$f":"IF(ISNA(VLOOKUP(J52,'Grade Code'!A:B,2,FALSE)),\"\",VLOOKUP(J52,'Grade Code'!A:B,2,FALSE))","v":""},null,null,null,null,null,null,null,null,{"$f":"IF(ISNA(VLOOKUP(S52,'Grade Code'!A:B,2,FALSE)),\"\",VLOOKUP(S52,'Grade Code'!A:B,2,FALSE))","v":""}]
[null,null,null,null,null,null,null,null,null,null,{"$f":"IF(ISNA(VLOOKUP(J53,'Grade Code'!A:B,2,FALSE)),\"\",VLOOKUP(J53,'Grade Code'!A:B,2,FALSE))","v":""},null,null,null,null,null,null,null,null,{"$f":"IF(ISNA(VLOOKUP(S53,'Grade Code'!A:B,2,FALSE)),\"\",VLOOKUP(S53,'Grade Code'!A:B,2,FALSE))","v":""}]
[null,null,null,null,null,null,null,null,null,null,{"$f":"IF(ISNA(VLOOKUP(J54,'Grade Code'!A:B,2,FALSE)),\"\",VLOOKUP(J54,'Grade Code'!A:B,2,FALSE))","v":""},null,null,null,null,null,null,null,null,{"$f":"IF(ISNA(VLOOKUP(S54,'Grade Code'!A:B,2,FALSE)),\"\",VLOOKUP(S54,'Grade Code'!A:B,2,FALSE))","v":""}]
[null,null,null,null,null,null,null,null,null,null,{"$f":"IF(ISNA(VLOOKUP(J55,'Grade Code'!A:B,2,FALSE)),\"\",VLOOKUP(J55,'Grade Code'!A:B,2,FALSE))","v":""},null,null,null,null,null,null,null,null,{"$f":"IF(ISNA(VLOOKUP(S55,'Grade Code'!A:B,2,FALSE)),\"\",VLOOKUP(S55,'Grade Code'!A:B,2,FALSE))","v":""}]
[null,null,null,null,null,null,null,null,null,null,{"$f":"IF(ISNA(VLOOKUP(J56,'Grade Code'!A:B,2,FALSE)),\"\",VLOOKUP(J56,'Grade Code'!A:B,2,FALSE))","v":""},null,null,null,null,null,null,null,null,{"$f":"IF(ISNA(VLOOKUP(S56,'Grade Code'!A:B,2,FALSE)),\"\",VLOOKUP(S56,'Grade Code'!A:B,2,FALSE))","v":""}]
[null,null,null,null,null,null,null,null,null,null,{"$f":"IF(ISNA(VLOOKUP(J57,'Grade Code'!A:B,2,FALSE)),\"\",VLOOKUP(J57,'Grade Code'!A:B,2,FALSE))","v":""},null,null,null,null,null,null,null,null,{"$f":"IF(ISNA(VLOOKUP(S57,'Grade Code'!A:B,2,FALSE)),\"\",VLOOKUP(S57,'Grade Code'!A:B,2,FALSE))","v":""}]
[null,null,null,null,null,null,null,null,null,null,{"$f":"IF(ISNA(VLOOKUP(J58,'Grade Code'!A:B,2,FALSE)),\"\",VLOOKUP(J58,'Grade Code'!A:B,2,FALSE))","v":""},null,null,null,null,null,null,null,null,{"$f":"IF(ISNA(VLOOKUP(S58,'Grade Code'!A:B,2,FALSE)),\"\",VLOOKUP(S58,'Grade Code'!A:B,2,FALSE))","v":""}]
[null,null,null,null,null,null,null,null,null,null,{"$f":"IF(ISNA(VLOOKUP(J59,'Grade Code'!A:B,2,FALSE)),\"\",VLOOKUP(J59,'Grade Code'!A:B,2,FALSE))","v":""},null,null,null,null,null,null,null,null,{"$f":"IF(ISNA(VLOOKUP(S59,'Grade Code'!A:B,2,FALSE)),\"\",VLOOKUP(S59,'Grade Code'!A:B,2,FALSE))","v":""}]
[null,null,null,null,null,null,null,null,null,null,{"$f":"IF(ISNA(VLOOKUP(J60,'Grade Code'!A:B,2,FALSE)),\"\",VLOOKUP(J60,'Grade Code'!A:B,2,FALSE))","v":""},null,null,null,null,null,null,null,null,{"$f":"IF(ISNA(VLOOKUP(S60,'Grade Code'!A:B,2,FALSE)),\"\",VLOOKUP(S60,'Grade Code'!A:B,2,FALSE))","v":""}]
[null,null,null,null,null,null,null,null,null,null,{"$f":"IF(ISNA(VLOOKUP(J61,'Grade Code'!A:B,2,FALSE)),\"\",VLOOKUP(J61,'Grade Code'!A:B,2,FALSE))","v":""},null,null,null,null,null,null,null,null,{"$f":"IF(ISNA(VLOOKUP(S61,'Grade Code'!A:B,2,FALSE)),\"\",VLOOKUP(S61,'Grade Code'!A:B,2,FALSE))","v":""}]
[null,null,null,null,null,null,null,null,null,null,{"$f":"IF(ISNA(VLOOKUP(J62,'Grade Code'!A:B,2,FALSE)),\"\",VLOOKUP(J62,'Grade Code'!A:B,2,FALSE))","v":""},null,null,null,null,null,null,null,null,{"$f":"IF(ISNA(VLOOKUP(S62,'Grade Code'!A:B,2,FALSE)),\"\",VLOOKUP(S62,'Grade Code'!A:B,2,FALSE))","v":""}]
[null,null,null,null,null,null,null,null,null,null,{"$f":"IF(ISNA(VLOOKUP(J63,'Grade Code'!A:B,2,FALSE)),\"\",VLOOKUP(J63,'Grade Code'!A:B,2,FALSE))","v":""},null,null,null,null,null,null,null,null,{"$f":"IF(ISNA(VLOOKUP(S63,'Grade Code'!A:B,2,FALSE)),\"\",VLOOKUP(S63,'Grade Code'!A:B,2,FALSE))","v":""}]
[null,null,null,null,null,null,null,null,null,null,{"$f":"IF(ISNA(VLOOKUP(J64,'Grade Code'!A:B,2,FALSE)),\"\",VLOOKUP(J64,'Grade Code'!A:B,2,FALSE))","v":""},null,null,null,null,null,null,null,null,{"$f":"IF(ISNA(VLOOKUP(S64,'Grade Code'!A:B,2,FALSE)),\"\",VLOOKUP(S64,'Grade Code'!A:B,2,FALSE))","v":""}]
[null,null,null,null,null,null,null,null,null,null,{"$f":"IF(ISNA(VLOOKUP(J65,'Grade Code'!A:B,2,FALSE)),\"\",VLOOKUP(J65,'Grade Code'!A:B,2,FALSE))","v":""},null,null,null,null,null,null,null,null,{"$f":"IF(ISNA(VLOOKUP(S65,'Grade Code'!A:B,2,FALSE)),\"\",VLOOKUP(S65,'Grade Code'!A:B,2,FALSE))","v":""}]
[null,null,null,null,null,null,null,null,null,null,{"$f":"IF(ISNA(VLOOKUP(J66,'Grade Code'!A:B,2,FALSE)),\"\",VLOOKUP(J66,'Grade Code'!A:B,2,FALSE))","v":""},null,null,null,null,null,null,null,null,{"$f":"IF(ISNA(VLOOKUP(S66,'Grade Code'!A:B,2,FALSE)),\"\",VLOOKUP(S66,'Grade Code'!A:B,2,FALSE))","v":""}]
[null,null,null,null,null,null,null,null,null,null,{"$f":"IF(ISNA(VLOOKUP(J67,'Grade Code'!A:B,2,FALSE)),\"\",VLOOKUP(J67,'Grade Code'!A:B,2,FALSE))","v":""},null,null,null,null,null,null,null,null,{"$f":"IF(ISNA(VLOOKUP(S67,'Grade Code'!A:B,2,FALSE)),\"\",VLOOKUP(S67,'Grade Code'!A:B,2,FALSE))","v":""}]
[null,null,null,null,null,null,null,null,null,null,{"$f":"IF(ISNA(VLOOKUP(J68,'Grade Code'!A:B,2,FALSE)),\"\",VLOOKUP(J68,'Grade Code'!A:B,2,FALSE))","v":""},null,null,null,null,null,null,null,null,{"$f":"IF(ISNA(VLOOKUP(S68,'Grade Code'!A:B,2,FALSE)),\"\",VLOOKUP(S68,'Grade Code'!A:B,2,FALSE))","v":""}]
[null,null,null,null,null,null,null,null,null,null,{"$f":"IF(ISNA(VLOOKUP(J69,'Grade Code'!A:B,2,FALSE)),\"\",VLOOKUP(J69,'Grade Code'!A:B,2,FALSE))","v":""},null,null,null,null,null,null,null,null,{"$f":"IF(ISNA(VLOOKUP(S69,'Grade Code'!A:B,2,FALSE)),\"\",VLOOKUP(S69,'Grade Code'!A:B,2,FALSE))","v":""}]
[null,null,null,null,null,null,null,null,null,null,{"$f":"IF(ISNA(VLOOKUP(J70,'Grade Code'!A:B,2,FALSE)),\"\",VLOOKUP(J70,'Grade Code'!A:B,2,FALSE))","v":""},null,null,null,null,null,null,null,null,{"$f":"IF(ISNA(VLOOKUP(S70,'Grade Code'!A:B,2,FALSE)),\"\",VLOOKUP(S70,'Grade Code'!A:B,2,FALSE))","v":""}]
[null,null,null,null,null,null,null,null,null,null,{"$f":"IF(ISNA(VLOOKUP(J71,'Grade Code'!A:B,2,FALSE)),\"\",VLOOKUP(J71,'Grade Code'!A:B,2,FALSE))","v":""},null,null,null,null,null,null,null,null,{"$f":"IF(ISNA(VLOOKUP(S71,'Grade Code'!A:B,2,FALSE)),\"\",VLOOKUP(S71,'Grade Code'!A:B,2,FALSE))","v":""}]
[null,null,null,null,null,null,null,null,null,null,{"$f":"IF(ISNA(VLOOKUP(J72,'Grade Code'!A:B,2,FALSE)),\"\",VLOOKUP(J72,'Grade Code'!A:B,2,FALSE))","v":""},null,null,null,null,null,null,null,null,{"$f":"IF(ISNA(VLOOKUP(S72,'Grade Code'!A:B,2,FALSE)),\"\",VLOOKUP(S72,'Grade Code'!A:B,2,FALSE))","v":""}]
[null,null,null,null,null,null,null,null,null,null,{"$f":"IF(ISNA(VLOOKUP(J73,'Grade Code'!A:B,2,FALSE)),\"\",VLOOKUP(J73,'Grade Code'!A:B,2,FALSE))","v":""},null,null,null,null,null,null,null,null,{"$f":"IF(ISNA(VLOOKUP(S73,'Grade Code'!A:B,2,FALSE)),\"\",VLOOKUP(S73,'Grade Code'!A:B,2,FALSE))","v":""}]
[null,null,null,null,null,null,null,null,null,null,{"$f":"IF(ISNA(VLOOKUP(J74,'Grade Code'!A:B,2,FALSE)),\"\",VLOOKUP(J74,'Grade Code'!A:B,2,FALSE))","v":""},null,null,null,null,null,null,null,null,{"$f":"IF(ISNA(VLOOKUP(S74,'Grade Code'!A:B,2,FALSE)),\"\",VLOOKUP(S74,'Grade Code'!A:B,2,FALSE))","v":""}]
[null,null,null,null,null,null,null,null,null,null,{"$f":"IF(ISNA(VLOOKUP(J75,'Grade Code'!A:B,2,FALSE)),\"\",VLOOKUP(J75,'Grade Code'!A:B,2,FALSE))","v":""},null,null,null,null,null,null,null,null,{"$f":"IF(ISNA(VLOOKUP(S75,'Grade Code'!A:B,2,FALSE)),\"\",VLOOKUP(S75,'Grade Code'!A:B,2,FALSE))","v":""}]
[null,null,null,null,null,null,null,null,null,null,{"$f":"IF(ISNA(VLOOKUP(J76,'Grade Code'!A:B,2,FALSE)),\"\",VLOOKUP(J76,'Grade Code'!A:B,2,FALSE))","v":""},null,null,null,null,null,null,null,null,{"$f":"IF(ISNA(VLOOKUP(S76,'Grade Code'!A:B,2,FALSE)),\"\",VLOOKUP(S76,'Grade Code'!A:B,2,FALSE))","v":""}]
[null,null,null,null,null,null,null,null,null,null,{"$f":"IF(ISNA(VLOOKUP(J77,'Grade Code'!A:B,2,FALSE)),\"\",VLOOKUP(J77,'Grade Code'!A:B,2,FALSE))","v":""},null,null,null,null,null,null,null,null,{"$f":"IF(ISNA(VLOOKUP(S77,'Grade Code'!A:B,2,FALSE)),\"\",VLOOKUP(S77,'Grade Code'!A:B,2,FALSE))","v":""}]
[null,null,null,null,null,null,null,null,null,null,{"$f":"IF(ISNA(VLOOKUP(J78,'Grade Code'!A:B,2,FALSE)),\"\",VLOOKUP(J78,'Grade Code'!A:B,2,FALSE))","v":""},null,null,null,null,null,null,null,null,{"$f":"IF(ISNA(VLOOKUP(S78,'Grade Code'!A:B,2,FALSE)),\"\",VLOOKUP(S78,'Grade Code'!A:B,2,FALSE))","v":""}]
[null,null,null,null,null,null,null,null,null,null,{"$f":"IF(ISNA(VLOOKUP(J79,'Grade Code'!A:B,2,FALSE)),\"\",VLOOKUP(J79,'Grade Code'!A:B,2,FALSE))","v":""},null,null,null,null,null,null,null,null,{"$f":"IF(ISNA(VLOOKUP(S79,'Grade Code'!A:B,2,FALSE)),\"\",VLOOKUP(S79,'Grade Code'!A:B,2,FALSE))","v":""}]
[null,null,null,null,null,null,null,null,null,null,{"$f":"IF(ISNA(VLOOKUP(J80,'Grade Code'!A:B,2,FALSE)),\"\",VLOOKUP(J80,'Grade Code'!A:B,2,FALSE))","v":""},null,null,null,null,null,null,null,null,{"$f":"IF(ISNA(VLOOKUP(S80,'Grade Code'!A:B,2,FALSE)),\"\",VLOOKUP(S80,'Grade Code'!A:B,2,FALSE))","v":""}]
[null,null,null,null,null,null,null,null,null,null,{"$f":"IF(ISNA(VLOOKUP(J81,'Grade Code'!A:B,2,FALSE)),\"\",VLOOKUP(J81,'Grade Code'!A:B,2,FALSE))","v":""},null,null,null,null,null,null,null,null,{"$f":"IF(ISNA(VLOOKUP(S81,'Grade Code'!A:B,2,FALSE)),\"\",VLOOKUP(S81,'Grade Code'!A:B,2,FALSE))","v":""}]
[null,null,null,null,null,null,null,null,null,null,{"$f":"IF(ISNA(VLOOKUP(J82,'Grade Code'!A:B,2,FALSE)),\"\",VLOOKUP(J82,'Grade Code'!A:B,2,FALSE))","v":""},null,null,null,null,null,null,null,null,{"$f":"IF(ISNA(VLOOKUP(S82,'Grade Code'!A:B,2,FALSE)),\"\",VLOOKUP(S82,'Grade Code'!A:B,2,FALSE))","v":""}]
[null,null,null,null,null,null,null,null,null,null,{"$f":"IF(ISNA(VLOOKUP(J83,'Grade Code'!A:B,2,FALSE)),\"\",VLOOKUP(J83,'Grade Code'!A:B,2,FALSE))","v":""},null,null,null,null,null,null,null,null,{"$f":"IF(ISNA(VLOOKUP(S83,'Grade Code'!A:B,2,FALSE)),\"\",VLOOKUP(S83,'Grade Code'!A:B,2,FALSE))","v":""}]
[null,null,null,null,null,null,null,null,null,null,{"$f":"IF(ISNA(VLOOKUP(J84,'Grade Code'!A:B,2,FALSE)),\"\",VLOOKUP(J84,'Grade Code'!A:B,2,FALSE))","v":""},null,null,null,null,null,null,null,null,{"$f":"IF(ISNA(VLOOKUP(S84,'Grade Code'!A:B,2,FALSE)),\"\",VLOOKUP(S84,'Grade Code'!A:B,2,FALSE))","v":""}]
[null,null,null,null,null,null,null,null,null,null,{"$f":"IF(ISNA(VLOOKUP(J85,'Grade Code'!A:B,2,FALSE)),\"\",VLOOKUP(J85,'Grade Code'!A:B,2,FALSE))","v":""},null,null,null,null,null,null,null,null,{"$f":"IF(ISNA(VLOOKUP(S85,'Grade Code'!A:B,2,FALSE)),\"\",VLOOKUP(S85,'Grade Code'!A:B,2,FALSE))","v":""}]
[null,null,null,null,null,null,null,null,null,null,{"$f":"IF(ISNA(VLOOKUP(J86,'Grade Code'!A:B,2,FALSE)),\"\",VLOOKUP(J86,'Grade Code'!A:B,2,FALSE))","v":""},null,null,null,null,null,null,null,null,{"$f":"IF(ISNA(VLOOKUP(S86,'Grade Code'!A:B,2,FALSE)),\"\",VLOOKUP(S86,'Grade Code'!A:B,2,FALSE))","v":""}]
[null,null,null,null,null,null,null,null,null,null,{"$f":"IF(ISNA(VLOOKUP(J87,'Grade Code'!A:B,2,FALSE)),\"\",VLOOKUP(J87,'Grade Code'!A:B,2,FALSE))","v":""},null,null,null,null,null,null,null,null,{"$f":"IF(ISNA(VLOOKUP(S87,'Grade Code'!A:B,2,FALSE)),\"\",VLOOKUP(S87,'Grade Code'!A:B,2,FALSE))","v":""}]
[null,null,null,null,null,null,null,null,null,null,{"$f":"IF(ISNA(VLOOKUP(J88,'Grade Code'!A:B,2,FALSE)),\"\",VLOOKUP(J88,'Grade Code'!A:B,2,FALSE))","v":""},null,null,null,null,null,null,null,null,{"$f":"IF(ISNA(VLOOKUP(S88,'Grade Code'!A:B,2,FALSE)),\"\",VLOOKUP(S88,'Grade Code'!A:B,2,FALSE))","v":""}]
[null,null,null,null,null,null,null,null,null,null,{"$f":"IF(ISNA(VLOOKUP(J89,'Grade Code'!A:B,2,FALSE)),\"\",VLOOKUP(J89,'Grade Code'!A:B,2,FALSE))","v":""},null,null,null,null,null,null,null,null,{"$f":"IF(ISNA(VLOOKUP(S89,'Grade Code'!A:B,2,FALSE)),\"\",VLOOKUP(S89,'Grade Code'!A:B,2,FALSE))","v":""}]
[null,null,null,null,null,null,null,null,null,null,{"$f":"IF(ISNA(VLOOKUP(J90,'Grade Code'!A:B,2,FALSE)),\"\",VLOOKUP(J90,'Grade Code'!A:B,2,FALSE))","v":""},null,null,null,null,null,null,null,null,{"$f":"IF(ISNA(VLOOKUP(S90,'Grade Code'!A:B,2,FALSE)),\"\",VLOOKUP(S90,'Grade Code'!A:B,2,FALSE))","v":""}]
[null,null,null,null,null,null,null,null,null,null,{"$f":"IF(ISNA(VLOOKUP(J91,'Grade Code'!A:B,2,FALSE)),\"\",VLOOKUP(J91,'Grade Code'!A:B,2,FALSE))","v":""},null,null,null,null,null,null,null,null,{"$f":"IF(ISNA(VLOOKUP(S91,'Grade Code'!A:B,2,FALSE)),\"\",VLOOKUP(S91,'Grade Code'!A:B,2,FALSE))","v":""}]
[null,null,null,null,null,null,null,null,null,null,{"$f":"IF(ISNA(VLOOKUP(J92,'Grade Code'!A:B,2,FALSE)),\"\",VLOOKUP(J92,'Grade Code'!A:B,2,FALSE))","v":""},null,null,null,null,null,null,null,null,{"$f":"IF(ISNA(VLOOKUP(S92,'Grade Code'!A:B,2,FALSE)),\"\",VLOOKUP(S92,'Grade Code'!A:B,2,FALSE))","v":""}]
[null,null,null,null,null,null,null,null,null,null,{"$f":"IF(ISNA(VLOOKUP(J93,'Grade Code'!A:B,2,FALSE)),\"\",VLOOKUP(J93,'Grade Code'!A:B,2,FALSE))","v":""},null,null,null,null,null,null,null,null,{"$f":"IF(ISNA(VLOOKUP(S93,'Grade Code'!A:B,2,FALSE)),\"\",VLOOKUP(S93,'Grade Code'!A:B,2,FALSE))","v":""}]
[null,null,null,null,null,null,null,null,null,null,{"$f":"IF(ISNA(VLOOKUP(J94,'Grade Code'!A:B,2,FALSE)),\"\",VLOOKUP(J94,'Grade Code'!A:B,2,FALSE))","v":""},null,null,null,null,null,null,null,null,{"$f":"IF(ISNA(VLOOKUP(S94,'Grade Code'!A:B,2,FALSE)),\"\",VLOOKUP(S94,'Grade Code'!A:B,2,FALSE))","v":""}]
[null,null,null,null,null,null,null,null,null,null,{"$f":"IF(ISNA(VLOOKUP(J95,'Grade Code'!A:B,2,FALSE)),\"\",VLOOKUP(J95,'Grade Code'!A:B,2,FALSE))","v":""},null,null,null,null,null,null,null,null,{"$f":"IF(ISNA(VLOOKUP(S95,'Grade Code'!A:B,2,FALSE)),\"\",VLOOKUP(S95,'Grade Code'!A:B,2,FALSE))","v":""}]
[null,null,null,null,null,null,null,null,null,null,{"$f":"IF(ISNA(VLOOKUP(J96,'Grade Code'!A:B,2,FALSE)),\"\",VLOOKUP(J96,'Grade Code'!A:B,2,FALSE))","v":""},null,null,null,null,null,null,null,null,{"$f":"IF(ISNA(VLOOKUP(S96,'Grade Code'!A:B,2,FALSE)),\"\",VLOOKUP(S96,'Grade Code'!A:B,2,FALSE))","v":""}]
[null,null,null,null,null,null,null,null,null,null,{"$f":"IF(ISNA(VLOOKUP(J97,'Grade Code'!A:B,2,FALSE)),\"\",VLOOKUP(J97,'Grade Code'!A:B,2,FALSE))","v":""},null,null,null,null,null,null,null,null,{"$f":"IF(ISNA(VLOOKUP(S97,'Grade Code'!A:B,2,FALSE)),\"\",VLOOKUP(S97,'Grade Code'!A:B,2,FALSE))","v":""}]
[null,null,null,null,null,null,null,null,null,null,{"$f":"IF(ISNA(VLOOKUP(J98,'Grade Code'!A:B,2,FALSE)),\"\",VLOOKUP(J98,'Grade Code'!A:B,2,FALSE))","v":""},null,null,null,null,null,null,null,null,{"$f":"IF(ISNA(VLOOKUP(S98,'Grade Code'!A:B,2,FALSE)),\"\",VLOOKUP(S98,'Grade Code'!A:B,2,FALSE))","v":""}]
[null,null,null,null,null,null,null,null,null,null,{"$f":"IF(ISNA(VLOOKUP(J99,'Grade Code'!A:B,2,FALSE)),\"\",VLOOKUP(J99,'Grade Code'!A:B,2,FALSE))","v":""},null,null,null,null,null,null,null,null,{"$f":"IF(ISNA(VLOOKUP(S99,'Grade Code'!A:B,2,FALSE)),\"\",VLOOKUP(S99,'Grade Code'!A:B,2,FALSE))","v":""}]
[null,null,null,null,null,null,null,null,null,null,{"$f":"IF(ISNA(VLOOKUP(J100,'Grade Code'!A:B,2,FALSE)),\"\",VLOOKUP(J100,'Grade Code'!A:B,2,FALSE))","v":""},null,null,null,null,null,null,null,null,{"$f":"IF(ISNA(VLOOKUP(S100,'Grade Code'!A:B,2,FALSE)),\"\",VLOOKUP(S100,'Grade Code'!A:B,2,FALSE))","v":""}]
[null,null,null,null,null,null,null,null,null,null,{"$f":"IF(ISNA(VLOOKUP(J101,'Grade Code'!A:B,2,FALSE)),\"\",VLOOKUP(J101,'Grade Code'!A:B,2,FALSE))","v":""},null,null,null,null,null,null,null,null,{"$f":"IF(ISNA(VLOOKUP(S101,'Grade Code'!A:B,2,FALSE)),\"\",VLOOKUP(S101,'Grade Code'!A:B,2,FALSE))","v":""}]
[null,null,null,null,null,null,null,null,null,null,{"$f":"IF(ISNA(VLOOKUP(J102,'Grade Code'!A:B,2,FALSE)),\"\",VLOOKUP(J102,'Grade Code'!A:B,2,FALSE))","v":""},null,null,null,null,null,null,null,null,{"$f":"IF(ISNA(VLOOKUP(S102,'Grade Code'!A:B,2,FALSE)),\"\",VLOOKUP(S102,'Grade Code'!A:B,2,FALSE))","v":""}]
[null,null,null,null,null,null,null,null,null,null,{"$f":"IF(ISNA(VLOOKUP(J103,'Grade Code'!A:B,2,FALSE)),\"\",VLOOKUP(J103,'Grade Code'!A:B,2,FALSE))","v":""},null,null,null,null,null,null,null,null,{"$f":"IF(ISNA(VLOOKUP(S103,'Grade Code'!A:B,2,FALSE)),\"\",VLOOKUP(S103,'Grade Code'!A:B,2,FALSE))","v":""}]
[null,null,null,null,null,null,null,null,null,null,{"$f":"IF(ISNA(VLOOKUP(J104,'Grade Code'!A:B,2,FALSE)),\"\",VLOOKUP(J104,'Grade Code'!A:B,2,FALSE))","v":""},null,null,null,null,null,null,null,null,{"$f":"IF(ISNA(VLOOKUP(S104,'Grade Code'!A:B,2,FALSE)),\"\",VLOOKUP(S104,'Grade Code'!A:B,2,FALSE))","v":""}]
[null,null,null,null,null,null,null,null,null,null,{"$f":"IF(ISNA(VLOOKUP(J105,'Grade Code'!A:B,2,FALSE)),\"\",VLOOKUP(J105,'Grade Code'!A:B,2,FALSE))","v":""},null,null,null,null,null,null,null,null,{"$f":"IF(ISNA(VLOOKUP(S105,'Grade Code'!A:B,2,FALSE)),\"\",VLOOKUP(S105,'Grade Code'!A:B,2,FALSE))","v":""}]
[null,null,null,null,null,null,null,null,null,null,{"$f":"IF(ISNA(VLOOKUP(J106,'Grade Code'!A:B,2,FALSE)),\"\",VLOOKUP(J106,'Grade Code'!A:B,2,FALSE))","v":""},null,null,null,null,null,null,null,null,{"$f":"IF(ISNA(VLOOKUP(S106,'Grade Code'!A:B,2,FALSE)),\"\",VLOOKUP(S106,'Grade Code'!A:B,2,FALSE))","v":""}]
[null,null,null,null,null,null,null,null,null,null,{"$f":"IF(ISNA(VLOOKUP(J107,'Grade Code'!A:B,2,FALSE)),\"\",VLOOKUP(J107,'Grade Code'!A:B,2,FALSE))","v":""},null,null,null,null,null,null,null,null,{"$f":"IF(ISNA(VLOOKUP(S107,'Grade Code'!A:B,2,FALSE)),\"\",VLOOKUP(S107,'Grade Code'!A:B,2,FALSE))","v":""}]
[null,null,null,null,null,null,null,null,null,null,{"$f":"IF(ISNA(VLOOKUP(J108,'Grade Code'!A:B,2,FALSE)),\"\",VLOOKUP(J108,'Grade Code'!A:B,2,FALSE))","v":""},null,null,null,null,null,null,null,null,{"$f":"IF(ISNA(VLOOKUP(S108,'Grade Code'!A:B,2,FALSE)),\"\",VLOOKUP(S108,'Grade Code'!A:B,2,FALSE))","v":""}]
[null,null,null,null,null,null,null,null,null,null,{"$f":"IF(ISNA(VLOOKUP(J109,'Grade Code'!A:B,2,FALSE)),\"\",VLOOKUP(J109,'Grade Code'!A:B,2,FALSE))","v":""},null,null,null,null,null,null,null,null,{"$f":"IF(ISNA(VLOOKUP(S109,'Grade Code'!A:B,2,FALSE)),\"\",VLOOKUP(S109,'Grade Code'!A:B,2,FALSE))","v":""}]
[null,null,null,null,null,null,null,null,null,null,{"$f":"IF(ISNA(VLOOKUP(J110,'Grade Code'!A:B,2,FALSE)),\"\",VLOOKUP(J110,'Grade Code'!A:B,2,FALSE))","v":""},null,null,null,null,null,null,null,null,{"$f":"IF(ISNA(VLOOKUP(S110,'Grade Code'!A:B,2,FALSE)),\"\",VLOOKUP(S110,'Grade Code'!A:B,2,FALSE))","v":""}]
[null,null,null,null,null,null,null,null,null,null,{"$f":"IF(ISNA(VLOOKUP(J111,'Grade Code'!A:B,2,FALSE)),\"\",VLOOKUP(J111,'Grade Code'!A:B,2,FALSE))","v":""},null,null,null,null,null,null,null,null,{"$f":"IF(ISNA(VLOOKUP(S111,'Grade Code'!A:B,2,FALSE)),\"\",VLOOKUP(S111,'Grade Code'!A:B,2,FALSE))","v":""}]
[null,null,null,null,null,null,null,null,null,null,{"$f":"IF(ISNA(VLOOKUP(J112,'Grade Code'!A:B,2,FALSE)),\"\",VLOOKUP(J112,'Grade Code'!A:B,2,FALSE))","v":""},null,null,null,null,null,null,null,null,{"$f":"IF(ISNA(VLOOKUP(S112,'Grade Code'!A:B,2,FALSE)),\"\",VLOOKUP(S112,'Grade Code'!A:B,2,FALSE))","v":""}]
[null,null,null,null,null,null,null,null,null,null,{"$f":"IF(ISNA(VLOOKUP(J113,'Grade Code'!A:B,2,FALSE)),\"\",VLOOKUP(J113,'Grade Code'!A:B,2,FALSE))","v":""},null,null,null,null,null,null,null,null,{"$f":"IF(ISNA(VLOOKUP(S113,'Grade Code'!A:B,2,FALSE)),\"\",VLOOKUP(S113,'Grade Code'!A:B,2,FALSE))","v":""}]
[null,null,null,null,null,null,null,null,null,null,{"$f":"IF(ISNA(VLOOKUP(J114,'Grade Code'!A:B,2,FALSE)),\"\",VLOOKUP(J114,'Grade Code'!A:B,2,FALSE))","v":""},null,null,null,null,null,null,null,null,{"$f":"IF(ISNA(VLOOKUP(S114,'Grade Code'!A:B,2,FALSE)),\"\",VLOOKUP(S114,'Grade Code'!A:B,2,FALSE))","v":""}]
[null,null,null,null,null,null,null,null,null,null,{"$f":"IF(ISNA(VLOOKUP(J115,'Grade Code'!A:B,2,FALSE)),\"\",VLOOKUP(J115,'Grade Code'!A:B,2,FALSE))","v":""},null,null,null,null,null,null,null,null,{"$f":"IF(ISNA(VLOOKUP(S115,'Grade Code'!A:B,2,FALSE)),\"\",VLOOKUP(S115,'Grade Code'!A:B,2,FALSE))","v":""}]
[null,"Total WTE",null,null,null,null,null,null,null,null,null,null,{"$f":"SUM(M11:M115)","v":0}]

{"sheet":"Help & Reference","index":1,"n_rows":27,"n_cols":1,"rows_kept":27,"cut":false,"hidden":false,"merged":[[1,0,1,7]]}
[]
["Primary Notification Template Reference and Help"]
[]
[]
[]
[]
[]
["Completion of New PN Request"]
["• Columns B:M must be completed in full for all Primary Notification applications (Excluding Management Admin Staff Category, Grade VIII and above)"]
["• Forms for Management Admin Staff Category, Grade VIII and above can be found here"]
["• Failure to provide the required details/appropriate approval will result in the application being returned to the service for clarification with resultant delay in issue of Primary Notification/ Log Numbers"]
["• Workstreams are linked to Funding Streams so please select Funding stream first to see what workstreams are allocated to it (Workstreams can be confirmed by the PMO office  - WinterNSPPMO@ie.gt.com)"]
["• When completing ‘Title of Initiative’ column please insert the wording used in the Master reporting document which was was provided by you when you submitted your WTE/KPI’s for WP 2021 or NSP 2022"]
["• Details relating to funding streams, funds allocation should be confirmed with the Chief Finance Officer/Head of Finance"]
["• For assistance on Grades/Grade Codes please consult the 'Grade Codes' tab"]
["• Local Log Numbers can be entered into \"Column N\". Please note these are not used by SWP&I office for referencing"]
["• Columns O and P are for SWP&I office use only"]
["• Please save document as Macro Enabled Workbook to ensure full functionality"]
[]
["To Request a Change to an issued PN"]
["• Please use original approved PN Template to make your changes"]
["• Columns Q:Y should be updated depending on your change request"]
["• For all other changes, please send a detailed email to workforcedata@hse.ie"]
["• Please save document as Macro Enabled Workbook to ensure full functionality"]
[]
["Contacts"]
["• Please email all completed forms / queries to workforcedata@hse.ie"]

{"sheet":"Grade Code","index":2,"n_rows":704,"n_cols":5,"rows_kept":704,"cut":false,"hidden":false,"merged":[]}
["Code","Grade","Staff Category","Staff Group","Grade Group"]
[8,"Interviewer (not in census)","Management & Administrative","Administrative/ Supervisory (V to VII)","Other exclusions"]
[102,"Director Special Care Unit, Deputy","Management & Administrative","Administrative/ Supervisory (V to VII)","Other Administrative"]
[213,"Librarian, Senior","Management & Administrative","Administrative/ Supervisory (V to VII)","Other Administrative"]
[337,"Special Care Unit Manager, Assistant","Management & Administrative","Administrative/ Supervisory (V to VII)","Middle Management (V-VII)"]
[345,"Work Placement (Management Admin)","Management & Administrative","Administrative/ Supervisory (V to VII)","Other Administrative"]
[396,"Telephonist, Supervisor","Management & Administrative","Clerical (III & IV)","General Administrative (III & IV)"]
[404,"Technical Services Manager","Management & Administrative","Administrative/ Supervisory (V to VII)","Other Administrative"]
[558,"Grade IV","Management & Administrative","Clerical (III & IV)","General Administrative (III & IV)"]
[566,"Grade V","Management & Administrative","Administrative/ Supervisory (V to VII)","Middle Management (V-VII)"]
[574,"Grade VI","Management & Administrative","Administrative/ Supervisory (V to VII)","Middle Management (V-VII)"]
[582,"Grade VII","Management & Administrative","Administrative/ Supervisory (V to VII)","Middle Management (V-VII)"]
[609,"Clerical  Officer","Management & Administrative","Clerical (III & IV)","General Administrative (III & IV)"]
[728,"Telephonist, Night","Management & Administrative","Clerical (III & IV)","General Administrative (III & IV)"]
[739,"Telephonist, Supervisor, Assistant","Management & Administrative","Clerical (III & IV)","General Administrative (III & IV)"]
[778,"Hospital Administrator","Management & Administrative","Administrative/ Supervisory (V to VII)","Other Administrative"]
[884,"Supplies Officer Grade A","Management & Administrative","Administrative/ Supervisory (V to VII)","Middle Management (V-VII)"]
[892,"Supplies Officer Grade B","Management & Administrative","Administrative/ Supervisory (V to VII)","Middle Management (V-VII)"]
[906,"Supplies Officer Grade C","Management & Administrative","Clerical (III & IV)","General Administrative (III & IV)"]
[914,"Supplies Officer Grade D","Management & Administrative","Clerical (III & IV)","General Administrative (III & IV)"]
[919,"General Administrator","Management & Administrative","Administrative/ Supervisory (V to VII)","Other Administrative"]
[932,"Project Manager","Management & Administrative","Administrative/ Supervisory (V to VII)","Other Administrative"]
[1000,"Area Director, Public Health","Medical & Dental","Medical/ Dental, other","Other Medical"]
[1001,"National Director, Public Health","Medical & Dental","Medical/ Dental, other","Other Medical"]
[1002,"Senior House Officer, Intensive Care","Medical & Dental","SHO/ Interns","Senior House Officer"]
[1003,"Senior House Officer, Anaesthesia","Medical & Dental","SHO/ Interns","Senior House Officer"]
[1004,"Senior House Officer, Emergency Medicine","Medical & Dental","SHO/ Interns","Senior House Officer"]
[1005,"Senior House Officer, Medicine","Medical & Dental","SHO/ Interns","Senior House Officer"]
[1006,"Senior House Officer, Obstetrics & Gynaecology","Medical & Dental","SHO/ Interns","Senior House Officer"]
[1007,"Senior House Officer, Ophthalmology","Medical & Dental","SHO/ Interns","Senior House Officer"]
[1008,"Senior House Officer, Paediatrics","Medical & Dental","SHO/ Interns","Senior House Officer"]
[1009,"Senior House Officer, Pathology","Medical & Dental","SHO/ Interns","Senior House Officer"]
[1010,"Senior House Officer, Psychiatry","Medical & Dental","SHO/ Interns","Senior House Officer"]
[1011,"Senior House Officer, Surgery","Medical & Dental","SHO/ Interns","Senior House Officer"]
[1012,"House Officer, Senior","Medical & Dental","SHO/ Interns","Senior House Officer"]
[1013,"Consultant in Palliative Medicine","Medical & Dental","Consultants","Consultant Medicine"]
[1014,"Consultant Oral & Maxillo Facial Surgeon","Medical & Dental","Consultants","Consultant Surgery"]
[1015,"Consultant Anaesthetist","Medical & Dental","Consultants","Consultant Anaesthesia"]
[1016,"Consultant Paediatric Anaesthetist","Medical & Dental","Consultants","Consultant Anaesthesia"]
[1017,"Consultant Anaesthetist s.i. pain medicine","Medical & Dental","Consultants","Consultant Anaesthesia"]
[1018,"Consultant Paediatrician s.i. paediatric neurodisability","Medical & Dental","Consultants","Consultant Paediatrics"]
[1019,"Consultant Paediatrician s.i. metabolic diseases","Medical & Dental","Consultants","Consultant Paediatrics"]
[1020,"Consultant Cardiologist & General Physician","Medical & Dental","Consultants","Consultant Medicine"]
[1021,"Consultant Paediatric Nephrologist","Medical & Dental","Consultants","Consultant Paediatrics"]
[1022,"Consultant Paediatric Cardiologist","Medical & Dental","Consultants","Consultant Paediatrics"]
[1023,"Consultant Paediatrician s.i. respiratory medicine","Medical & Dental","Consultants","Consultant Paediatrics"]
[1024,"Consultant Paediatric Oncologist","Medical & Dental","Consultants","Consultant Paediatrics"]
[1025,"Consultant Paediatric Neurologist","Medical & Dental","Consultants","Consultant Paediatrics"]
[1026,"Consultant Paediatric Endocrinologist","Medical & Dental","Consultants","Consultant Paediatrics"]
[1027,"Consultant Paediatric Gastroenterologist","Medical & Dental","Consultants","Consultant Paediatrics"]
[1028,"Consultant Paediatric Histopathologist","Medical & Dental","Consultants","Consultant Pathology"]
[1029,"Consultant Psychiatrist in the Psychiatry of Old Age","Medical & Dental","Consultants","Consultant Psychiatry"]
[1030,"Consultant Paediatric Immunologist","Medical & Dental","Consultants","Consultant Pathology"]
[1031,"Consultant Respiratory & General Physician","Medical & Dental","Consultants","Consultant Medicine"]
[1032,"Consultant in Paediatric Dentistry","Medical & Dental","Consultants","Consultant Paediatrics"]
[1058,"Consultant Otolaryngologist","Medical & Dental","Consultants","Consultant Surgery"]
[1059,"Consultant in Pain Medicine","Medical & Dental","Consultants","Consultant Anaesthesia"]
[1066,"Consultant Physician in Endocrinology","Medical & Dental","Consultants","Consultant Medicine"]
[1074,"Consultant Physician in Geriatric Medicine","Medical & Dental","Consultants","Consultant Medicine"]
[1082,"Consultant Physician in Genito-Urinary Medicine","Medical & Dental","Consultants","Consultant Medicine"]
[1104,"Consultant Neurologist","Medical & Dental","Consultants","Consultant Medicine"]
[1112,"Consultant Neurosurgeon","Medical & Dental","Consultants","Consultant Surgery"]
[1113,"Consultant Neurosurgeon s.i. paediatric neurosurgery","Medical & Dental","Consultants","Consultant Surgery"]
[1139,"Consultant Obstetrician & Gynaecologist","Medical & Dental","Consultants","Consultant Obstetrics & Gynaecology"]
[1147,"Consultant Ophthalmic Surgeon","Medical & Dental","Consultants","Consultant Surgery"]
[1150,"Consultant Medical Ophthalmologist","Medical & Dental","Consultants","Consultant Medicine"]
[1155,"Consultant Paediatrician","Medical & Dental","Consultants","Consultant Paediatrics"]
[1163,"Consultant General Physician","Medical & Dental","Consultants","Consultant Medicine"]
[1167,"Consultant General Physician s.i. pharmacology & therapeutics","Medical & Dental","Consultants","Consultant Medicine"]
[1172,"Consultant Neuropathologist","Medical & Dental","Consultants","Consultant Pathology"]
[1180,"Consultant Neuro-Radiologist","Medical & Dental","Consultants","Consultant Radiology"]
[1181,"Consultant Paediatric Radiologist","Medical & Dental","Consultants","Consultant Radiology"]
[1198,"Consultant Rheumatologist & General Physician","Medical & Dental","Consultants","Consultant Medicine"]
[1199,"Consultant Rheumatologist","Medical & Dental","Consultants","Consultant Medicine"]
[1206,"Consultant in Restorative Dentistry","Medical & Dental","Consultants","Consultant Dentistry"]
[1210,"Consultant Urologist & Transplant Surgeon","Medical & Dental","Consultants","Consultant Surgery"]
[1211,"Consultant Transplant Surgeon & Urologist","Medical & Dental","Consultants","Consultant Surgery"]
[1212,"Director, National Health Protection","Medical & Dental","Consultants","Other Medical"]
[1216,"Consultant Public Health Medicine, National Health Protection","Medical & Dental","Consultants","Consultant Medicine"]
[1220,"Consultant Public Health Medicine, Health Protection","Medical & Dental","Consultants","Consultant Medicine"]
[1224,"Consultant Public Health Medicine, National","Medical & Dental","Consultants","Consultant Medicine"]
[1236,"Consultant in Special Care Dentistry","Medical & Dental","Consultants","Consultant Dentistry"]
[1244,"Consultant Cardiologist","Medical & Dental","Consultants","Consultant Medicine"]
[1252,"Consultant Chemical Pathologist","Medical & Dental","Consultants","Consultant Pathology"]
[1253,"Consultant Paediatric Chemical Pathologist","Medical & Dental","Consultants","Consultant Pathology"]
[1279,"Consultant General Surgeon","Medical & Dental","Consultants","Consultant Surgery"]
[1280,"Consultant General Surgeon Colo-rectal","Medical & Dental","Consultants","Consultant Surgery"]
[1287,"Consultant Medical Oncologist","Medical & Dental","Consultants","Consultant Medicine"]
[1295,"Consultant Cardio-thoracic Surgeon","Medical & Dental","Consultants","Consultant Surgery"]
[1309,"Consultant Oral Surgeon","Medical & Dental","Consultants","Consultant Surgery"]
[1310,"Community Healthcare Network, GP Lead","Medical & Dental","Medical/ Dental, other","Other Medical"]
[1317,"Public Health, Specialist","Medical & Dental","Medical/ Dental, other","Other Medical"]
[1318,"Director of Public Health","Medical & Dental","Medical/ Dental, other","Other Medical"]
[1319,"Director of Community Care","Medical & Dental","Medical/ Dental, other","Other Medical"]
[1325,"Area Medical Officer, Senior","Medical & Dental","Medical/ Dental, other","Other Medical"]
[1333,"Area Medical Officer","Medical & Dental","Medical/ Dental, other","Other Medical"]
[1341,"Director, General Practice Training School","Medical & Dental","Medical/ Dental, other","Other Medical"]
[1368,"Director, Assistant General Practice Training School","Medical & Dental","Medical/ Dental, other","Other Medical"]
[1392,"Consultant General Surgeon s.i. vascular surgery","Medical & Dental","Consultants","Consultant Surgery"]
[1394,"Consultant General Surgeon s.i. paediatric surgery","Medical & Dental","Consultants","Consultant Surgery"]
[1406,"Clinical Director (Psychiatric Services)","Medical & Dental","Medical/ Dental, other","Other Medical"]
[1457,"Consultant Child & Adolescent Psychiatrist","Medical & Dental","Consultants","Consultant Psychiatry"]
[1465,"Orthodontics, Specialist","Medical & Dental","Medical/ Dental, other","Dentists"]
[1473,"Consultant Clinical Biochemist","Medical & Dental","Consultants","Consultant Pathology"]
[1481,"Consultant General Surgeon Breast","Medical & Dental","Consultants","Consultant Surgery"]
[1491,"Ophthalmic Physician, Community","Medical & Dental","Medical/ Dental, other","Other Medical"]
[1503,"Medical Officer","Medical & Dental","Medical/ Dental, other","Other Medical"]
[1511,"Consultant General Surgeon Gastro-intestinal","Medical & Dental","Consultants","Consultant Surgery"]
[1520,"Registrar, General Practice","Medical & Dental","Registrars","Registrar"]
[1527,"Registrar, Intensive Care","Medical & Dental","Registrars","Registrar"]
[1528,"Registrar, Anaesthesia","Medical & Dental","Registrars","Registrar"]
[1529,"Registrar, Emergency Medicine","Medical & Dental","Registrars","Registrar"]
[1530,"Registrar, Medicine","Medical & Dental","Registrars","Registrar"]
[1531,"Registrar, Obstetrics & Gynaecology","Medical & Dental","Registrars","Registrar"]
[1532,"Registrar, Ophthalmology","Medical & Dental","Registrars","Registrar"]
[1533,"Registrar, Paediatrics","Medical & Dental","Registrars","Registrar"]
[1534,"Registrar, Pathology","Medical & Dental","Registrars","Registrar"]
[1535,"Registrar, Psychiatry","Medical & Dental","Registrars","Registrar"]
[1536,"Registrar, Radiology","Medical & Dental","Registrars","Registrar"]
[1537,"Registrar, Surgery","Medical & Dental","Registrars","Registrar"]
[1538,"Registrar","Medical & Dental","Registrars","Registrar"]
[1554,"Intern","Medical & Dental","SHO/ Interns","Interns"]
[1589,"Dental Surgeon, Senior","Medical & Dental","Medical/ Dental, other","Dentists"]
[1597,"Dental Surgeon, General","Medical & Dental","Medical/ Dental, other","Dentists"]
[1619,"Dental Surgeon, Senior Administrative","Medical & Dental","Medical/ Dental, other","Dentists"]
[1620,"Dentist, Examining","Medical & Dental","Medical/ Dental, other","Dentists"]
[1626,"Senior Registrar, Psychiatry","Medical & Dental","Registrars","Senior Registrar"]
[1627,"Registrar, Senior","Medical & Dental","Registrars","Senior Registrar"]
[1628,"Registrar, Specialist","Medical & Dental","Registrars","Specialist Registrar"]
[1629,"Specialist Registrar, Anaesthesia","Medical & Dental","Registrars","Specialist Registrar"]
[1630,"Specialist Registrar, Emergency Medicine","Medical & Dental","Registrars","Specialist Registrar"]
[1631,"Specialist Registrar, Medicine","Medical & Dental","Registrars","Specialist Registrar"]
[1632,"Specialist Registrar, Obstetrics & Gynaecology","Medical & Dental","Registrars","Specialist Registrar"]
[1633,"Specialist Registrar, Paediatrics","Medical & Dental","Registrars","Specialist Registrar"]
[1634,"Specialist Registrar, Pathology","Medical & Dental","Registrars","Specialist Registrar"]
[1636,"Specialist Registrar, Public Health Medicine","Medical & Dental","Registrars","Specialist Registrar"]
[1637,"Specialist Registrar, Radiology","Medical & Dental","Registrars","Specialist Registrar"]
[1638,"Specialist Registrar, Surgery","Medical & Dental","Registrars","Specialist Registrar"]
[1643,"Consultant Intensivist","Medical & Dental","Consultants","Consultant Intensive Care Medicine"]
[1644,"Consultant in Paediatric Intensive Care","Medical & Dental","Consultants","Consultant Intensive Care Medicine"]
[1678,"Consultant Neonatologist","Medical & Dental","Consultants","Consultant Paediatrics"]
[1686,"Consultant Radiation Oncologist","Medical & Dental","Consultants","Consultant Radiology"]
[1690,"Consultant Emergency Medicine s.i. paediatric emergency medicine","Medical & Dental","Consultants","Consultant Emergency Medicine"]
[1708,"Consultant Dermatologist","Medical & Dental","Consultants","Consultant Medicine"]
[1716,"Consultant Orthopaedic Surgeon","Medical & Dental","Consultants","Consultant Surgery"]
[1717,"Consultant Ophthalmic Surgeon s.i. neuro-ophthalmic surgery","Medical & Dental","Consultants","Consultant Surgery"]
[1724,"Consultant Gastroenterologist & General Physician","Medical & Dental","Consultants","Consultant Medicine"]
[1759,"Consultant Psychiatrist of Learning Disability (adult)","Medical & Dental","Consultants","Consultant Psychiatry"]
[1767,"Consultant Paediatric Surgeon","Medical & Dental","Consultants","Consultant Surgery"]
[1775,"Consultant Orthodontist","Medical & Dental","Consultants","Consultant Dentistry"]
[1783,"Consultant Nephrologist & General Physician","Medical & Dental","Consultants","Consultant Medicine"]
[1791,"Medical Officer, Principal","Medical & Dental","Medical/ Dental, other","Other Medical"]
[1826,"Consultant Forensic Psychiatrist","Medical & Dental","Consultants","Consultant Psychiatry"]
[1856,"Consultant Microbiologist","Medical & Dental","Consultants","Consultant Pathology"]
[1864,"Consultant Physician in Infectious Diseases","Medical & Dental","Consultants","Consultant Medicine"]
[1899,"Consultant Plastic Surgeon","Medical & Dental","Consultants","Consultant Surgery"]
[1902,"Master (Maternity Hospital)","Medical & Dental","Consultants","Consultant Obstetrics & Gynaecology"]
[1937,"Consultant in Clinical Genetics","Medical & Dental","Consultants","Consultant Medicine"]
[1945,"Medical Director","Medical & Dental","Medical/ Dental, other","Other Medical"]
[1961,"Occupational Health Physician","Medical & Dental","Medical/ Dental, other","Other Medical"]
[1988,"Dental Surgeon, Clinical Grade I","Medical & Dental","Medical/ Dental, other","Dentists"]
[1996,"Medical & Dental Unclassified","Medical & Dental","Medical/ Dental, other","Other Medical"]
[2001,"Nursing & Midwifery Services Director","Nursing & Midwifery","Nursing/ Midwifery other","Other Nursing/ Midwifery"]
[2002,"Clinical Skills Development Director","Nursing & Midwifery","Nursing/ Midwifery other","Nursing Education/Clinical"]
[2004,"Director of Midwifery, NWIHP","Nursing & Midwifery","Nurse/ Midwife Manager","Director of Nursing/Midwifery"]
[2011,"Director of Nursing, Deputy","Nursing & Midwifery","Nurse/ Midwife Manager","Director Nursing/Midwifery, Assistant"]
[2046,"Clinical Nurse Manager 3 - Night","Nursing & Midwifery","Nurse/ Midwife Manager","Clinical Nurse/ Midwife Manager"]
[2062,"Student Nurse Children's Nursing (post registration)","Nursing & Midwifery","Nursing/ Midwifery Student","Post-registration Nurse/ Midwife Student"]
[2089,"Staff Midwife, Senior","Nursing & Midwifery","Staff Nurse/ Staff Midwife","Staff Midwives"]
[2090,"Staff Midwife, Senior (dual qualified)","Nursing & Midwifery","Staff Nurse/ Staff Midwife","Staff Midwives"]
[2097,"Nurse Tutor (Midwifery)","Nursing & Midwifery","Nursing/ Midwifery other","Nursing Education/Clinical"]
[2105,"Staff Nurse, Senior (Intellectual Disability)","Nursing & Midwifery","Staff Nurse/ Staff Midwife","Staff Nurse [Intellectual Disability]"]
[2119,"Clinical Nurse Manager 2","Nursing & Midwifery","Nurse/ Midwife Manager","Clinical Nurse/ Midwife Manager"]
[2127,"Clinical Nurse Manager 1","Nursing & Midwifery","Nurse/ Midwife Manager","Clinical Nurse/ Midwife Manager"]
[2131,"Clinical Midwife Manager 1","Nursing & Midwifery","Nurse/ Midwife Manager","Clinical Nurse/ Midwife Manager"]
[2132,"Clinical Midwife Manager 2","Nursing & Midwifery","Nurse/ Midwife Manager","Clinical Nurse/ Midwife Manager"]
[2133,"Clinical Midwife Manager 3","Nursing & Midwifery","Nurse/ Midwife Manager","Clinical Nurse/ Midwife Manager"]
[2135,"Staff Nurse - General","Nursing & Midwifery","Staff Nurse/ Staff Midwife","Staff Nurses [General/ Children's]"]
[2136,"Staff Nurse (Children's)","Nursing & Midwifery","Staff Nurse/ Staff Midwife","Staff Nurses [General/ Children's]"]
[2142,"Staff Midwife (Adaptation Placement)","Nursing & Midwifery","Staff Nurse/ Staff Midwife","Staff Midwives"]
[2143,"Staff Midwife","Nursing & Midwifery","Staff Nurse/ Staff Midwife","Staff Midwives"]
[2144,"Staff Midwife (dual qualified)","Nursing & Midwifery","Staff Nurse/ Staff Midwife","Staff Midwives"]
[2157,"Staff Nurse, Senior (Mental Health)","Nursing & Midwifery","Staff Nurse/ Staff Midwife","Staff Nurse [Psychiatric]"]
[2165,"Staff Nurse, Senior (Dual-Qualified Mental Health)","Nursing & Midwifery","Staff Nurse/ Staff Midwife","Staff Nurse [Psychiatric]"]
[2173,"Staff Nurse, Senior (General)","Nursing & Midwifery","Staff Nurse/ Staff Midwife","Staff Nurses [General/ Children's]"]
[2181,"Staff Nurse, Senior (Dual Qualified)","Nursing & Midwifery","Staff Nurse/ Staff Midwife","Staff Nurses [General/ Children's]"]
[2182,"Staff Nurse, Senior (Dual Qualified Intellectual Disability)","Nursing & Midwifery","Staff Nurse/ Staff Midwife","Staff Nurse [Intellectual Disability]"]
[2183,"Staff Nurse, Senior (Dual Qualified Children's)","Nursing & Midwifery","Staff Nurse/ Staff Midwife","Staff Nurses [General/ Children's]"]
[2208,"Student Midwifery (post registration)","Nursing & Midwifery","Nursing/ Midwifery Student","Post-registration Nurse/ Midwife Student"]
[2209,"Student Midwifery Intern (pre-registration)","Nursing & Midwifery","Nursing/ Midwifery Student","Pre-registration Nurse/ Midwife Intern"]
[2210,"Student Midwifery (post registration)/ Enhanced","Nursing & Midwifery","Nursing/ Midwifery Student","Post-registration Nurse/ Midwife Student"]
[2211,"Student Nurse Children's Nursing (post registration) / Enhanced","Nursing & Midwifery","Nursing/ Midwifery Student","Post-registration Nurse/ Midwife Student"]
[2212,"Student Psychiatric Nursing (post-registration) / Enhanced","Nursing & Midwifery","Nursing/ Midwifery Student","Post-registration Nurse/ Midwife Student"]
[2259,"Clinical Nurse Manager 1 - Theatre","Nursing & Midwifery","Nurse/ Midwife Manager","Clinical Nurse/ Midwife Manager"]
[2267,"Advanced Nurse Practitioner (General)","Nursing & Midwifery","Nurse/ Midwife Specialist & AN/MP","Advanced Nurse/ Midwife Practitioner"]
[2268,"Advanced Nurse Practitioner (Mental Health)","Nursing & Midwifery","Nurse/ Midwife Specialist & AN/MP","Advanced Nurse/ Midwife Practitioner"]
[2269,"Advanced Nurse Practitioner (Community /Primary Care)","Nursing & Midwifery","Nurse/ Midwife Specialist & AN/MP","Advanced Nurse/ Midwife Practitioner"]
[2270,"Advanced Nurse Practitioner (Children's)","Nursing & Midwifery","Nurse/ Midwife Specialist & AN/MP","Advanced Nurse/ Midwife Practitioner"]
[2271,"Advanced Nurse Practitioner (Intellectual Disability)","Nursing & Midwifery","Nurse/ Midwife Specialist & AN/MP","Advanced Nurse/ Midwife Practitioner"]
[2272,"Advanced Nurse Practitioner, Candidate (General)","Nursing & Midwifery","Nurse/ Midwife Specialist & AN/MP","Advanced Nurse/ Midwife Practitioner"]
[2274,"Advanced Nurse Practitioner, Candidate (Mental Health)","Nursing & Midwifery","Nurse/ Midwife Specialist & AN/MP","Advanced Nurse/ Midwife Practitioner"]
[2276,"Advanced Nurse Practitioner, Candidate (Community /Primary Care)","Nursing & Midwifery","Nurse/ Midwife Specialist & AN/MP","Advanced Nurse/ Midwife Practitioner"]
[2277,"Advanced Nurse Practitioner, Candidate (Children's)","Nursing & Midwifery","Nurse/ Midwife Specialist & AN/MP","Advanced Nurse/ Midwife Practitioner"]
[2278,"Advanced Nurse Practitioner, Candidate (Intellectual Disability)","Nursing & Midwifery","Nurse/ Midwife Specialist & AN/MP","Advanced Nurse/ Midwife Practitioner"]
[2280,"Enhanced Midwife","Nursing & Midwifery","Staff Nurse/ Staff Midwife","Staff Midwives"]
[2281,"Enhanced Nurse (Children's)","Nursing & Midwifery","Staff Nurse/ Staff Midwife","Staff Nurses [General/ Children's]"]
[2282,"Enhanced Nurse (Community/Primary Care)","Nursing & Midwifery","Staff Nurse/ Staff Midwife","Staff Nurses [General/ Children's]"]
[2283,"Enhanced Nurse (General)","Nursing & Midwifery","Staff Nurse/ Staff Midwife","Staff Nurses [General/ Children's]"]
[2284,"Enhanced Nurse (Intellectual Disability)","Nursing & Midwifery","Staff Nurse/ Staff Midwife","Staff Nurse [Intellectual Disability]"]
[2285,"Enhanced Nurse (Mental Health)","Nursing & Midwifery","Staff Nurse/ Staff Midwife","Staff Nurse [Psychiatric]"]
[2286,"Enhanced Midwife, Senior","Nursing & Midwifery","Staff Nurse/ Staff Midwife","Staff Midwives"]
[2287,"Enhanced Nurse, Senior (Children's)","Nursing & Midwifery","Staff Nurse/ Staff Midwife","Staff Nurses [General/ Children's]"]
[2288,"Enhanced Nurse, Senior (Community/Primary Care)","Nursing & Midwifery","Staff Nurse/ Staff Midwife","Staff Nurses [General/ Children's]"]
[2289,"Enhanced Nurse, Senior (General)","Nursing & Midwifery","Staff Nurse/ Staff Midwife","Staff Nurses [General/ Children's]"]
[2290,"Enhanced Nurse, Senior (Intellectual Disability)","Nursing & Midwifery","Staff Nurse/ Staff Midwife","Staff Nurse [Intellectual Disability]"]
[2291,"Director of the Nursing & Midwifery P&D Unit","Nursing & Midwifery","Nursing/ Midwifery other","Other Nursing/ Midwifery"]
[2292,"Area Director Nurse & Midwifery Planning & Development","Nursing & Midwifery","Nursing/ Midwifery other","Other Nursing/ Midwifery"]
[2293,"Enhanced Nurse, Senior (Mental Health)","Nursing & Midwifery","Staff Nurse/ Staff Midwife","Staff Nurse [Psychiatric]"]
[2301,"Staff Nurse, Community Mental Health","Nursing & Midwifery","Staff Nurse/ Staff Midwife","Staff Nurse [Psychiatric]"]
[2313,"Clinical Midwife Specialist","Nursing & Midwifery","Nurse/ Midwife Specialist & AN/MP","Clinical Nurse/ Midwife Specialist"]
[2356,"Clinical Nurse Manager 3 - Theatre","Nursing & Midwifery","Nurse/ Midwife Manager","Clinical Nurse/ Midwife Manager"]
[2364,"Director of the Nursing & Midwifery P&D Unit, Asst","Nursing & Midwifery","Nursing/ Midwifery other","Other Nursing/ Midwifery"]
[2372,"Clinical Nurse Manager 2 - Night","Nursing & Midwifery","Nurse/ Midwife Manager","Clinical Nurse/ Midwife Manager"]
[2380,"Staff Nurse (Nursing Bank)","Nursing & Midwifery","Staff Nurse/ Staff Midwife","Nursing Bank"]
[2381,"Staff Nurse, Senior (Nursing Bank)","Nursing & Midwifery","Staff Nurse/ Staff Midwife","Nursing Bank"]
[2382,"Staff Nurse, Mental Health (Nursing Bank)","Nursing & Midwifery","Staff Nurse/ Staff Midwife","Nursing Bank"]
[2383,"Staff Nurse Senior, Mental Health (Nursing Bank)","Nursing & Midwifery","Staff Nurse/ Staff Midwife","Nursing Bank"]
[2384,"Staff Nurse, Children's (Nursing Bank)","Nursing & Midwifery","Staff Nurse/ Staff Midwife","Nursing Bank"]
[2385,"Staff Nurse Senior, Children's (Nursing Bank)","Nursing & Midwifery","Staff Nurse/ Staff Midwife","Nursing Bank"]
[2429,"Clinical Nurse Manager 2 - Theatre","Nursing & Midwifery","Nurse/ Midwife Manager","Clinical Nurse/ Midwife Manager"]
[2445,"Nursing/ Midwifery Practice Development Co-ordinator","Nursing & Midwifery","Nursing/ Midwifery other","Nursing Education/Clinical"]
[2465,"Specialist Co-ordinator, Nursing","Nursing & Midwifery","Nursing/ Midwifery other","Nursing Education/Clinical"]
[2525,"Area Director of Nursing, Mental Health Services","Nursing & Midwifery","Nurse/ Midwife Manager","Director of Nursing/Midwifery"]
[2526,"Director of Nursing (Mental Health)","Nursing & Midwifery","Nurse/ Midwife Manager","Director of Nursing/Midwifery"]
[2527,"Clinical Nurse Manager 1 (Mental Health)","Nursing & Midwifery","Nurse/ Midwife Manager","Clinical Nurse/ Midwife Manager"]
[2535,"Advanced Midwife Practitioner","Nursing & Midwifery","Nurse/ Midwife Specialist & AN/MP","Advanced Nurse/ Midwife Practitioner"]
[2536,"Advanced Midwife Practitioner, Candidate","Nursing & Midwifery","Nurse/ Midwife Specialist & AN/MP","Advanced Nurse/ Midwife Practitioner"]
[2542,"Director of Nursing (Mental Health), Assistant","Nursing & Midwifery","Nurse/ Midwife Manager","Director Nursing/Midwifery, Assistant"]
[2551,"Public Health Nurse, Senior (Immunisation)","Nursing & Midwifery","Public Health Nurse","Public Health Nurse"]
[2580,"Nurse Tutor","Nursing & Midwifery","Nursing/ Midwifery other","Nursing Education/Clinical"]
[2585,"Principal Nurse Tutor (Mental Health)","Nursing & Midwifery","Nursing/ Midwifery other","Nursing Education/Clinical"]
[2586,"Nurse Tutor (Psychiatric)","Nursing & Midwifery","Nursing/ Midwifery other","Nursing Education/Clinical"]
[2606,"Staff Nurse, Dual Qualified (Mental Health)","Nursing & Midwifery","Staff Nurse/ Staff Midwife","Staff Nurse [Psychiatric]"]
[2617,"Staff Nurse, Dual Qualified (General)","Nursing & Midwifery","Staff Nurse/ Staff Midwife","Staff Nurses [General/ Children's]"]
[2618,"Staff Nurse, Dual Qualified (Children's)","Nursing & Midwifery","Staff Nurse/ Staff Midwife","Staff Nurses [General/ Children's]"]
[2625,"Clinical Nurse Specialist (Mental Health)","Nursing & Midwifery","Nurse/ Midwife Specialist & AN/MP","Clinical Nurse/ Midwife Specialist"]
[2626,"Clinical Nurse Specialist (Children's)","Nursing & Midwifery","Nurse/ Midwife Specialist & AN/MP","Clinical Nurse/ Midwife Specialist"]
[2627,"Clinical Nurse Specialist (Intellectual Disability)","Nursing & Midwifery","Nurse/ Midwife Specialist & AN/MP","Clinical Nurse/ Midwife Specialist"]
[2628,"Clinical Nurse Specialist (Community/Primary Care)","Nursing & Midwifery","Nurse/ Midwife Specialist & AN/MP","Clinical Nurse/ Midwife Specialist"]
[2632,"Clinical Nurse Specialist (General)","Nursing & Midwifery","Nurse/ Midwife Specialist & AN/MP","Clinical Nurse/ Midwife Specialist"]
[2633,"Staff Midwife (awaiting-registration)","Nursing & Midwifery","Nursing/ Midwifery Student","Nursing/ Midwifery awaiting registration"]
[2634,"Staff Nurse, Children's (awaiting-registration)","Nursing & Midwifery","Nursing/ Midwifery Student","Nursing/ Midwifery awaiting registration"]
[2635,"Staff Nurse, General (awaiting-registration)","Nursing & Midwifery","Nursing/ Midwifery Student","Nursing/ Midwifery awaiting registration"]
[2636,"Staff Nurse, Intellectual Disability (awaiting-registration)","Nursing & Midwifery","Nursing/ Midwifery Student","Nursing/ Midwifery awaiting registration"]
[2637,"Staff Nurse, Psychiatric (awaiting-registration)","Nursing & Midwifery","Nursing/ Midwifery Student","Nursing/ Midwifery awaiting registration"]
[2643,"Director, Nursing/ Midwifery Education Centre","Nursing & Midwifery","Nursing/ Midwifery other","Nursing Education/Clinical"]
[2658,"Clinical Nurse Manager 2 (Mental Health)","Nursing & Midwifery","Nurse/ Midwife Manager","Clinical Nurse/ Midwife Manager"]
[2674,"Staff Nurse, Mental Health","Nursing & Midwifery","Staff Nurse/ Staff Midwife","Staff Nurse [Psychiatric]"]
[2704,"Psychiatric Nurse, Community","Nursing & Midwifery","Staff Nurse/ Staff Midwife","Staff Nurse [Psychiatric]"]
[2712,"Clinical Nurse Instructor/Teacher","Nursing & Midwifery","Nursing/ Midwifery other","Nursing Education/Clinical"]
[2739,"Area Coordinator (Nursing)","Nursing & Midwifery","Nursing/ Midwifery other","Other Nursing/ Midwifery"]
[2801,"Director of Public Health Nursing","Nursing & Midwifery","Nurse/ Midwife Manager","Director of Nursing/Midwifery"]
[2828,"Public Health Nurse","Nursing & Midwifery","Public Health Nurse","Public Health Nurse"]
[2836,"Student Public Health Nursing (post registration)","Nursing & Midwifery","Nursing/ Midwifery Student","Post-registration Nurse/ Midwife Student"]
[2860,"Staff Nurse (Adaptation Placement), Children's","Nursing & Midwifery","Staff Nurse/ Staff Midwife","Staff Nurses [General/ Children's]"]
[2861,"Staff Nurse (Adaptation Placement), General","Nursing & Midwifery","Staff Nurse/ Staff Midwife","Staff Nurses [General/ Children's]"]
[2862,"Staff Nurse (Adaptation Placement), Mental Health","Nursing & Midwifery","Staff Nurse/ Staff Midwife","Staff Nurse [Psychiatric]"]
[2903,"Director of Nursing 1","Nursing & Midwifery","Nurse/ Midwife Manager","Director of Nursing/Midwifery"]
[2904,"Director of Nursing 2","Nursing & Midwifery","Nurse/ Midwife Manager","Director of Nursing/Midwifery"]
[2905,"Director of Nursing 2A","Nursing & Midwifery","Nurse/ Midwife Manager","Director of Nursing/Midwifery"]
[2906,"Director of Nursing 3","Nursing & Midwifery","Nurse/ Midwife Manager","Director of Nursing/Midwifery"]
[2907,"Director of Nursing 4","Nursing & Midwifery","Nurse/ Midwife Manager","Director of Nursing/Midwifery"]
[2908,"Director of Nursing 5","Nursing & Midwifery","Nurse/ Midwife Manager","Director of Nursing/Midwifery"]
[2910,"Director of Nursing 1, Assistant","Nursing & Midwifery","Nurse/ Midwife Manager","Director Nursing/Midwifery, Assistant"]
[2911,"Director of Nursing 2, Assistant","Nursing & Midwifery","Nurse/ Midwife Manager","Director Nursing/Midwifery, Assistant"]
[2912,"Director of Nursing 3, Assistant","Nursing & Midwifery","Nurse/ Midwife Manager","Director Nursing/Midwifery, Assistant"]
[2913,"Director of Nursing 4, Assistant","Nursing & Midwifery","Nurse/ Midwife Manager","Director Nursing/Midwifery, Assistant"]
[2914,"Director of Nursing & Midwifery","Nursing & Midwifery","Nurse/ Midwife Manager","Director of Nursing/Midwifery"]
[2915,"Director of Nursing & Midwifery, Hospital Group","Nursing & Midwifery","Nurse/ Midwife Manager","Director of Nursing/Midwifery"]
[2916,"Director of Midwifery 1","Nursing & Midwifery","Nurse/ Midwife Manager","Director of Nursing/Midwifery"]
[2917,"Director of Midwifery 2","Nursing & Midwifery","Nurse/ Midwife Manager","Director of Nursing/Midwifery"]
[2918,"Director of Midwifery 3","Nursing & Midwifery","Nurse/ Midwife Manager","Director of Nursing/Midwifery"]
[2919,"Director of Midwifery 1, Assistant","Nursing & Midwifery","Nurse/ Midwife Manager","Director Nursing/Midwifery, Assistant"]
[2920,"Director of Midwifery 2, Assistant","Nursing & Midwifery","Nurse/ Midwife Manager","Director Nursing/Midwifery, Assistant"]
[2921,"Director of Midwifery 3, Assistant","Nursing & Midwifery","Nurse/ Midwife Manager","Director Nursing/Midwifery, Assistant"]
[2930,"Student Psychiatric Nursing Intern (pre-registration)","Nursing & Midwifery","Nursing/ Midwifery Student","Pre-registration Nurse/ Midwife Intern"]
[2931,"Student General Nursing Intern (pre-registration)","Nursing & Midwifery","Nursing/ Midwifery Student","Pre-registration Nurse/ Midwife Intern"]
[2932,"Student Intellectual Disability Nursing Intern (pre-registration","Nursing & Midwifery","Nursing/ Midwifery Student","Pre-registration Nurse/ Midwife Intern"]
[2933,"Student Children's & General Nursing Intern (pre-registration)","Nursing & Midwifery","Nursing/ Midwifery Student","Pre-registration Nurse/ Midwife Intern"]
[2934,"Student Psychiatric Nursing (post-registration)","Nursing & Midwifery","Nursing/ Midwifery Student","Post-registration Nurse/ Midwife Student"]
[2992,"Nursing Unclassified","Nursing & Midwifery","Nursing/ Midwifery other","Other Nursing/ Midwifery"]
[3001,"Cardiac Physiologist, Chief I","Health & Social Care Professionals","Health Science/ Diagnostics","Cardiac Physiologists"]
[3002,"Cardiac Physiologist, Chief II","Health & Social Care Professionals","Health Science/ Diagnostics","Cardiac Physiologists"]
[3003,"Cardiac Physiologist, Senior","Health & Social Care Professionals","Health Science/ Diagnostics","Cardiac Physiologists"]
[3004,"E.C.G. Technician, Chief I","Health & Social Care Professionals","Health Science/ Diagnostics","E.C.G. Technicians"]
[3006,"Maxillo Facial Technician","Health & Social Care Professionals","H&SC, Other","Other Health & Social Care"]
[3007,"Perfusionist","Health & Social Care Professionals","Health Science/ Diagnostics","Perfusionists"]
[3008,"Respiratory Physiologist, Chief I","Health & Social Care Professionals","Health Science/ Diagnostics","Respiratory Physiologists"]
[3009,"Respiratory Physiologist, Chief II","Health & Social Care Professionals","Health Science/ Diagnostics","Respiratory Physiologists"]
[3010,"Respiratory Physiologist, Senior","Health & Social Care Professionals","Health Science/ Diagnostics","Respiratory Physiologists"]
[3013,"Pharmacist, Student","Health & Social Care Professionals","H&SC, Other","HSCP Trainees/ Students"]
[3014,"Phlebotomist, Trainee","Health & Social Care Professionals","H&SC, Other","HSCP Trainees/ Students"]
[3015,"Play Therapist","Health & Social Care Professionals","H&SC, Other","Play Therapists/ Specialists"]
[3016,"Respiratory Physiologist","Health & Social Care Professionals","Health Science/ Diagnostics","Respiratory Physiologists"]
[3017,"Social Worker","Health & Social Care Professionals","Social Workers","Social Workers"]
[3019,"Social Worker, Senior Medical","Health & Social Care Professionals","Social Workers","Social Workers"]
[3020,"Mould Room Technician","Health & Social Care Professionals","H&SC, Other","Other Health & Social Care"]
[3021,"Pharmaceutical Technician, Senior","Health & Social Care Professionals","Pharmacy","Pharmacy Technicians"]
[3022,"Dental Hygienist","Health & Social Care Professionals","H&SC, Other","Dental Hygienists"]
[3024,"Medical Scientist, Student","Health & Social Care Professionals","H&SC, Other","HSCP Trainees/ Students"]
[3025,"Speech & Language Therapist, Clinical Specialist","Health & Social Care Professionals","Therapy Professions","Speech & Language Therapists"]
[3027,"Director of Counselling (National Services)","Health & Social Care Professionals","H&SC, Other","Counsellor Therapists"]
[3028,"Counsellor / Therapist (National Services)","Health & Social Care Professionals","H&SC, Other","Counsellor Therapists"]
[3029,"Social Care Worker","Health & Social Care Professionals","Social Care","Social Care"]
[3030,"Social Care Leader","Health & Social Care Professionals","Social Care","Social Care"]
[3031,"Social Care Worker, Trainee","Health & Social Care Professionals","H&SC, Other","HSCP Trainees/ Students"]
[3035,"Dosimetrist, Basic","Health & Social Care Professionals","Health Science/ Diagnostics","Dosimetrists"]
[3036,"Dosimetrist, Senior","Health & Social Care Professionals","Health Science/ Diagnostics","Dosimetrists"]
[3037,"Social Worker, Psychiatric Senior","Health & Social Care Professionals","Social Workers","Social Workers"]
[3038,"Environmental Health Officer, Trainee","Health & Social Care Professionals","H&SC, Other","HSCP Trainees/ Students"]
[3039,"Laboratory Technician (RPAL)","Health & Social Care Professionals","H&SC, Other","Other Health & Social Care"]
[3040,"Laboratory Technician, Senior (RPAL)","Health & Social Care Professionals","H&SC, Other","Other Health & Social Care"]
[3043,"Physicist, Graduate Trainee","Health & Social Care Professionals","H&SC, Other","HSCP Trainees/ Students"]
[3044,"Maxillo Facial Technician, Chief","Health & Social Care Professionals","H&SC, Other","Other Health & Social Care"]
[3049,"Director of Pharmaceutical Services","Health & Social Care Professionals","Pharmacy","Pharmacists"]
[3050,"High Support Unit Manager","Health & Social Care Professionals","H&SC, Other","Other Health & Social Care"]
[3052,"Counsellor Therapist (Adult Services)","Health & Social Care Professionals","H&SC, Other","Counsellor Therapists"]
[3054,"Vascular Physiologist, Chief II","Health & Social Care Professionals","Health Science/ Diagnostics","Vascular Physiologists"]
[3055,"High Support Unit Manager, Deputy","Health & Social Care Professionals","H&SC, Other","Other Health & Social Care"]
[3056,"Psychotherapist","Health & Social Care Professionals","H&SC, Other","Counsellor Therapists"]
[3057,"Perfusionist, Senior","Health & Social Care Professionals","Health Science/ Diagnostics","Perfusionists"]
[3058,"Perfusionist, Student","Health & Social Care Professionals","H&SC, Other","HSCP Trainees/ Students"]
[3059,"Perfusionist, in charge","Health & Social Care Professionals","Health Science/ Diagnostics","Perfusionists"]
[3060,"Children's First Information Officer","Health & Social Care Professionals","H&SC, Other","Other Health & Social Care"]
[3061,"Gastrointestinal (GI) Physiologist","Health & Social Care Professionals","Health Science/ Diagnostics","Gastrointestinal Physiologists"]
[3062,"Gastrointestinal (GI) Physiologist, Senior","Health & Social Care Professionals","Health Science/ Diagnostics","Gastrointestinal Physiologists"]
[3064,"Gastrointestinal (GI) Physiologist, Chief II","Health & Social Care Professionals","Health Science/ Diagnostics","Gastrointestinal Physiologists"]
[3067,"Regional Drugs Taskforce Coordinator","Health & Social Care Professionals","H&SC, Other","Other Health & Social Care"]
[3069,"Respiratory Technician, Student","Health & Social Care Professionals","H&SC, Other","HSCP Trainees/ Students"]
[3077,"Vascular Physiologist","Health & Social Care Professionals","Health Science/ Diagnostics","Vascular Physiologists"]
[3078,"National Lead Employee Assistance Programme","Health & Social Care Professionals","H&SC, Other","Other Health & Social Care"]
[3093,"Radiographer","Health & Social Care Professionals","Health Science/ Diagnostics","Radiographers"]
[3102,"Director of Services, Mayo Community Living","Health & Social Care Professionals","H&SC, Other","Other Health & Social Care"]
[3103,"Counsellor/ Therapist, Senior (National Services)","Health & Social Care Professionals","H&SC, Other","Counsellor Therapists"]
[3104,"interRAI Care Needs Facilitator","Health & Social Care Professionals","H&SC, Other","Other Health & Social Care"]
[3107,"Radiographer, Senior","Health & Social Care Professionals","Health Science/ Diagnostics","Radiographers"]
[3110,"Epidemiologist","Health & Social Care Professionals","H&SC, Other","Other Health & Social Care"]
[3111,"Epidemiologist, Senior","Health & Social Care Professionals","H&SC, Other","Other Health & Social Care"]
[3112,"Epidemiologist, Principal","Health & Social Care Professionals","H&SC, Other","Other Health & Social Care"]
[3113,"Surveillance Officer, Public Health","Health & Social Care Professionals","H&SC, Other","Other Health & Social Care"]
[3122,"Dental Hygienist, Senior","Health & Social Care Professionals","H&SC, Other","Dental Hygienists"]
[3123,"Radiography Tutor","Health & Social Care Professionals","Health Science/ Diagnostics","Radiographers"]
[3131,"Radiographer, Clinical Specialist","Health & Social Care Professionals","Health Science/ Diagnostics","Radiographers"]
[3158,"Physiotherapist, Senior","Health & Social Care Professionals","Therapy Professions","Physiotherapists"]
[3159,"Physiotherapy, Placement Facilitator","Health & Social Care Professionals","Therapy Professions","Physiotherapists"]
[3160,"Physiotherapy, Practice Tutor","Health & Social Care Professionals","Therapy Professions","Physiotherapists"]
[3161,"Clinical Engineering Technician","Health & Social Care Professionals","Health Science/ Diagnostics","Clinical Engineering"]
[3162,"Clinical Engineering Technician, Senior","Health & Social Care Professionals","Health Science/ Diagnostics","Clinical Engineering"]
[3163,"Clinical Engineering Technician, Principal","Health & Social Care Professionals","Health Science/ Diagnostics","Clinical Engineering"]
[3164,"Clinical Engineering Technician, Chief","Health & Social Care Professionals","Health Science/ Diagnostics","Clinical Engineering"]
[3172,"Environmental Health Officer, Regional Chief","Health & Social Care Professionals","H&SC, Other","Environmental Health Officers"]
[3173,"Environmental Health Officer, Senior","Health & Social Care Professionals","H&SC, Other","Environmental Health Officers"]
[3181,"Environmental Health Officer, Principal","Health & Social Care Professionals","H&SC, Other","Environmental Health Officers"]
[3182,"Physiotherapist-in-charge (Grade III)","Health & Social Care Professionals","Therapy Professions","Physiotherapists"]
[3211,"Clinical Photographer","Health & Social Care Professionals","H&SC, Other","Other Health & Social Care"]
[3212,"Pharmaceutical Technician","Health & Social Care Professionals","Pharmacy","Pharmacy Technicians"]
[3239,"Pharmacist, Senior","Health & Social Care Professionals","Pharmacy","Pharmacists"]
[3247,"Pharmacist","Health & Social Care Professionals","Pharmacy","Pharmacists"]
[3255,"Vascular Physiologist, Chief I","Health & Social Care Professionals","Health Science/ Diagnostics","Vascular Physiologists"]
[3263,"Pharmacist, Chief I","Health & Social Care Professionals","Pharmacy","Pharmacists"]
[3271,"Pharmacist, Chief II","Health & Social Care Professionals","Pharmacy","Pharmacists"]
[3298,"Occupational Therapist","Health & Social Care Professionals","Therapy Professions","Occupational Therapists"]
[3301,"Occupational Therapist, Senior","Health & Social Care Professionals","Therapy Professions","Occupational Therapists"]
[3302,"Occupational Therapist-in-charge III","Health & Social Care Professionals","Therapy Professions","Occupational Therapists"]
[3304,"Occupational Therapy Placement Facilitator","Health & Social Care Professionals","Therapy Professions","Occupational Therapists"]
[3305,"Occupational Therapy, Practice Tutor","Health & Social Care Professionals","Therapy Professions","Occupational Therapists"]
[3328,"Dietitian Manager","Health & Social Care Professionals","Therapy Professions","Dietitians"]
[3346,"Chiropodist/ Podiatrist, Senior","Health & Social Care Professionals","Therapy Professions","Podiatrists & Chiropodists"]
[3352,"Chiropodist/ Podiatrist","Health & Social Care Professionals","Therapy Professions","Podiatrists & Chiropodists"]
[3361,"Speech & Language Therapist Manager-in-charge III","Health & Social Care Professionals","Therapy Professions","Speech & Language Therapists"]
[3379,"Speech & Language Therapist, Senior","Health & Social Care Professionals","Therapy Professions","Speech & Language Therapists"]
[3380,"Speech & Language Therapy, Placement Facilitator","Health & Social Care Professionals","Therapy Professions","Speech & Language Therapists"]
[3381,"Speech & Language Therapy, Practice Tutor","Health & Social Care Professionals","Therapy Professions","Speech & Language Therapists"]
[3389,"Dietitian","Health & Social Care Professionals","Therapy Professions","Dietitians"]
[3391,"Dietitian Manager-in-charge III","Health & Social Care Professionals","Therapy Professions","Dietitians"]
[3395,"Dietitian, Senior","Health & Social Care Professionals","Therapy Professions","Dietitians"]
[3409,"Orthoptist","Health & Social Care Professionals","Therapy Professions","Orthoptists"]
[3410,"National  Clinical Laboratory Director","Health & Social Care Professionals","H&SC, Other","Other Health & Social Care"]
[3417,"Orthoptist, Senior","Health & Social Care Professionals","Therapy Professions","Orthoptists"]
[3420,"Optometrist, Clinical","Health & Social Care Professionals","H&SC, Other","Other Health & Social Care"]
[3425,"Phlebotomist","Health & Social Care Professionals","Health Science/ Diagnostics","Phlebotomists"]
[3433,"Phlebotomist, Senior","Health & Social Care Professionals","Health Science/ Diagnostics","Phlebotomists"]
[3441,"Audiologist","Health & Social Care Professionals","Health Science/ Diagnostics","Audiology"]
[3442,"Audiological Scientist","Health & Social Care Professionals","Health Science/ Diagnostics","Audiology"]
[3443,"Audiological Scientist, Senior","Health & Social Care Professionals","Health Science/ Diagnostics","Audiology"]
[3444,"Audiologist, Student","Health & Social Care Professionals","H&SC, Other","HSCP Trainees/ Students"]
[3446,"Audiology, National Lead","Health & Social Care Professionals","Health Science/ Diagnostics","Audiology"]
[3447,"Audiologist, Clinical Specialist","Health & Social Care Professionals","Health Science/ Diagnostics","Audiology"]
[3448,"Audiology, Assistant National Lead","Health & Social Care Professionals","Health Science/ Diagnostics","Audiology"]
[3451,"Paramedicine Tutor (National Ambulance Service)","Health & Social Care Professionals","H&SC, Other","Other Health & Social Care"]
[3452,"Principal Paramedicine Tutor (National Ambulance Service)","Health & Social Care Professionals","H&SC, Other","Other Health & Social Care"]
[3468,"Speech & Language Therapist Manager","Health & Social Care Professionals","Therapy Professions","Speech & Language Therapists"]
[3492,"Physiotherapist Manager","Health & Social Care Professionals","Therapy Professions","Physiotherapists"]
[3522,"Social Worker (Non-professionally qualified)","Health & Social Care Professionals","H&SC, Other","Other Health & Social Care"]
[3557,"Social Worker, Medical","Health & Social Care Professionals","Social Workers","Social Workers"]
[3581,"E.C.G. Technician, Senior","Health & Social Care Professionals","Health Science/ Diagnostics","E.C.G. Technicians"]
[3603,"E.E.G./ E.C.G. Technician, Student","Health & Social Care Professionals","H&SC, Other","HSCP Trainees/ Students"]
[3604,"Neuro-Physiologist","Health & Social Care Professionals","Health Science/ Diagnostics","Neuro-Physiologists"]
[3605,"Neuro-Physiologist, Chief I","Health & Social Care Professionals","Health Science/ Diagnostics","Neuro-Physiologists"]
[3606,"Neuro-Physiologist, Chief  II","Health & Social Care Professionals","Health Science/ Diagnostics","Neuro-Physiologists"]
[3607,"Neuro-Physiologist, Senior","Health & Social Care Professionals","Health Science/ Diagnostics","Neuro-Physiologists"]
[3614,"Social Work Practitioner, Senior","Health & Social Care Professionals","Social Workers","Social Workers"]
[3654,"Chiropodist, Clinical Specialist","Health & Social Care Professionals","Therapy Professions","Podiatrists & Chiropodists"]
[3662,"Psychology, Director of","Health & Social Care Professionals","Psychologists","Psychologists"]
[3689,"Psychologist, Clinical","Health & Social Care Professionals","Psychologists","Psychologists"]
[3690,"Psychologist, Educational","Health & Social Care Professionals","Psychologists","Psychologists"]
[3691,"Psychologist, Counselling","Health & Social Care Professionals","Psychologists","Psychologists"]
[3692,"Psychologist, Senior Counselling","Health & Social Care Professionals","Psychologists","Psychologists"]
[3693,"Psychologist, Senior Educational","Health & Social Care Professionals","Psychologists","Psychologists"]
[3697,"Psychologist, Trainee Clinical","Health & Social Care Professionals","Psychologists","Psychologists"]
[3705,"Play Therapist, Senior","Health & Social Care Professionals","H&SC, Other","Play Therapists/ Specialists"]
[3706,"Play Specialist","Health & Social Care Professionals","H&SC, Other","Play Therapists/ Specialists"]
[3707,"Physiotherapist, Clinical Specialist","Health & Social Care Professionals","Therapy Professions","Physiotherapists"]
[3708,"Play Specialist, Senior","Health & Social Care Professionals","H&SC, Other","Play Therapists/ Specialists"]
[3715,"Dietitian, Clinical Specialist","Health & Social Care Professionals","Therapy Professions","Dietitians"]
[3727,"Psychologist, Principal Clinical","Health & Social Care Professionals","Psychologists","Psychologists"]
[3742,"Analytical Chemist (without Branch E Cert)","Health & Social Care Professionals","H&SC, Other","Other Health & Social Care"]
[3744,"Analytical Chemist, (with Branch E Cert)","Health & Social Care Professionals","H&SC, Other","Other Health & Social Care"]
[3751,"Biochemist","Health & Social Care Professionals","Health Science/ Diagnostics","Biochemists"]
[3759,"Regional Public Analyst","Health & Social Care Professionals","H&SC, Other","Other Health & Social Care"]
[3767,"Regional Public Analyst, Deputy","Health & Social Care Professionals","H&SC, Other","Other Health & Social Care"]
[3778,"Biochemist, Principal","Health & Social Care Professionals","Health Science/ Diagnostics","Biochemists"]
[3794,"Physicist","Health & Social Care Professionals","Health Science/ Diagnostics","Physicists"]
[3808,"Physicist, Senior","Health & Social Care Professionals","Health Science/ Diagnostics","Physicists"]
[3816,"Physicist, Principal","Health & Social Care Professionals","Health Science/ Diagnostics","Physicists"]
[3824,"Occupational Therapist, Clinical Specialist","Health & Social Care Professionals","Therapy Professions","Occupational Therapists"]
[3832,"Physicist, Chief","Health & Social Care Professionals","Health Science/ Diagnostics","Physicists"]
[3858,"Rehabilitation Officer","Health & Social Care Professionals","H&SC, Other","Other Health & Social Care"]
[3859,"Physics Technician","Health & Social Care Professionals","Health Science/ Diagnostics","Physicists"]
[3867,"Cardiac Physiologist","Health & Social Care Professionals","Health Science/ Diagnostics","Cardiac Physiologists"]
[3875,"Medical Scientist","Health & Social Care Professionals","Health Science/ Diagnostics","Medical Science"]
[3876,"Medical Scientist, Chief","Health & Social Care Professionals","Health Science/ Diagnostics","Medical Science"]
[3877,"Medical Scientist, Senior","Health & Social Care Professionals","Health Science/ Diagnostics","Medical Science"]
[3878,"Medical Scientist, Specialist","Health & Social Care Professionals","Health Science/ Diagnostics","Medical Science"]
[3879,"Medical Scientist, Undergraduate","Health & Social Care Professionals","Health Science/ Diagnostics","Medical Science"]
[3880,"Medical Scientist, Trainee","Health & Social Care Professionals","H&SC, Other","HSCP Trainees/ Students"]
[3902,"Social Worker, Team Leader","Health & Social Care Professionals","Social Workers","Social Workers"]
[3918,"Counsellor, Senior","Health & Social Care Professionals","H&SC, Other","Counsellor Therapists"]
[3919,"Counsellor, Children's","Health & Social Care Professionals","H&SC, Other","Counsellor Therapists"]
[3922,"Child Care Manager","Health & Social Care Professionals","H&SC, Other","Other Health & Social Care"]
[3948,"Social Worker, Psychiatric","Health & Social Care Professionals","Social Workers","Social Workers"]
[3950,"Radiation Therapist","Health & Social Care Professionals","Health Science/ Diagnostics","Radiation Therapists"]
[3951,"Radiation Therapist, Senior","Health & Social Care Professionals","Health Science/ Diagnostics","Radiation Therapists"]
[3956,"Teacher","Health & Social Care Professionals","H&SC, Other","Other Health & Social Care"]
[3957,"Instructor","Health & Social Care Professionals","H&SC, Other","Other Health & Social Care"]
[3958,"Therapist","Health & Social Care Professionals","H&SC, Other","Counsellor Therapists"]
[3959,"Family Therapist","Health & Social Care Professionals","H&SC, Other","Counsellor Therapists"]
[3964,"Radiation Therapist, Clinical Specialist","Health & Social Care Professionals","Health Science/ Diagnostics","Radiation Therapists"]
[3972,"Radiation Therapy Service Manager I","Health & Social Care Professionals","Health Science/ Diagnostics","Radiation Therapists"]
[3999,"Health & Social Care Professionals Unclassified","Health & Social Care Professionals","H&SC, Other","Other Health & Social Care"]
[4001,"Catering Officer, Grade II","General Support","Support","Catering"]
[4002,"Catering Officer, Grade III","General Support","Support","Catering"]
[4006,"Dental Craftsman/Technician","General Support","Support","Other Support"]
[4007,"Dental Craftsman/Technician, Chief (GSS)","General Support","Support","Other Support"]
[4008,"Dental Craftsman/Technician, Senior (GSS)","General Support","Support","Other Support"]
[4011,"Gardener/ Groundsman, Head","General Support","Maintenance/ Technical","Maintenance"]
[4012,"Chef, Head","General Support","Support","Catering"]
[4013,"Hostel Supervisor","General Support","Support","Other Support"]
[4014,"Catering Officer Grade I","General Support","Support","Catering"]
[4016,"Pharmacy Assistant","General Support","Support","Other Support"]
[4022,"Catering Supervisor","General Support","Support","Catering"]
[4065,"Cook, Trainee","General Support","Support","Catering"]
[4068,"Gardener/ Groundsman","General Support","Maintenance/ Technical","Maintenance"]
[4073,"Diningroom/Cafeteria Supervisor","General Support","Support","Catering"]
[4077,"Medical Laboratory Aide","General Support","Support","Other Labs & Associated"]
[4081,"Housekeeper","General Support","Support","Household Services"]
[4082,"Household Services Manager","General Support","Support","Household Services"]
[4083,"Household Services Manager, Deputy","General Support","Support","Household Services"]
[4092,"Caretaker","General Support","Support","Other Support"]
[4103,"Domestic Supervisor","General Support","Support","Household Services"]
[4105,"Catering Manager","General Support","Support","Catering"]
[4106,"Security Guard","General Support","Support","Other Support"]
[4110,"Domestic","General Support","Support","Household Services"]
[4111,"Catering/Cleaner/Assistant","General Support","Support","Household Services"]
[4113,"Cleaner","General Support","Support","Household Services"]
[4114,"Household Attendant/Cleaner/Domestic, Intern","General Support","Support","Household Services"]
[4120,"Head of Catering","General Support","Support","Catering"]
[4146,"Linen Room/Laundry Supervisor","General Support","Support","Household Services"]
[4197,"Porter","General Support","Support","Portering"]
[4198,"Porter, Intern","General Support","Support","Portering"]
[4211,"Chef, Executive","General Support","Support","Catering"]
[4238,"Storeperson","General Support","Support","Portering"]
[4262,"Labourer","General Support","Maintenance/ Technical","Maintenance"]
[4297,"Stores Porter/Assistant/Attendant","General Support","Support","Portering"]
[4327,"Work Placement (Support Services)","General Support","Support","Other Support"]
[4332,"Domestic Supervisor, Assistant","General Support","Support","Household Services"]
[4343,"Chef, Journeyman","General Support","Support","Catering"]
[4351,"Linen Room/Laundry Supervisor, Assistant","General Support","Support","Household Services"]
[4372,"Transport Officer","General Support","Support","Other Support"]
[4413,"Seamstress/ Tailor","General Support","Support","Other Support"]
[4495,"Support Services Unclassified","General Support","Support","Other Support"]
[4521,"Clerk of Works","General Support","Support","Other Support"]
[4529,"Chef II","General Support","Support","Catering"]
[4645,"Pathology Technician","General Support","Support","Other Labs & Associated"]
[4653,"Pathology Technician, Senior","General Support","Support","Other Labs & Associated"]
[4734,"Driver, Minibus","General Support","Support","Other Support"]
[4900,"Laundry Worker","General Support","Support","Household Services"]
[4901,"Mortuary Attendant","General Support","Support","Other Support"]
[4902,"Plaster Technician","General Support","Support","Other Support"]
[4905,"Craftsman's Mate","General Support","Maintenance/ Technical","Maintenance"]
[4908,"Driver/ Porter","General Support","Support","Portering"]
[5000,"Laboratory Porter","General Support","Support","Portering"]
[5001,"Pharmacy Porter","General Support","Support","Portering"]
[5002,"Engineer/ Engineering Officer","General Support","Maintenance/ Technical","Technical Services"]
[5003,"Pharmacy Aide-Attendant","General Support","Support","Other Support"]
[5061,"Maintenance Foreman","General Support","Maintenance/ Technical","Maintenance"]
[5070,"Maintenance Manager","General Support","Maintenance/ Technical","Maintenance"]
[5071,"Maintenance Officer","General Support","Maintenance/ Technical","Maintenance"]
[5088,"Chargehand","General Support","Maintenance/ Technical","Maintenance"]
[5096,"Electrician","General Support","Maintenance/ Technical","Maintenance"]
[5118,"Painter","General Support","Maintenance/ Technical","Maintenance"]
[5126,"Mechanic","General Support","Maintenance/ Technical","Maintenance"]
[5134,"Plumber","General Support","Maintenance/ Technical","Maintenance"]
[5312,"Draughtsman/Technician II","General Support","Maintenance/ Technical","Technical Services"]
[5363,"Theatre Technician/Porter","General Support","Support","Portering"]
[5371,"Apprentice Craftworker","General Support","Maintenance/ Technical","Maintenance"]
[5487,"General Operative","General Support","Maintenance/ Technical","Maintenance"]
[5497,"Fire Prevention Officer","General Support","Maintenance/ Technical","Technical Services"]
[5606,"Maintenance Craftsman/Technician","General Support","Maintenance/ Technical","Maintenance"]
[5777,"C.S.S.D. Supervisor","General Support","Support","Other Support"]
[5785,"C.S.S.D. Operative","General Support","Support","Other Support"]
[5931,"Laboratory Attendant","General Support","Support","Other Labs & Associated"]
[5991,"Maintenance/Technical Unclassified","General Support","Maintenance/ Technical","Maintenance"]
[6001,"Assessment Officer (Disability Act)","Patient & Client Care","Care, other","Other Care Grades"]
[6006,"Services Coordinator 1 (Disability Services)","Patient & Client Care","Care, other","Other Care Grades"]
[6007,"Services Coordinator 2 (Disability Services)","Patient & Client Care","Care, other","Other Care Grades"]
[6008,"Services Coordinator 3 (Disability Services)","Patient & Client Care","Care, other","Other Care Grades"]
[6009,"Services Coordinator 4 (Disability Services)","Patient & Client Care","Care, other","Other Care Grades"]
[6010,"Children's Disability Network Manager","Patient & Client Care","Care, other","Other Care Grades"]
[6011,"Community Healthcare Network Manager","Patient & Client Care","Care, other","Other Care Grades"]
[6012,"Health Care Assistant (Band 1)/(specific sites only)","Patient & Client Care","Health Care Assistants","Health Care Assistant/ Care Assistant"]
[6013,"Theatre Operative","Patient & Client Care","Care, other","Other Care Grades"]
[6014,"Team Leader, Support Services","Patient & Client Care","Health Care Assistants","Health Care Assistant/ Care Assistant"]
[6015,"Attendant, Multi-Task","Patient & Client Care","Health Care Assistants","Attendant/ Aide"]
[6016,"Attendant. Multi-Task Intern","Patient & Client Care","Health Care Assistants","Attendant/ Aide"]
[6017,"Endoscopy Operative (Band 1)","Patient & Client Care","Care, other","Other Care Grades"]
[6018,"Endoscopy Operative (Band 2)","Patient & Client Care","Care, other","Other Care Grades"]
[6024,"Workshop Manager","Patient & Client Care","Care, other","Workshop Services"]
[6026,"Vocational Officer","Patient & Client Care","Care, other","Other Care Grades"]
[6027,"Community Welfare Officer, Supt.","Patient & Client Care","Care, other","Other Care Grades"]
[6030,"Community Welfare Officer","Patient & Client Care","Care, other","Other Care Grades"]
[6049,"Patient Services Officer","Patient & Client Care","Care, other","Other Care Grades"]
[6058,"Registrar Births/Deaths/Marriages","Patient & Client Care","Care, other","Other Care Grades"]
[6066,"Health Education Officer","Patient & Client Care","Care, other","Other Care Grades"]
[6067,"Health Promotion Officer","Patient & Client Care","Care, other","Health Promotion"]
[6068,"Health Promotion Officer, Senior","Patient & Client Care","Care, other","Health Promotion"]
[6075,"Health Care Assistant","Patient & Client Care","Health Care Assistants","Health Care Assistant/ Care Assistant"]
[6076,"Health Care Assistant, intern","Patient & Client Care","Health Care Assistants","Health Care Assistant/ Care Assistant"]
[6083,"General Assistant","Patient & Client Care","Care, other","Other Care Grades"]
[6091,"General Assistant, Senior","Patient & Client Care","Care, other","Other Care Grades"]
[6100,"Head of Bed Management (Category A)","Patient & Client Care","Care, other","Other Care Grades"]
[6101,"Head of Bed Management (Category B)","Patient & Client Care","Care, other","Other Care Grades"]
[6102,"Head of Bed Management (Category C)","Patient & Client Care","Care, other","Other Care Grades"]
[6116,"Cardiac Aide","Patient & Client Care","Health Care Assistants","Health & Social Care Assistants"]
[6120,"Clinical Paramedical Supervisor","Patient & Client Care","Ambulance Staff","Pre-Hospital Care (Ambulance)"]
[6122,"Ambulance Officer","Patient & Client Care","Ambulance Staff","Ambulance Officers"]
[6123,"Ambulance Officer, Asst. Chief","Patient & Client Care","Ambulance Staff","Ambulance Officers"]
[6124,"Driver (Doctor-on-call)","Patient & Client Care","Care, other","Other Care Grades"]
[6125,"Ambulance Officer, Chief","Patient & Client Care","Ambulance Staff","Ambulance Officers"]
[6128,"Ambulance Service Shift Manager","Patient & Client Care","Ambulance Staff","Ambulance Control"]
[6129,"Ambulance Service Tactical Manager, Senior","Patient & Client Care","Ambulance Staff","Ambulance Control"]
[6132,"Driver (Patients/Clients Public Roads)","Patient & Client Care","Care, other","Other Care Grades"]
[6133,"Intermediate Care Operative","Patient & Client Care","Ambulance Staff","Pre-Hospital Care (Ambulance)"]
[6200,"Health Promotion & Improvement Officer","Patient & Client Care","Care, other","Health Promotion"]
[6300,"Health Promotion & Improvement Officer, Senior","Patient & Client Care","Care, other","Health Promotion"]
[6400,"Nurse's Aide","Patient & Client Care","Health Care Assistants","Attendant/ Aide"]
[6402,"Workshop Supervisor/Instructor, Senior","Patient & Client Care","Care, other","Workshop Services"]
[6403,"Pastoral Care Worker","Patient & Client Care","Care, other","Pastoral Care"]
[6404,"Chaplain","Patient & Client Care","Care, other","Pastoral Care"]
[6405,"Chaplaincy Services, coordinator","Patient & Client Care","Care, other","Pastoral Care"]
[6415,"Attendant/ Aide","Patient & Client Care","Health Care Assistants","Attendant/ Aide"]
[6416,"Family Support Worker","Patient & Client Care","Care, other","Home Care Services"]
[6417,"Nursing Auxiliary/Orderly","Patient & Client Care","Health Care Assistants","Attendant/ Aide"]
[6425,"Workshop Supervisor/ Instructor","Patient & Client Care","Care, other","Workshop Services"]
[6430,"Hairdresser/ Barber","Patient & Client Care","Care, other","Other Care Grades"]
[6434,"Nursery Nurse","Patient & Client Care","Care, other","Other Care Grades"]
[6436,"Dental Surgery Assistant (unqualified)","Patient & Client Care","Care, other","Other Care Grades"]
[6437,"Dental Nurse","Patient & Client Care","Care, other","Other Care Grades"]
[6439,"Welfare Home, Supervisor","Patient & Client Care","Care, other","Other Care Grades"]
[6440,"Dental Nurse, Senior","Patient & Client Care","Care, other","Other Care Grades"]
[6450,"Emergency Call Taker","Patient & Client Care","Ambulance Staff","Ambulance Control"]
[6453,"Emergency Medical Technician, Student","Patient & Client Care","Ambulance Staff","Ambulance Education"]
[6455,"Emergency Medical Controller","Patient & Client Care","Ambulance Staff","Ambulance Control"]
[6456,"Emergency Medical Dispatcher","Patient & Client Care","Ambulance Staff","Ambulance Control"]
[6457,"Emergency Medical Control Supervisor","Patient & Client Care","Ambulance Staff","Ambulance Control"]
[6463,"Emergency Medical Technician","Patient & Client Care","Ambulance Staff","Pre-Hospital Care (Ambulance)"]
[6464,"Emergency Medical Technician, Leading","Patient & Client Care","Ambulance Staff","Pre-Hospital Care (Ambulance)"]
[6466,"Supervisor Welfare Home, Assistant","Patient & Client Care","Care, other","Other Care Grades"]
[6479,"Care Assistant (Disability), Intern","Patient & Client Care","Health Care Assistants","Health Care Assistant/ Care Assistant"]
[6482,"Care Assistant (Disability Services)","Patient & Client Care","Health Care Assistants","Health Care Assistant/ Care Assistant"]
[6484,"Home Help Organiser","Patient & Client Care","Care, other","Home Care Services"]
[6491,"Social Parent","Patient & Client Care","Care, other","Home Care Services"]
[6492,"Pool Attendant/ Supervisor","Patient & Client Care","Health Care Assistants","Attendant/ Aide"]
[6493,"Prosthetist, Senior","Patient & Client Care","Care, other","Other Care Grades"]
[6494,"Health Care Support Assistant","Patient & Client Care","Home Help","Home Helps"]
[6499,"Miscellaneous Childcare, Support Services","Patient & Client Care","Care, other","Other Care Grades"]
[6500,"Local Area Co-ordinator (Addiction Services)","Patient & Client Care","Care, other","Other Care Grades"]
[6501,"Education Officer","Patient & Client Care","Care, other","Other Care Grades"]
[6502,"Outreach Worker","Patient & Client Care","Care, other","Other Care Grades"]
[6503,"Physiotherapy Assistant","Patient & Client Care","Health Care Assistants","Health & Social Care Assistants"]
[6504,"Speech & Language Therapy Assistant","Patient & Client Care","Health Care Assistants","Health & Social Care Assistants"]
[6505,"Occupational Therapy Assistant","Patient & Client Care","Health Care Assistants","Health & Social Care Assistants"]
[6507,"Appeals Officer","Patient & Client Care","Care, other","Other Care Grades"]
[6508,"Appeals Officer, Deputy","Patient & Client Care","Care, other","Other Care Grades"]
[6510,"Work Placement (OP&CC)","Patient & Client Care","Care, other","Other Care Grades"]
[6512,"Regional Suicide Prevention Officer","Patient & Client Care","Care, other","Other Care Grades"]
[6514,"S.E.N. (General)","Patient & Client Care","Health Care Assistants","Health Care Assistant/ Care Assistant"]
[6515,"S.E.N. (Psychiatric)","Patient & Client Care","Health Care Assistants","Health Care Assistant/ Care Assistant"]
[6516,"Home Management Advisor","Patient & Client Care","Care, other","Home Care Services"]
[6517,"Home Management Advisor, Senior","Patient & Client Care","Care, other","Home Care Services"]
[6518,"Home Help Organiser, Deputy","Patient & Client Care","Care, other","Home Care Services"]
[6519,"Team Manager EIS","Patient & Client Care","Care, other","Other Care Grades"]
[6520,"Occupational Guidance Officer","Patient & Client Care","Care, other","Other Care Grades"]
[6521,"Psychologist Assistant","Patient & Client Care","Health Care Assistants","Health & Social Care Assistants"]
[6525,"Radiography Aide","Patient & Client Care","Health Care Assistants","Health & Social Care Assistants"]
[6526,"Audiologist, Assistant","Patient & Client Care","Health Care Assistants","Health & Social Care Assistants"]
[6584,"Home Help Co-Ordinator","Patient & Client Care","Care, other","Home Care Services"]
[6931,"Emergency Medical Controller - Team Leader","Patient & Client Care","Ambulance Staff","Ambulance Control"]
["022T","Librarian, Assistant","Management & Administrative","Administrative/ Supervisory (V to VII)","Other Administrative"]
["031Y","Librarian","Management & Administrative","Administrative/ Supervisory (V to VII)","Other Administrative"]
["042Y","Project Leader","Management & Administrative","Administrative/ Supervisory (V to VII)","Other Administrative"]
["071X","Telephonist","Management & Administrative","Clerical (III & IV)","General Administrative (III & IV)"]
["076Y","Accountant","Management & Administrative","Administrative/ Supervisory (V to VII)","Middle Management (V-VII)"]
["099X","Administration Unclassified","Management & Administrative","Administrative/ Supervisory (V to VII)","Other Administrative"]
["101T","Consultant Unclassified","Medical & Dental","Consultants","Consultant, Other"]
["104X","Vocational Trainee in Dentistry","Medical & Dental","Medical/ Dental, other","Dentists"]
["109Y","Consultant Haematologist (Clinical & Laboratory)","Medical & Dental","Consultants","Consultant Pathology"]
["112Y","Consultant Clinical Neurophysiologist","Medical & Dental","Consultants","Consultant Medicine"]
["118X","Consultant Radiologist","Medical & Dental","Consultants","Consultant Radiology"]
["121X","Consultant Urologist","Medical & Dental","Consultants","Consultant Surgery"]
["126Y","Consultant Histopathologist","Medical & Dental","Consultants","Consultant Pathology"]
["137T","Consultant Immunologist (Clinical & Laboratory)","Medical & Dental","Consultants","Consultant Pathology"]
["143Y","Consultant General Adult Psychiatrist","Medical & Dental","Consultants","Consultant Psychiatry"]
["149X","Casualty Officer","Medical & Dental","Medical/ Dental, other","Other Medical"]
["152X","General Practitioner","Medical & Dental","Medical/ Dental, other","Other Medical"]
["166X","Consultant Learning Disability Psychiatry Child","Medical & Dental","Consultants","Consultant Psychiatry"]
["169T","Consultant in Emergency Medicine","Medical & Dental","Consultants","Consultant Emergency Medicine"]
["180X","Consultant in Rehabilitation Medicine","Medical & Dental","Consultants","Consultant Medicine"]
["183T","Medical Officer, Senior","Medical & Dental","Medical/ Dental, other","Other Medical"]
["188Y","Associate Specialist","Medical & Dental","Medical/ Dental, other","Other Medical"]
["194T","Consultant Physician in Clinical Pharmacology & Therapeutics","Medical & Dental","Consultants","Consultant Medicine"]
["197X","Dental Surgeon, Principal","Medical & Dental","Medical/ Dental, other","Dentists"]
["200X","Nurse Planner","Nursing & Midwifery","Nursing/ Midwifery other","Other Nursing/ Midwifery"]
["202X","Staff Nurse General (Community)","Nursing & Midwifery","Staff Nurse/ Staff Midwife","Staff Nurses [General/ Children's]"]
["213T","Staff Nurse - Intellectual Disability","Nursing & Midwifery","Staff Nurse/ Staff Midwife","Staff Nurse [Intellectual Disability]"]
["219X","Staff Nurse, Senior (Children's)","Nursing & Midwifery","Staff Nurse/ Staff Midwife","Staff Nurses [General/ Children's]"]
["233X","Clinical Nurse Manager 3","Nursing & Midwifery","Nurse/ Midwife Manager","Clinical Nurse/ Midwife Manager"]
["238Y","Clinical Nurse Manager 3 (Mental Health)","Nursing & Midwifery","Nurse/ Midwife Manager","Clinical Nurse/ Midwife Manager"]
["241Y","Nursing/ Midwifery Clinical Placement Co-ordinator","Nursing & Midwifery","Nursing/ Midwifery other","Nursing Education/Clinical"]
["247X","Principal Nurse Tutor","Nursing & Midwifery","Nursing/ Midwifery other","Nursing Education/Clinical"]
["266X","Practice Nurse Facilitator","Nursing & Midwifery","Nursing/ Midwifery other","Other Nursing/ Midwifery"]
["268Y","Professional Development Nursing Officer","Nursing & Midwifery","Nursing/ Midwifery other","Nursing Education/Clinical"]
["272Y","Staff Nurse, Dual Qualified (Intellectual Disability)","Nursing & Midwifery","Staff Nurse/ Staff Midwife","Staff Nurse [Intellectual Disability]"]
["281X","Director of Public Health Nursing, Assistant","Nursing & Midwifery","Nurse/ Midwife Manager","Director Nursing/Midwifery, Assistant"]
["305T","Endocrinology Technician","Health & Social Care Professionals","H&SC, Other","Other Health & Social Care"]
["309X","Radiography Service Manager, I","Health & Social Care Professionals","Health Science/ Diagnostics","Radiographers"]
["310X","Radiography Service Manager, II","Health & Social Care Professionals","Health Science/ Diagnostics","Radiographers"]
["314X","Physiotherapist","Health & Social Care Professionals","Therapy Professions","Physiotherapists"]
["319X","Environmental Health Officer","Health & Social Care Professionals","H&SC, Other","Environmental Health Officers"]
["321T","Clinical Photographer, Senior","Health & Social Care Professionals","H&SC, Other","Other Health & Social Care"]
["322Y","Vascular Physiologist, Senior","Health & Social Care Professionals","Health Science/ Diagnostics","Vascular Physiologists"]
["331X","Occupational Therapist Manager","Health & Social Care Professionals","Therapy Professions","Occupational Therapists"]
["336Y","Speech & Language Therapist","Health & Social Care Professionals","Therapy Professions","Speech & Language Therapists"]
["345X","Audiologist, Chief","Health & Social Care Professionals","Health Science/ Diagnostics","Audiology"]
["350Y","Social Worker, Principal","Health & Social Care Professionals","Social Workers","Social Workers"]
["359T","E.C.G. Technician","Health & Social Care Professionals","Health Science/ Diagnostics","E.C.G. Technicians"]
["362X","Pharmaceutical Technician, Student","Health & Social Care Professionals","H&SC, Other","HSCP Trainees/ Students"]
["367Y","Psychologist, Senior Clinical","Health & Social Care Professionals","Psychologists","Psychologists"]
["376X","Biochemist, Senior","Health & Social Care Professionals","Health Science/ Diagnostics","Biochemists"]
["384Y","Audiologist, Senior","Health & Social Care Professionals","Health Science/ Diagnostics","Audiology"]
["391T","Counsellor","Health & Social Care Professionals","H&SC, Other","Counsellor Therapists"]
["392X","Social Care Manager","Health & Social Care Professionals","Social Care","Social Care"]
["392Y","Social Care Manager, Deputy","Health & Social Care Professionals","Social Care","Social Care"]
["393X","Laboratory Manager","Health & Social Care Professionals","Health Science/ Diagnostics","Medical Science"]
["398Y","Radiation Therapy Service Manager II","Health & Social Care Professionals","Health Science/ Diagnostics","Radiation Therapists"]
["402T","Catering Supervisor, Assistant.","General Support","Support","Catering"]
["409X","Housekeeper, Assistant","General Support","Support","Household Services"]
["413Y","Driver","General Support","Support","Other Support"]
["420Y","Porter, Head","General Support","Support","Portering"]
["422X","Dark Room Technician/Porter","General Support","Support","Other Support"]
["424X","Boilerman","General Support","Maintenance/ Technical","Maintenance"]
["427Y","Chef, Senior","General Support","Support","Catering"]
["448Y","Porter, Theatre","General Support","Support","Portering"]
["451Y","Chef I","General Support","Support","Catering"]
["496T","Ward Clerk","General Support","Support","Other Support"]
["506T","Maintenance Foreman, Assistant","General Support","Maintenance/ Technical","Maintenance"]
["507T","Maintenance Helper","General Support","Maintenance/ Technical","Maintenance"]
["515Y","Plasterer","General Support","Maintenance/ Technical","Maintenance"]
["532Y","Draughtsman/Technician I","General Support","Maintenance/ Technical","Technical Services"]
["546T","Technical Services Officer, Chief Asst.","General Support","Maintenance/ Technical","Technical Services"]
["546Y","Technical Services Officer","General Support","Maintenance/ Technical","Technical Services"]
["555T","Technical Services Officer, Senior Asst.","General Support","Maintenance/ Technical","Technical Services"]
["555X","Technical Services Officer, Assistant","General Support","Maintenance/ Technical","Technical Services"]
["699X","Other Patient & Client Care Unclassified","Patient & Client Care","Care, other","Other Care Grades"]

{"sheet":"Initiative","index":3,"n_rows":338,"n_cols":10,"rows_kept":338,"cut":false,"hidden":true,"merged":[]}
["Ref","Initiative","Service","Workstream Mapped",null,"2021 Our Team","2021 Liz Team","Amalgamated List","2022 LOD","Winter Plan 2021/2022"]
[2.1,"PPE","NAT","H&WB Corporate & National Services",null,"Acute Alt. Pathways","Access to Care Fund","Access to Care Fund","Acute Capacity","Acute Capacity"]
[2.1,"PPE","NAT","H&WB Corporate & National Services",null,"Access to Care","Access to Care Fund - CHI","Accommodation - Vulnerable ","Community Capacity","Community Capacity"]
[2.1,"PPE","NAT","H&WB Corporate & National Services",null,"Acute Beds","Access to Care Fund - DMHG","Acute Beds","Integrated Pathways","Integrated Pathways"]
[2.2000000000000002,"Test and Trace","NAT","H&WB Corporate & National Services",null,"Acute Restart","Access to Care Fund - IEHG","Acute Restart","Public Health","Public Health"]
[2.2000000000000002,"Test and Trace","NAT","H&WB Corporate & National Services",null,"AMRIC","Access to Care Fund - Private Hospitals","Acute Vacancy (Replacement)","eHealth"]
[2.2000000000000002,"Test and Trace","NAT","H&WB Corporate & National Services",null,"Baseline & Capacity","Access to Care Fund - RCSI","Alternative Pathways"]
[2.2000000000000002,"Test and Trace","NAT","H&WB Corporate & National Services",null,"Bowel Screen Expansion","Access to Care Fund - SAOLTA","Alternative Placements from Nursing Homes"]
[2.2000000000000002,"Test and Trace","NAT","H&WB Corporate & National Services",null,"Breastcheck","Access to Care Fund - SSWHG","Alternative Pre-Hospital Pathway"]
[2.2000000000000002,"Test and Trace","NAT","H&WB Corporate & National Services",null,"Cancer Services","Access to Care Fund - ULHG","Antimicrobial Resistance in Infection Control (AMRIC)"]
[2.2000000000000002,"Test and Trace","NAT","H&WB Corporate & National Services",null,"CHNs","Accommodation - Vulnerable ","Brexit"]
[2.2000000000000002,"Test and Trace","NAT","H&WB Corporate & National Services",null,"CIT","Acute Beds (1,146)","Cancer Restart"]
[2.2000000000000002,"Test and Trace","NAT","H&WB Corporate & National Services",null,"Clinical Governance","Acute Hospital Service Restart - Children's Health Ireland (CHI)","Cancer Screening"]
[2.2000000000000002,"Test and Trace","NAT","H&WB Corporate & National Services",null,"Colposcopy Services","Acute Hospital Service Restart - Dublin Midlands Hospital Group","Cancer Strategy"]
[2.2000000000000002,"Test and Trace","NAT","H&WB Corporate & National Services",null,"Community Paramedic","Acute Hospital Service Restart - Dublin Midlands Hospitals Group","Care Redesign"]
[2.2000000000000002,"Test and Trace","NAT","H&WB Corporate & National Services",null,"Day Services Recovery","Acute Hospital Service Restart - Ireland East Hospitals Group","CHO Vacancy (Replacement)"]
[2.2000000000000002,"Test and Trace","NAT","H&WB Corporate & National Services",null,"Decongregation","Acute Hospital Service Restart - RCSI Hospitals Group","Community Assessment Hubs"]
[2.2000000000000002,"Test and Trace","NAT","H&WB Corporate & National Services",null,"Dementia","Acute Hospital Service Restart - Saolta University Healthcare Group","Community Beds (IC)"]
[2.2000000000000002,"Test and Trace","NAT","H&WB Corporate & National Services",null,"Disability Hours (Adults)","Acute Hospital Service Restart - South/South West Hospitals Group","Community Intervention Teams (CIT)"]
[2.2000000000000002,"Test and Trace","NAT","H&WB Corporate & National Services",null,"Disability Hours (Child)","Acute Hospital Service Restart - University of Limerick Hospitals Group","Community Paramedicine"]
[2.2000000000000002,"Test and Trace","NAT","H&WB Corporate & National Services",null,"eHealth","Alternative Care Pathways - Dublin Midlands Hospitals Group","Corporate"]
[2.2000000000000002,"Test and Trace","NAT","H&WB Corporate & National Services",null,"Emergency Residential","Alternative Care Pathways - Ireland East Hospitals Group","Critical Care Retrieval"]
[2.2000000000000002,"Test and Trace","NAT","H&WB Corporate & National Services",null,"GP Access to Diagnostics","Alternative Care Pathways - National","Day Services Recovery"]
[2.2000000000000002,"Test and Trace","NAT","H&WB Corporate & National Services",null,"Histopathology & Data An","Alternative Care Pathways - RCSI Hospitals Group","Decongregation"]
[2.2000000000000002,"Test and Trace","NAT","H&WB Corporate & National Services",null,"Home Care","Alternative Care Pathways - Saolta University Healthcare Group","eHealth"]
[2.2000000000000002,"Test and Trace","NAT","H&WB Corporate & National Services",null,"Home Carer Supports","Alternative Care Pathways - South/South West Hospital Group","Enhance Local Recruitment"]
[2.2000000000000002,"Test and Trace","NAT","H&WB Corporate & National Services",null,"IC Beds","Alternative Care Pathways - University of Limerick HG","Enhanced Community Healthcare Networks"]
[2.2000000000000002,"Test and Trace","NAT","H&WB Corporate & National Services",null,"ICPCDM","Alternative Placements from Nursing Homes (18)","Flu Leads"]
[2.2000000000000002,"Test and Trace","NAT","H&WB Corporate & National Services",null,"ICPCDM Acute","Alternative Pre-Hospital Pathway (Cork/Kerry","Flu Vaccination Campaign"]
[2.2000000000000002,"Test and Trace","NAT","H&WB Corporate & National Services",null,"ICPOP","Antimicrobial Resistance in Infection Control (AMRIC)","GP access to Diagnostics"]
[2.2000000000000002,"Test and Trace","NAT","H&WB Corporate & National Services",null,"ICPOP Acutes","Assessment of Need (Adults 19-21yrs)","Health & Wellbeing"]
[2.2000000000000002,"Test and Trace","NAT","H&WB Corporate & National Services",null,"IPC","Baseline and Capacity","Health Analytics & Insights"]
[2.2000000000000002,"Test and Trace","NAT","H&WB Corporate & National Services",null,"Key Enablers","Bowel Screening","Healthcare Vis Platform"]
[2.2000000000000002,"Test and Trace","NAT","H&WB Corporate & National Services",null,"Mental Health","Breastcheck","Healthy Communities"]
[2.2000000000000002,"Test and Trace","NAT","H&WB Corporate & National Services",null,"NAS CCRS","Brexit","Histopathology & Data An"]
[2.2000000000000002,"Test and Trace","NAT","H&WB Corporate & National Services",null,"NASCCRS","Cancer Services Restoration","Home Care"]
[2.2000000000000002,"Test and Trace","NAT","H&WB Corporate & National Services",null,"NCSL (Screening Lab)","Cancer Strategy","Home Support (Home Care Packages)"]
[2.2000000000000002,"Test and Trace","NAT","H&WB Corporate & National Services",null,"NEOC Clinical Hub","CIT","Homelessness"]
[2.2000000000000002,"Test and Trace","NAT","H&WB Corporate & National Services",null,"NWIHP","Client Mgmt System","Hospital Group Vacancy (Replacement)"]
[2.2000000000000002,"Test and Trace","NAT","H&WB Corporate & National Services",null,"ODTI","Clincal Governance","ICPCDM"]
[2.2000000000000002,"Test and Trace","NAT","H&WB Corporate & National Services",null,"Operational Governance","Colposcopy","ICPCDM Acute"]
[2.2000000000000002,"Test and Trace","NAT","H&WB Corporate & National Services",null,"PA Hours","Community Assessment Hubs","ICPOP"]
[2.2000000000000002,"Test and Trace","NAT","H&WB Corporate & National Services",null,"Paediatrics","Community Paramedicine","ICPOP Acutes"]
[2.2999999999999998,"Access to Care","ACU","Acute Hospital Services",null,"Palliative Care","Community Restart","In year Transitions from Tusla to HSE (residential)"]
[2.2999999999999998,"Access to Care","ACU","Acute Hospital Services",null,"Pathfinder","Critical Care beds (52)","Infection Prevention and Control"]
[2.2999999999999998,"Access to Care","ACU","Acute Hospital Services",null,"Planned Residential","Critical Care Retrieval","Intensive Support Packages"]
[2.2999999999999998,"Access to Care","ACU","Acute Hospital Services",null,"Portfolio Management","Day Services Recovery","Key enablers"]
[2.2999999999999998,"Access to Care","ACU","Acute Hospital Services",null,"PPE","Decongregation","Medical Helpline"]
[2.2999999999999998,"Access to Care","ACU","Acute Hospital Services",null,"Public Health","ECC Networks","Medication Safety"]
[2.2999999999999998,"Access to Care","ACU","Acute Hospital Services",null,"Quality Risk Assurance","eHealth","Mental Health - Sharing the Vision"]
[2.2999999999999998,"Access to Care","ACU","Acute Hospital Services",null,"Resource Managers","Flu Leads","National Ambulance Service Critical Care Retrieval Service (NASCCRS)"]
[2.2999999999999998,"Access to Care","ACU","Acute Hospital Services",null,"Respite","Fraility Service","National Ambulance Service Portfolio Management Office (NASPMO)"]
[2.5,"IPC","CHWB","Community Health & Wellbeing",null,"Respite high support","GP Access to Diagnostics - BNP","National Ambulance Service Strategic Plan"]
[2.5,"IPC","CHWB","Community Health & Wellbeing",null,"Safe Staffing","GP Access to Diagnostics - CT","National Dementia Strategy"]
[2.5,"IPC","CHWB","Community Health & Wellbeing",null,"School Leavers","GP Access to Diagnostics - DEXA","National Maternity Strategy and New Models of Care for Gynaecology."]
[2.5,"IPC","CHWB","Community Health & Wellbeing",null,"Staff H&WB","GP Access to Diagnostics - Echo","National Vacancy (Replacement)"]
[2.5,"IPC","CHWB","Community Health & Wellbeing",null,"Sub Acute","GP Access to Diagnostics - MRI","NCSL (Screening Lab)"]
[2.5,"IPC","CHWB","Community Health & Wellbeing",null,"Test and Trace","GP Access to Diagnostics - Spirometry","NEOC Clinical Hub"]
[2.7,"Home Care","OP","Older People",null,"Trauma","GP Access to Diagnostics - X-Ray","New Service Development"]
[2.7,"Home Care","OP","Older People",null,"Trauma Strategy","GP Covid-19 Contract (to end Q1)","NWIHP"]
[2.7,"Home Care","OP","Older People",null,"Tusla over 18","Histopathology & Data An","ODTI Strategy"]
[3.1,"Acute Beds","ACU","Acute Hospital Services",null,"Younger people in NHs","Home Care Supports","Operational Governance"]
[3.1,"Acute Beds","ACU","Acute Hospital Services",null,"Other Initiatives","HomeCare","Paediatric Model of Care"]
[3.1,"Acute Beds","ACU","Acute Hospital Services",null,null,"Homelessness - CHO1","Palliative Care"]
[3.1,"Acute Beds","ACU","Acute Hospital Services",null,null,"Homelessness - CHO2","Pathfinder"]
[3.1,"Acute Beds","ACU","Acute Hospital Services",null,null,"Homelessness - CHO3","Personal Assistance Hours"]
[3.1,"Acute Beds","ACU","Acute Hospital Services",null,null,"Homelessness - CHO5","Planning & Modelling"]
[3.2,"Sub Acute","ACU","Acute Hospital Services",null,null,"Homelessness - CHO7","PPE"]
[3.2,"Sub Acute","ACU","Acute Hospital Services",null,null,"Homelessness - CHO8","Primary Care (New)"]
[3.2,"Sub Acute","ACU","Acute Hospital Services",null,null,"Homelessness - CHO9","Progressing Disability Services (Adults)"]
[3.2,"Sub Acute","ACU","Acute Hospital Services",null,null,"Homelessness - Other","Progressing Disability Services (Children)"]
[3.2,"Sub Acute","ACU","Acute Hospital Services",null,null,"Homelessness -CHO4","Public Health"]
[3.2,"Sub Acute","ACU","Acute Hospital Services",null,null,"Hospices","QPS"]
[3.3,"IC Beds","OP","Older People",null,null,"Housing Options for our Ageing Population","Residential Placements: emergency"]
[3.3,"IC Beds","OP","Older People",null,null,"ICPCDM","Residential Placements: planned"]
[3.3,"IC Beds","OP","Older People",null,null,"ICPCDM Acutes","Respite"]
[3.3,"IC Beds","OP","Older People",null,null,"ICPOP","Respite High Support"]
[3.3,"IC Beds","OP","Older People",null,null,"In Year Transitions from Tusla to HSE","Safe staffing implementation and pilot"]
[3.3,"IC Beds","OP","Older People",null,null,"Infection Prevention and Control","Scheduled care"]
[3.3,"IC Beds","OP","Older People",null,null,"Innovation and Portfolio Management Office","School leavers/Day Services"]
[3.3,"IC Beds","OP","Older People",null,null,"Intermediate care beds","Staff Health & Well-being"]
[3.3,"IC Beds","OP","Older People",null,null,"Intermediate care beds (private purchase)","Sub Acute (New)"]
[3.3,"IC Beds","OP","Older People",null,null,"Interval Cancer Report","Sub Acute Beds"]
[3.3,"IC Beds","OP","Older People",null,null,"Key Enablers - Planning & Modelling","Testing and Tracing"]
[3.3,"IC Beds","OP","Older People",null,null,"Mental Health - Sharing the Vision","Trauma"]
[3.3,"IC Beds","OP","Older People",null,null,"Mental Health Service Supports","Trauma Strategy"]
[3.4,"Home Carer Supports","OP","Older People",null,null,"NAS CCRS","Tusla over 18"]
["3.5a","CHNs","PC","Primary Care",null,null,"National Carer’s Strategy","Vaccination"]
["3.5a","CHNs","PC","Primary Care",null,null,"National Dementia Strategy","Younger people in NHs"]
["3.5a","CHNs","PC","Primary Care",null,null,"National Maternity Strategy and New Models of Care for Gynaecology","Other Initiatives"]
["3.5a","CHNs","PC","Primary Care",null,null,"National Positive Ageing Strategy"]
["3.5b","ICPOP","OP","Older People",null,null,"NCSL (Screening Lab)"]
["3.5b","ICPOP","OP","Older People",null,null,"NEOC CLinical Hub"]
["3.5b","ICPOP","OP","Older People",null,null,"New Drugs"]
["3.5b","ICPOP","OP","Older People",null,null,"ODTI"]
["3.5b","ICPOP","OP","Older People",null,null,"OPAT"]
["3.5b","ICPOP","OP","Older People",null,null,"Operational Governance"]
["3.5b","ICPOP","OP","Older People",null,null,"PA Hours"]
["3.5b","ICPOP","OP","Older People",null,null,"Paediatric Model of Care"]
["3.5b","ICPOP","OP","Older People",null,null,"Palliative Care"]
["3.5b","ICPOP","OP","Older People",null,null,"Pathfinder"]
["3.5b","ICPOP","OP","Older People",null,null,"Planned Residential "]
["3.5c","ICPOP Acutes","ACU","Acute Hospital Services",null,null,"PPE"]
["3.5c","ICPOP Acutes","ACU","Acute Hospital Services",null,null,"Primary Care (New)"]
["3.5c","ICPOP Acutes","ACU","Acute Hospital Services",null,null,"Progressing Children’s Disability"]
["3.5c","ICPOP Acutes","ACU","Acute Hospital Services",null,null,"Public Health Workforce"]
["3.5c","ICPOP Acutes","ACU","Acute Hospital Services",null,null,"Residential Placement Emergency"]
["3.5c","ICPOP Acutes","ACU","Acute Hospital Services",null,null,"Resource Managers"]
["3.5c","ICPOP Acutes","ACU","Acute Hospital Services",null,null,"Respite"]
["3.5c","ICPOP Acutes","ACU","Acute Hospital Services",null,null,"Respite High Support"]
["3.5c","ICPOP Acutes","ACU","Acute Hospital Services",null,null,"Safe staffing implementation and polit "]
["3.5c","ICPOP Acutes","ACU","Acute Hospital Services",null,null,"School Leavers"]
["3.5c","ICPOP Acutes","ACU","Acute Hospital Services",null,null,"Staff health & Wellbeing"]
["3.5d","ICPCDM","PC","Primary Care",null,null,"Sub Acute Beds"]
["3.5d","ICPCDM","PC","Primary Care",null,null,"TAPS"]
["3.5d","ICPCDM","PC","Primary Care",null,null,"Testing, Tracing and Public Health (excludes €205m Contingency)"]
["3.5d","ICPCDM","PC","Primary Care",null,null,"Trauma"]
["3.5d","ICPCDM","PC","Primary Care",null,null,"Trauma Strategy"]
["3.5d","ICPCDM","PC","Primary Care",null,null,"Tusla Co-funded"]
["3.5d","ICPCDM","PC","Primary Care",null,null,"Vaccination"]
["3.5d","ICPCDM","PC","Primary Care"]
["3.5d","ICPCDM","PC","Primary Care"]
["3.5d","ICPCDM","PC","Primary Care"]
["3.5e","ICPCDM Acute","ACU","Acute Hospital Services"]
["3.5e","ICPCDM Acute","ACU","Acute Hospital Services"]
["3.5e","ICPCDM Acute","ACU","Acute Hospital Services"]
["3.5e","ICPCDM Acute","ACU","Acute Hospital Services"]
["3.5e","ICPCDM Acute","ACU","Acute Hospital Services"]
["3.5e","ICPCDM Acute","ACU","Acute Hospital Services"]
["3.5e","ICPCDM Acute","ACU","Acute Hospital Services"]
["3.5e","ICPCDM Acute","ACU","Acute Hospital Services"]
["3.5e","ICPCDM Acute","ACU","Acute Hospital Services"]
["3.5e","ICPCDM Acute","ACU","Acute Hospital Services"]
["3.5e","ICPCDM Acute","ACU","Acute Hospital Services"]
["3.5f","CIT","PC","Primary Care"]
["3.5f","CIT","PC","Primary Care"]
["3.5f","CIT","PC","Primary Care"]
["3.6.1","NEOC Clinical Hub","NAS","Ambulance Services"]
["3.6.1","NEOC Clinical Hub","NAS","Ambulance Services"]
["3.6.2","Community Paramedic","NAS","Ambulance Services"]
["3.6.3","NASCCRS","NAS","Ambulance Services"]
["3.6.4","Pathfinder","NAS","Ambulance Services"]
["3.6.4","Pathfinder","NAS","Ambulance Services"]
["3.6.5","Portfolio Management","NAS","Ambulance Services"]
["3.6.5","Portfolio Management","NAS","Ambulance Services"]
[3.7,"GP Access to Diagnostics","PC","Primary Care"]
[3.7,"GP Access to Diagnostics","PC","Primary Care"]
[3.7,"GP Access to Diagnostics","PC","Primary Care"]
[3.8,"Disability Hours (Child)","IDS","Disabilities"]
[3.9,"Disability Hours (Adults)","IDS","Disabilities"]
[3.9,"Disability Hours (Adults)","IDS","Disabilities"]
[3.11,"Day Services Recovery","IDS","Disabilities"]
[3.11,"Day Services Recovery","IDS","Disabilities"]
[3.12,"Tusla over 18","IDS","Disabilities"]
[3.12,"Tusla over 18","IDS","Disabilities"]
[3.13,"School Leavers","IDS","Disabilities"]
[3.14,"Respite","IDS","Disabilities"]
[3.14,"Respite","IDS","Disabilities"]
[3.14,"Respite","IDS","Disabilities"]
[3.15,"Planned Residential","IDS","Disabilities"]
[3.15,"Planned Residential","IDS","Disabilities"]
[3.15,"Planned Residential","IDS","Disabilities"]
[3.16,"Younger people in NHs","IDS","Disabilities"]
[3.16,"Younger people in NHs","IDS","Disabilities"]
[3.16,"Younger people in NHs","IDS","Disabilities"]
[3.17," Decongregation","IDS","Disabilities"]
[3.17," Decongregation","IDS","Disabilities"]
[3.19,"Respite high support","IDS","Disabilities"]
[3.21,"Emergency Residential","IDS","Disabilities"]
[3.21,"Emergency Residential","IDS","Disabilities"]
[3.21,"Emergency Residential","IDS","Disabilities"]
[3.23,"PA Hours","IDS","Disabilities"]
[3.24,"Mental Health","MH","Mental Health"]
[3.24,"Mental Health","MH","Mental Health"]
[3.24,"Mental Health","MH","Mental Health"]
[3.24,"Mental Health","MH","Mental Health"]
[3.24,"Mental Health","MH","Mental Health"]
[3.24,"Mental Health","MH","Mental Health"]
[3.24,"Mental Health","MH","Mental Health"]
[3.24,"Mental Health","MH","Mental Health"]
[3.24,"Mental Health","MH","Mental Health"]
[3.24,"Mental Health","MH","Mental Health"]
[3.24,"Mental Health","MH","Mental Health"]
[3.24,"Mental Health","MH","Mental Health"]
[3.24,"Mental Health","MH","Mental Health"]
[3.25,"Cancer Services","ACU","Acute Hospital Services"]
[3.25,"Cancer Services","ACU","Acute Hospital Services"]
[3.25,"Cancer Services","ACU","Acute Hospital Services"]
[3.25,"Cancer Services","ACU","Acute Hospital Services"]
[3.25,"Cancer Services","ACU","Acute Hospital Services"]
[3.25,"Cancer Services","ACU","Acute Hospital Services"]
[3.25,"Cancer Services","ACU","Acute Hospital Services"]
[3.25,"Cancer Services","ACU","Acute Hospital Services"]
[3.25,"Cancer Services","ACU","Acute Hospital Services"]
[3.25,"Cancer Services","ACU","Acute Hospital Services"]
[3.26,"NWIHP","ACU","Acute Hospital Services"]
[3.26,"NWIHP","ACU","Acute Hospital Services"]
[3.26,"NWIHP","ACU","Acute Hospital Services"]
[3.26,"NWIHP","ACU","Acute Hospital Services"]
[3.26,"NWIHP","ACU","Acute Hospital Services"]
[3.26,"NWIHP","ACU","Acute Hospital Services"]
[3.26,"NWIHP","ACU","Acute Hospital Services"]
[3.26,"NWIHP","ACU","Acute Hospital Services"]
[3.26,"NWIHP","ACU","Acute Hospital Services"]
[3.27,"Trauma","ACU","Acute Hospital Services"]
[3.27,"Trauma","ACU","Acute Hospital Services"]
[3.27,"Trauma","ACU","Acute Hospital Services"]
[3.27,"Trauma","ACU","Acute Hospital Services"]
[3.27,"Trauma","ACU","Acute Hospital Services"]
[3.27,"Trauma","ACU","Acute Hospital Services"]
[3.27,"Trauma","ACU","Acute Hospital Services"]
[3.27,"Trauma","ACU","Acute Hospital Services"]
[3.27,"Trauma","ACU","Acute Hospital Services"]
[3.27,"Trauma","ACU","Acute Hospital Services"]
[3.28,"Paediatrics","ACU","Acute Hospital Services"]
[3.28,"Paediatrics","ACU","Acute Hospital Services"]
[3.28,"Paediatrics","ACU","Acute Hospital Services"]
[3.28,"Paediatrics","ACU","Acute Hospital Services"]
[3.28,"Paediatrics","ACU","Acute Hospital Services"]
[3.28,"Paediatrics","ACU","Acute Hospital Services"]
[3.28,"Paediatrics","ACU","Acute Hospital Services"]
[3.28,"Paediatrics","ACU","Acute Hospital Services"]
[3.28,"Paediatrics","ACU","Acute Hospital Services"]
[3.28,"Paediatrics","ACU","Acute Hospital Services"]
[3.28,"Paediatrics","ACU","Acute Hospital Services"]
[3.28,"Paediatrics","ACU","Acute Hospital Services"]
[3.28,"Paediatrics","ACU","Acute Hospital Services"]
["3.6.7","Resource Managers","NAS","Ambulance Services"]
["3.29b","Trauma Strategy","NAS","Ambulance Services"]
["3.29c","Clinical Governance","NAS","Ambulance Services"]
["3.29d","Baseline & Capacity","NAS","Ambulance Services"]
["3.29e","Quality Risk Assurance","NAS","Ambulance Services"]
["3.29f","Operational Governance","NAS","Ambulance Services"]
["3.29f","Operational Governance","NAS","Ambulance Services"]
["3.29f","Operational Governance","NAS","Ambulance Services"]
["3.29g","NAS CCRS","NAS","Ambulance Services"]
["3.29g","NAS CCRS","NAS","Ambulance Services"]
["3.29g","NAS CCRS","NAS","Ambulance Services"]
["3.29g","NAS CCRS","NAS","Ambulance Services"]
["3.29g","NAS CCRS","NAS","Ambulance Services"]
["3.29g","NAS CCRS","NAS","Ambulance Services"]
["3.29g","NAS CCRS","NAS","Ambulance Services"]
["3.29g","NAS CCRS","NAS","Ambulance Services"]
[3.31,"ODTI","ACU","Acute Hospital Services"]
[3.31,"ODTI","ACU","Acute Hospital Services"]
[3.31,"ODTI","ACU","Acute Hospital Services"]
[3.31,"ODTI","ACU","Acute Hospital Services"]
[3.31,"ODTI","ACU","Acute Hospital Services"]
[3.31,"ODTI","ACU","Acute Hospital Services"]
[3.33,"Safe Staffing","ACU","Acute Hospital Services"]
[3.34,"AMRIC","ACU","Acute Hospital Services"]
[3.34,"AMRIC","ACU","Acute Hospital Services"]
[3.34,"AMRIC","ACU","Acute Hospital Services"]
[3.34,"AMRIC","ACU","Acute Hospital Services"]
[3.34,"AMRIC","ACU","Acute Hospital Services"]
[3.34,"AMRIC","ACU","Acute Hospital Services"]
[3.34,"AMRIC","ACU","Acute Hospital Services"]
[3.34,"AMRIC","ACU","Acute Hospital Services"]
[3.34,"AMRIC","ACU","Acute Hospital Services"]
[3.34,"AMRIC","ACU","Acute Hospital Services"]
[3.35,"Dementia","OP","Older People"]
[3.35,"Dementia","OP","Older People"]
[3.35,"Dementia","OP","Older People"]
[3.35,"Dementia","OP","Older People"]
[3.35,"Dementia","OP","Older People"]
[3.35,"Dementia","OP","Older People"]
[3.35,"Dementia","OP","Older People"]
[3.35,"Dementia","OP","Older People"]
[3.35,"Dementia","OP","Older People"]
[3.35,"Dementia","OP","Older People"]
[3.36,"Palliative Care","NAT","H&WB Corporate & National Services"]
[3.36,"Palliative Care","NAT","H&WB Corporate & National Services"]
[3.36,"Palliative Care","NAT","H&WB Corporate & National Services"]
[3.41,"Staff H&WB","NAT","H&WB Corporate & National Services"]
[3.41,"Staff H&WB","NAT","H&WB Corporate & National Services"]
[3.41,"Staff H&WB","NAT","H&WB Corporate & National Services"]
[3.41,"Staff H&WB","NAT","H&WB Corporate & National Services"]
[3.42,"Public Health","NAT","H&WB Corporate & National Services"]
[3.42,"Public Health","NAT","H&WB Corporate & National Services"]
[3.42,"Public Health","NAT","H&WB Corporate & National Services"]
[3.42,"Public Health","NAT","H&WB Corporate & National Services"]
[3.42,"Public Health","NAT","H&WB Corporate & National Services"]
[3.42,"Public Health","NAT","H&WB Corporate & National Services"]
[3.42,"Public Health","NAT","H&WB Corporate & National Services"]
[3.42,"Public Health","NAT","H&WB Corporate & National Services"]
[3.42,"Public Health","NAT","H&WB Corporate & National Services"]
[3.42,"Public Health","NAT","H&WB Corporate & National Services"]
[3.42,"Public Health","NAT","H&WB Corporate & National Services"]
[3.42,"Public Health","NAT","H&WB Corporate & National Services"]
[3.42,"Public Health","NAT","H&WB Corporate & National Services"]
[3.42,"Public Health","NAT","H&WB Corporate & National Services"]
[3.42,"Public Health","NAT","H&WB Corporate & National Services"]
[3.42,"Public Health","NAT","H&WB Corporate & National Services"]
[3.42,"Public Health","NAT","H&WB Corporate & National Services"]
[3.42,"Public Health","NAT","H&WB Corporate & National Services"]
[3.42,"Public Health","NAT","H&WB Corporate & National Services"]
[3.42,"Public Health","NAT","H&WB Corporate & National Services"]
[3.42,"Public Health","NAT","H&WB Corporate & National Services"]
[3.43," Acute Alt. Pathways","ACU","Acute Hospital Services"]
[3.43," Acute Alt. Pathways","ACU","Acute Hospital Services"]
[3.43," Acute Alt. Pathways","ACU","Acute Hospital Services"]
[3.43," Acute Alt. Pathways","ACU","Acute Hospital Services"]
[3.43," Acute Alt. Pathways","ACU","Acute Hospital Services"]
[3.43," Acute Alt. Pathways","ACU","Acute Hospital Services"]
[3.44,"Acute Restart","ACU","Acute Hospital Services"]
[3.44,"Acute Restart","ACU","Acute Hospital Services"]
[3.44,"Acute Restart","ACU","Acute Hospital Services"]
[3.44,"Acute Restart","ACU","Acute Hospital Services"]
[3.44,"Acute Restart","ACU","Acute Hospital Services"]
[3.44,"Acute Restart","ACU","Acute Hospital Services"]
["3.45a","Bowel Screen Expansion","ACU","Acute Hospital Services"]
["3.45b","Breastcheck","ACU","Acute Hospital Services"]
["3.45b","Breastcheck","ACU","Acute Hospital Services"]
["3.45c","Histopathology & Data An","ACU","Acute Hospital Services"]
["3.45c","Histopathology & Data An","ACU","Acute Hospital Services"]
["3.45d","Colposcopy Services","ACU","Acute Hospital Services"]
["3.45d","Colposcopy Services","ACU","Acute Hospital Services"]
["3.45d","Colposcopy Services","ACU","Acute Hospital Services"]
["3.45d","Colposcopy Services","ACU","Acute Hospital Services"]
["3.45d","Colposcopy Services","ACU","Acute Hospital Services"]
["3.45d","Colposcopy Services","ACU","Acute Hospital Services"]
["3.45g","NCSL (Screening Lab)","ACU","Acute Hospital Services"]
["3.45g","NCSL (Screening Lab)","ACU","Acute Hospital Services"]
["3.45g","NCSL (Screening Lab)","ACU","Acute Hospital Services"]
["3.45g","NCSL (Screening Lab)","ACU","Acute Hospital Services"]
[3.47,"eHealth","NAT","H&WB Corporate & National Services"]
[3.47,"eHealth","NAT","H&WB Corporate & National Services"]
[3.47,"eHealth","NAT","H&WB Corporate & National Services"]
[3.48,"Key Enablers","NAT","H&WB Corporate & National Services"]
[3.48,"Key Enablers","NAT","H&WB Corporate & National Services"]
[3.48,"Key Enablers","NAT","H&WB Corporate & National Services"]
[3.48,"Key Enablers","NAT","H&WB Corporate & National Services"]
[3.48,"Key Enablers","NAT","H&WB Corporate & National Services"]
[3.48,"Key Enablers","NAT","H&WB Corporate & National Services"]
[3.48,"Key Enablers","NAT","H&WB Corporate & National Services"]
[3.48,"Key Enablers","NAT","H&WB Corporate & National Services"]
[3.48,"Key Enablers","NAT","H&WB Corporate & National Services"]
[3.48,"Key Enablers","NAT","H&WB Corporate & National Services"]

{"sheet":"Drop Down Lists (DO NOT DELETE)","index":4,"n_rows":722,"n_cols":49,"rows_kept":722,"cut":false,"hidden":true,"merged":[]}
["Code","Grade",null,"CHO/HG","Column1","Funding Stream",null,"Initiative",null,"Service Area",null,"Division",null,"Recurring",null,"Contract Type","CHO/HG","Location","Location","Location","Location","Location","Location",null,"Children's Health Ireland","CHO 1","CHO 2","CHO 3","CHO 4","CHO 5","CHO 6","CHO 7","CHO 8","CHO 9","Corporate","Dublin Midlands Hospital Group","Health & Wellbeing","Ireland East Hospital Group","National Ambulance Service","other Acute Services","other Community Services","RCSI Hospitals Group","Saolta University Hospital Care","South/South West Hospital Group","University of Limerick Hospital Group",null,null,null,"CHO/HG"]
["076Y","Accountant",null,"Children's Health Ireland","CHI","NSP 2020",null,"Acute Alt. Pathways",null,"Acute Services",null,"Acute Services",null,"Recurring",null,"Permanent","Children's Health Ireland","Ambulance Services",null,null,null,null,null,null,"CHI at Connolly","Cavan/ Monaghan","Galway","Clare","Cork North","Carlow/ Kilkenny","Dublin South-East","Dublin South City","Laois /Offaly","Dublin North","Cancer Control Service","Coombe Women & Infants University","Health & Wellbeing, National","Cappagh National Orthopaedic","Ambulance Services","Other","Dublin South-West","Beaumont","Galway University","Bantry General","Croom Orthopaedic",null,null,null,"Children's Health Ireland"]
["099X","Administration Unclassified",null,"CHO 1",null,"NSP 2021",null,"Access to Care",null,"Community Services",null,"CHO Operations",null,"Once Off Allocation",null,"Indefinite Duration","Children's Health Ireland","Bantry General",null,null,null,null,null,null,"CHI at Crumlin","Donegal","Mayo","Limerick","Cork North Lee","Tipperary, South","Dun Laoghaire","Dublin South-West","Longford/ Westmeath","Dublin North Central","CEO's Office","Hospital Group HQ","Health Intelligence","Hospital Group HQ",null,null,"Other","Cavan General","Hospital Group HQ","Cork University","Ennis"]
[2535,"Advanced Midwife Practitioner",null,"CHO 2",null,"NSP 2022",null,"Acute Beds",null,"HWB, Corporate & National",null,"Community Health & Wellbeing",null,null,null,"Specified Purpose","Children's Health Ireland","Beaumont",null,null,null,null,null,null,"CHI at Tallaght","Sligo/ Leitrim","Roscommon","Tipperary, North/ Limerick, East","Cork South Lee","Waterford","Wicklow","Dublin West","Louth","Dublin North-West","Clinical Design & Innovation","MRH Portlaoise","Health Promotion & Improvement","IEHG Bank",null,null,null,"Connolly","Letterkenny University","Hospital Group HQ","Hospital Group HQ"]
[2536,"Advanced Midwife Practitioner, Candidate",null,"CHO 3",null,"Winter Plan 2020/2021",null,"Acute Restart",null,null,null,"Corporate",null,null,null,"Fixed Term","Children's Health Ireland","Cancer Control Service",null,null,null,null,null,null,"CHI at Temple Street","Other","Other",null,"Cork West","Wexford","Other","Kildare/ West Wicklow","Meath","Other","Communications","MRH Tullamore","Planning & Performance (HWB)","Mater Misericordiae University",null,null,null,"Hospital Group HQ","Mayo University","Lourdes Orthopaedic Kilcreene","Nenagh"]
[2277,"Advanced Nurse Practitioner, Candidate (Children's)",null,"CHO 4",null,"Winter Plan 2021/2022",null,"AMRIC",null,null,null,"Disabilities",null,null,null,null,"Children's Health Ireland","Cappagh National Orthopaedic",null,null,null,null,null,null,"CHI Corporate",null,null,null,"Kerry",null,null,"Other","Other",null,"Compliance","Naas General","Public Health","MRH Mullingar",null,null,null,"Louth County","Portiuncula University","Mallow General","St. John's Limerick"]
[2276,"Advanced Nurse Practitioner, Candidate (Community /Primary Care)",null,"CHO 5",null,null,null,"Baseline & Capacity",null,null,null,"Health & Wellbeing",null,null,null,null,"Children's Health Ireland","Carlow/ Kilkenny",null,null,null,null,null,null,"CHI Programme",null,null,null,"Other",null,null,null,null,null,"Emergency Management","St. James's","Public Laboratory","National Maternity",null,null,null,"Monaghan","Roscommon University","Mercy University","UH Limerick"]
[2272,"Advanced Nurse Practitioner, Candidate (General)",null,"CHO 6",null,null,null,"Bowel Screen Expansion",null,null,null,"Mental Health",null,null,null,null,"Children's Health Ireland","Cavan General",null,null,null,null,null,null,null,null,null,null,null,null,null,null,null,null,"Environmental Health","St. Luke's Rathgar",null,"National Rehabilitation",null,null,null,"Our Lady of Lourdes","Sligo University","South Infirmary Victoria University","UMH Limerick"]
[2278,"Advanced Nurse Practitioner, Candidate (Intellectual Disability)",null,"CHO 7",null,null,null,"Breastcheck",null,null,null,"National Ambulance Services",null,null,null,null,"Children's Health Ireland","Cavan/ Monaghan",null,null,null,null,null,null,null,null,null,null,null,null,null,null,null,null,"Finance","Tallaght University",null,"Our Lady's Navan",null,null,null,"Rotunda",null,"South Tipperary General"]
[2274,"Advanced Nurse Practitioner, Candidate (Mental Health)",null,"CHO 8",null,null,null,"Cancer Services",null,null,null,"Older Persons",null,null,null,null,"Children's Health Ireland","CEO's Office",null,null,null,null,null,null,null,null,null,null,null,null,null,null,null,null,"Human Resources",null,null,"Royal Victoria Eye & Ear",null,null,null,null,null,"UH Kerry"]
[2270,"Advanced Nurse Practitioner (Children's)",null,"CHO 9",null,null,null,"CHNs",null,null,null,"Primary Care",null,null,null,null,"Children's Health Ireland","CHI at Connolly",null,null,null,null,null,null,null,null,null,null,null,null,null,null,null,null,"ICT",null,null,"St Luke's General Kilkenny",null,null,null,null,null,"UH Waterford"]
[2269,"Advanced Nurse Practitioner (Community /Primary Care)",null,"Corporate",null,null,null,"CIT",null,null,null,null,null,null,null,null,"Children's Health Ireland","CHI at Crumlin",null,null,null,null,null,null,null,null,null,null,null,null,null,null,null,null,"Internal Audit",null,null,"St. Columcille's"]
[2267,"Advanced Nurse Practitioner (General)",null,"Dublin Midlands Hospital Group",null,null,null,"Clinical Governance",null,null,null,null,null,null,null,null,"Children's Health Ireland","CHI at Tallaght",null,null,null,null,null,null,null,null,null,null,null,null,null,null,null,null,"Legal Services",null,null,"St. Michael's"]
[2271,"Advanced Nurse Practitioner (Intellectual Disability)",null,"Health & Wellbeing",null,null,null,"Colposcopy Services",null,null,null,null,null,null,null,null,"Children's Health Ireland","CHI at Temple Street",null,null,null,null,null,null,null,null,null,null,null,null,null,null,null,null,"National Screening Service",null,null,"St. Vincent's University"]
[2268,"Advanced Nurse Practitioner (Mental Health)",null,"Ireland East Hospital Group",null,null,null,"Community Paramedic",null,null,null,null,null,null,null,null,"Children's Health Ireland","CHI Corporate",null,null,null,null,null,null,null,null,null,null,null,null,null,null,null,null,"NDTP",null,null,"Wexford General"]
[6122,"Ambulance Officer",null,"National Ambulance Service",null,null,null,"Day Services Recovery",null,null,null,null,null,null,null,null,"Children's Health Ireland","CHI Programme",null,null,null,null,null,null,null,null,null,null,null,null,null,null,null,null,"Other Corporate Functions"]
[6123,"Ambulance Officer, Asst. Chief",null,"other Acute Services",null,null,null,"Decongregation",null,null,null,null,null,null,null,null,null,"Clare",null,null,null,null,null,null,null,null,null,null,null,null,null,null,null,null,"PCRS"]
[6125,"Ambulance Officer, Chief",null,"other Community Services",null,null,null,"Dementia",null,null,null,null,null,null,null,null,null,"Clinical Design & Innovation",null,null,null,null,null,null,null,null,null,null,null,null,null,null,null,null,"Quality Assurance & Verification"]
[3744,"Analytical Chemist, (with Branch E Cert)",null,"RCSI Hospitals Group",null,null,null,"Disability Hours (Adults)",null,null,null,null,null,null,null,null,null,"Communications",null,null,null,null,null,null,null,null,null,null,null,null,null,null,null,null,"Quality Improvement"]
[3742,"Analytical Chemist (without Branch E Cert)",null,"Saolta University Hospital Care",null,null,null,"Disability Hours (Child)",null,null,null,null,null,null,null,null,null,"Compliance",null,null,null,null,null,null,null,null,null,null,null,null,null,null,null,null,"Test & Trace"]
[6507,"Appeals Officer",null,"South/South West Hospital Group",null,null,null,"eHealth",null,null,null,null,null,null,null,null,null,"Connolly",null,null,null,null,null,null,null,null,null,null,null,null,null,null,null,null,"Tobacco Control"]
[6508,"Appeals Officer, Deputy",null,"University of Limerick Hospital Group",null,null,null,"Emergency Residential",null,null,null,null,null,null,null,null,null,"Coombe Women & Infants University"]
[5371,"Apprentice Craftworker",null,null,null,null,null,"GP Access to Diagnostics",null,null,null,null,null,null,null,null,null,"Cork North"]
[2739,"Area Coordinator (Nursing)",null,null,null,null,null,"Histopathology & Data An",null,null,null,null,null,null,null,null,null,"Cork North Lee"]
[2292,"Area Director Nurse & Midwifery Planning & Development",null,null,null,null,null,"Home Care",null,null,null,null,null,null,null,null,null,"Cork South Lee"]
[1333,"Area Medical Officer",null,null,null,null,null,"Home Carer Supports",null,null,null,null,null,null,null,null,null,"Cork University"]
[1325,"Area Medical Officer, Senior",null,null,null,null,null,"IC Beds",null,null,null,null,null,null,null,null,null,"Cork West"]
[6001,"Assessment Officer (Disability Act)",null,null,null,null,null,"ICPCDM",null,null,null,null,null,null,null,null,null,"Croom Orthopaedic"]
["188Y","Associate Specialist",null,null,null,null,null,"ICPCDM Acute",null,null,null,null,null,null,null,null,null,"Donegal"]
[6415,"Attendant/ Aide",null,null,null,null,null,"ICPOP",null,null,null,null,null,null,null,null,null,"Dublin North"]
[6015,"Attendant, Multi-Task",null,null,null,null,null,"ICPOP Acutes",null,null,null,null,null,null,null,null,null,"Dublin North Central"]
[6016,"Attendant. Multi-Task Intern",null,null,null,null,null,"IPC",null,null,null,null,null,null,null,null,null,"Dublin North-West"]
[3442,"Audiological Scientist",null,null,null,null,null,"Key Enablers",null,null,null,null,null,null,null,null,null,"Dublin South City"]
[3443,"Audiological Scientist, Senior",null,null,null,null,null,"Mental Health",null,null,null,null,null,null,null,null,null,"Dublin South-East"]
[3441,"Audiologist",null,null,null,null,null,"NAS CCRS",null,null,null,null,null,null,null,null,null,"Dublin South-West","FOR ALL"]
[6526,"Audiologist, Assistant",null,null,null,null,null,"NASCCRS",null,null,null,null,null,null,null,null,null,"Dublin West"]
["345X","Audiologist, Chief",null,null,null,null,null,"NCSL (Screening Lab)",null,null,null,null,null,null,null,null,null,"Dun Laoghaire"]
[3447,"Audiologist, Clinical Specialist",null,null,null,null,null,"NEOC Clinical Hub",null,null,null,null,null,null,null,null,null,"Emergency Management"]
["384Y","Audiologist, Senior",null,null,null,null,null,"NWIHP",null,null,null,null,null,null,null,null,null,"Ennis"]
[3444,"Audiologist, Student",null,null,null,null,null,"ODTI",null,null,null,null,null,null,null,null,null,"Environmental Health"]
[3448,"Audiology, Assistant National Lead",null,null,null,null,null,"Operational Governance",null,null,null,null,null,null,null,null,null,"Finance"]
[3446,"Audiology, National Lead",null,null,null,null,null,"PA Hours",null,null,null,null,null,null,null,null,null,"Galway"]
[3751,"Biochemist",null,null,null,null,null,"Paediatrics",null,null,null,null,null,null,null,null,null,"Galway University"]
[3778,"Biochemist, Principal",null,null,null,null,null,"Palliative Care",null,null,null,null,null,null,null,null,null,"Health & Wellbeing, National"]
["376X","Biochemist, Senior",null,null,null,null,null,"Pathfinder",null,null,null,null,null,null,null,null,null,"Health Intelligence"]
["424X","Boilerman",null,null,null,null,null,"Planned Residential",null,null,null,null,null,null,null,null,null,"Health Promotion & Improvement"]
[6116,"Cardiac Aide",null,null,null,null,null,"Portfolio Management",null,null,null,null,null,null,null,null,null,"Hospital Group HQ"]
[3867,"Cardiac Physiologist",null,null,null,null,null,"PPE",null,null,null,null,null,null,null,null,null,"Human Resources"]
[3001,"Cardiac Physiologist, Chief I",null,null,null,null,null,"Public Health",null,null,null,null,null,null,null,null,null,"ICT"]
[3002,"Cardiac Physiologist, Chief II",null,null,null,null,null,"Quality Risk Assurance",null,null,null,null,null,null,null,null,null,"IEHG Bank"]
[3003,"Cardiac Physiologist, Senior",null,null,null,null,null,"Resource Managers",null,null,null,null,null,null,null,null,null,"Internal Audit"]
[6479,"Care Assistant (Disability), Intern",null,null,null,null,null,"Respite",null,null,null,null,null,null,null,null,null,"Kerry"]
[6482,"Care Assistant (Disability Services)",null,null,null,null,null,"Respite high support",null,null,null,null,null,null,null,null,null,"Kildare/ West Wicklow"]
[4092,"Caretaker",null,null,null,null,null,"Safe Staffing",null,null,null,null,null,null,null,null,null,"Laois /Offaly"]
["149X","Casualty Officer",null,null,null,null,null,"School Leavers",null,null,null,null,null,null,null,null,null,"Legal Services"]
[4111,"Catering/Cleaner/Assistant",null,null,null,null,null,"Staff H&WB",null,null,null,null,null,null,null,null,null,"Letterkenny University"]
[4105,"Catering Manager",null,null,null,null,null,"Sub Acute",null,null,null,null,null,null,null,null,null,"Limerick"]
[4014,"Catering Officer Grade I",null,null,null,null,null,"Test and Trace",null,null,null,null,null,null,null,null,null,"Longford/ Westmeath"]
[4001,"Catering Officer, Grade II",null,null,null,null,null,"Trauma",null,null,null,null,null,null,null,null,null,"Lourdes Orthopaedic Kilcreene"]
[4002,"Catering Officer, Grade III",null,null,null,null,null,"Trauma Strategy",null,null,null,null,null,null,null,null,null,"Louth"]
[4022,"Catering Supervisor",null,null,null,null,null,"Tusla over 18",null,null,null,null,null,null,null,null,null,"Louth County"]
["402T","Catering Supervisor, Assistant.",null,null,null,null,null,"Younger people in NHs",null,null,null,null,null,null,null,null,null,"Mallow General"]
[6404,"Chaplain",null,null,null,null,null,null,null,null,null,null,null,null,null,null,null,"Mater Misericordiae University"]
[6405,"Chaplaincy Services, coordinator",null,null,null,null,null,null,null,null,null,null,null,null,null,null,null,"Mayo"]
[5088,"Chargehand",null,null,null,null,null,null,null,null,null,null,null,null,null,null,null,"Mayo University"]
[4211,"Chef, Executive",null,null,null,null,null,null,null,null,null,null,null,null,null,null,null,"Meath"]
[4012,"Chef, Head",null,null,null,null,null,null,null,null,null,null,null,null,null,null,null,"Mercy University"]
["451Y","Chef I",null,null,null,null,null,null,null,null,null,null,null,null,null,null,null,"Monaghan"]
[4529,"Chef II",null,null,null,null,null,null,null,null,null,null,null,null,null,null,null,"MRH Mullingar"]
[4343,"Chef, Journeyman",null,null,null,null,null,null,null,null,null,null,null,null,null,null,null,"MRH Portlaoise"]
["427Y","Chef, Senior",null,null,null,null,null,null,null,null,null,null,null,null,null,null,null,"MRH Tullamore"]
[3922,"Child Care Manager",null,null,null,null,null,null,null,null,null,null,null,null,null,null,null,"Naas General"]
[6010,"Children's Disability Network Manager",null,null,null,null,null,null,null,null,null,null,null,null,null,null,null,"National Maternity"]
[3060,"Children's First Information Officer",null,null,null,null,null,null,null,null,null,null,null,null,null,null,null,"National Rehabilitation"]
[3654,"Chiropodist, Clinical Specialist",null,null,null,null,null,null,null,null,null,null,null,null,null,null,null,"National Screening Service"]
[3352,"Chiropodist/ Podiatrist",null,null,null,null,null,null,null,null,null,null,null,null,null,null,null,"NDTP"]
[3346,"Chiropodist/ Podiatrist, Senior",null,null,null,null,null,null,null,null,null,null,null,null,null,null,null,"Nenagh"]
[4113,"Cleaner",null,null,null,null,null,null,null,null,null,null,null,null,null,null,null,"Other"]
[609,"Clerical Officer",null,null,null,null,null,null,null,null,null,null,null,null,null,null,null,"Other Corporate Functions"]
[4521,"Clerk of Works",null,null,null,null,null,null,null,null,null,null,null,null,null,null,null,"Our Lady of Lourdes"]
[1406,"Clinical Director (Psychiatric Services)",null,null,null,null,null,null,null,null,null,null,null,null,null,null,null,"Our Lady's Navan","Ireland East Hospital Group","RCSI Hospitals Group","Saolta University Hospital Care","South/South West Hospital Group","University of Limerick Hospital Group"]
[3161,"Clinical Engineering Technician",null,null,null,null,null,null,null,null,null,null,null,null,null,null,null,"PCRS"]
[3164,"Clinical Engineering Technician, Chief",null,null,null,null,null,null,null,null,null,null,null,null,null,null,null,"Planning & Performance (HWB)"]
[3163,"Clinical Engineering Technician, Principal",null,null,null,null,null,null,null,null,null,null,null,null,null,null,null,"Portiuncula University"]
[3162,"Clinical Engineering Technician, Senior",null,null,null,null,null,null,null,null,null,null,null,null,null,null,null,"Public Health"]
[2131,"Clinical Midwife Manager 1",null,null,null,null,null,null,null,null,null,null,null,null,null,null,null,"Public Laboratory"]
[2132,"Clinical Midwife Manager 2",null,null,null,null,null,null,null,null,null,null,null,null,null,null,null,"Quality Assurance & Verification"]
[2133,"Clinical Midwife Manager 3",null,null,null,null,null,null,null,null,null,null,null,null,null,null,null,"Quality Improvement"]
[2313,"Clinical Midwife Specialist",null,null,null,null,null,null,null,null,null,null,null,null,null,null,null,"Roscommon"]
[2712,"Clinical Nurse Instructor/Teacher",null,null,null,null,null,null,null,null,null,null,null,null,null,null,null,"Roscommon University"]
[2127,"Clinical Nurse Manager 1",null,null,null,null,null,null,null,null,null,null,null,null,null,null,null,"Rotunda"]
[2527,"Clinical Nurse Manager 1 (Mental Health)",null,null,null,null,null,null,null,null,null,null,null,null,null,null,null,"Royal Victoria Eye & Ear"]
[2259,"Clinical Nurse Manager 1 - Theatre",null,null,null,null,null,null,null,null,null,null,null,null,null,null,null,"Sligo University"]
[2119,"Clinical Nurse Manager 2",null,null,null,null,null,null,null,null,null,null,null,null,null,null,null,"Sligo/ Leitrim"]
[2658,"Clinical Nurse Manager 2 (Mental Health)",null,null,null,null,null,null,null,null,null,null,null,null,null,null,null,"South Infirmary Victoria University"]
[2372,"Clinical Nurse Manager 2 - Night",null,null,null,null,null,null,null,null,null,null,null,null,null,null,null,"South Tipperary General","other Community Services"]
[2429,"Clinical Nurse Manager 2 - Theatre",null,null,null,null,null,null,null,null,null,null,null,null,null,null,null,"St Luke's General Kilkenny"]
["233X","Clinical Nurse Manager 3",null,null,null,null,null,null,null,null,null,null,null,null,null,null,null,"St. Columcille's"]
["238Y","Clinical Nurse Manager 3 (Mental Health)",null,null,null,null,null,null,null,null,null,null,null,null,null,null,null,"St. James's"]
[2046,"Clinical Nurse Manager 3 - Night",null,null,null,null,null,null,null,null,null,null,null,null,null,null,null,"St. John's Limerick"]
[2356,"Clinical Nurse Manager 3 - Theatre",null,null,null,null,null,null,null,null,null,null,null,null,null,null,null,"St. Luke's Rathgar"]
[2626,"Clinical Nurse Specialist (Children's)",null,null,null,null,null,null,null,null,null,null,null,null,null,null,null,"St. Michael's"]
[2628,"Clinical Nurse Specialist (Community/Primary Care)",null,null,null,null,null,null,null,null,null,null,null,null,null,null,null,"St. Vincent's University"]
[2632,"Clinical Nurse Specialist (General)",null,null,null,null,null,null,null,null,null,null,null,null,null,null,null,"Tallaght University"]
[2627,"Clinical Nurse Specialist (Intellectual Disability)",null,null,null,null,null,null,null,null,null,null,null,null,null,null,null,"Test & Trace"]
[2625,"Clinical Nurse Specialist (Mental Health)",null,null,null,null,null,null,null,null,null,null,null,null,null,null,null,"Tipperary, North/ Limerick, East"]
[3211,"Clinical Photographer",null,null,null,null,null,null,null,null,null,null,null,null,null,null,null,"Tipperary, South"]
["321T","Clinical Photographer, Senior",null,null,null,null,null,null,null,null,null,null,null,null,null,null,null,"Tobacco Control"]
[2002,"Clinical Skills Development Director",null,null,null,null,null,null,null,null,null,null,null,null,null,null,null,"UH Kerry"]
[1310,"Community Healthcare Network GP Lead",null,null,null,null,null,null,null,null,null,null,null,null,null,null,null,"UH Limerick"]
[6011,"Community Healthcare Network Manager",null,null,null,null,null,null,null,null,null,null,null,null,null,null,null,"UH Waterford"]
[6030,"Community Welfare Officer",null,null,null,null,null,null,null,null,null,null,null,null,null,null,null,"UMH Limerick"]
[6027,"Community Welfare Officer, Supt.",null,null,null,null,null,null,null,null,null,null,null,null,null,null,null,"Waterford"]
[1015,"Consultant Anaesthetist",null,null,null,null,null,null,null,null,null,null,null,null,null,null,null,"Wexford"]
[1017,"Consultant Anaesthetist s.i. in Pain Medicine",null,null,null,null,null,null,null,null,null,null,null,null,null,null,null,"Wexford General"]
[1244,"Consultant Cardiologist",null,null,null,null,null,null,null,null,null,null,null,null,null,null,null,"Wicklow"]
[1020,"Consultant Cardiologist & General Physician"]
[1295,"Consultant Cardio-thoracic Surgeon"]
[1252,"Consultant Chemical Pathologist"]
[1457,"Consultant Child & Adolescent Psychiatrist"]
[1473,"Consultant Clinical Biochemist"]
["112Y","Consultant Clinical Neurophysiologist"]
[1708,"Consultant Dermatologist"]
[1690,"Consultant Emergency Medicine s.i. paediatric emergency medicine"]
[1826,"Consultant Forensic Psychiatrist"]
[1724,"Consultant Gastroenterologist & General Physician"]
["143Y","Consultant General Adult Psychiatrist"]
[1163,"Consultant General Physician"]
[1167,"Consultant General Physician s.i. pharmacology & therapeutics"]
[1279,"Consultant General Surgeon"]
[1481,"Consultant General Surgeon Breast"]
[1280,"Consultant General Surgeon Colo-rectal"]
[1511,"Consultant General Surgeon Gastro-intestinal"]
[1392,"Consultant General Surgeon s.i. in vascular surgery"]
[1394,"Consultant General Surgeon s.i. paediatric surgery"]
["109Y","Consultant Haematologist (Clinical and Laboratory)"]
["126Y","Consultant Histopathologist"]
["137T","Consultant Immunologist (Clinical & Laboratory)"]
[1937,"Consultant in Clinical Genetics"]
["169T","Consultant in Emergency Medicine"]
[1032,"Consultant in Paediatric Dentistry"]
[1644,"Consultant in Paediatric Intensive Care"]
[1059,"Consultant in Pain Medicine"]
[1013,"Consultant in Palliative Medicine"]
["180X","Consultant in Rehabilitation Medicine"]
[1206,"Consultant in Restorative Dentistry"]
[1236,"Consultant in Special Care Dentistry"]
[1643,"Consultant Intensivist"]
["166X","Consultant Learning Disability Psychiatry Child"]
[1287,"Consultant Medical Oncologist"]
[1150,"Consultant Medical Ophthalmologist"]
[1856,"Consultant Microbiologist"]
[1678,"Consultant Neonatologist"]
[1783,"Consultant Nephrologist & General Physician"]
[1104,"Consultant Neurologist"]
[1172,"Consultant Neuropathologist"]
[1180,"Consultant Neuro-Radiologist"]
[1112,"Consultant Neurosurgeon"]
[1113,"Consultant Neurosurgeon s.i. paediatric neurosurgery"]
[1139,"Consultant Obstetrician & Gynaecologist"]
[1147,"Consultant Ophthalmic Surgeon"]
[1717,"Consultant Ophthalmic Surgeon s.i. neuro-ophthalmic surgery"]
[1014,"Consultant Oral & Maxillo Facial Surgeon"]
[1309,"Consultant Oral Surgeon"]
[1775,"Consultant Orthodontist"]
[1716,"Consultant Orthopaedic Surgeon"]
[1058,"Consultant Otolaryngologist"]
[1016,"Consultant Paediatric Anaesthetist"]
[1022,"Consultant Paediatric Cardiologist"]
[1253,"Consultant Paediatric Chemical Pathologist"]
[1026,"Consultant Paediatric Endocrinologist"]
[1027,"Consultant Paediatric Gastroenterologist"]
[1028,"Consultant Paediatric Histopathologist"]
[1155,"Consultant Paediatrician"]
[1018,"Consultant Paediatrician  s.i. in paediatric neurodisability"]
[1023,"Consultant Paediatrician s.i. in respiratory medicine"]
[1019,"Consultant Paediatrician s.i. metabolic diseases"]
[1030,"Consultant Paediatric Immunologist"]
[1021,"Consultant Paediatric Nephrologist"]
[1025,"Consultant Paediatric Neurologist"]
[1024,"Consultant Paediatric Oncologist"]
[1181,"Consultant Paediatric Radiologist"]
[1767,"Consultant Paediatric Surgeon"]
["194T","Consultant Physician in Clinical Pharmacology & Therapeutics"]
[1066,"Consultant Physician in Endocrinology"]
[1082,"Consultant Physician in Genito-Urinary Medicine"]
[1074,"Consultant Physician in Geriatric Medicine"]
[1864,"Consultant Physician in Infectious Diseases"]
[1899,"Consultant Plastic Surgeon"]
[1029,"Consultant Psychiatrist in the Psychiatry of Old Age"]
[1759,"Consultant Psychiatrist of Learning Disability (adult)"]
[1686,"Consultant Radiation Oncologist"]
["118X","Consultant Radiologist"]
[1031,"Consultant Respiratory & General Physician"]
[1199,"Consultant Rheumatologist"]
[1198,"Consultant Rheumatologist & General Physician"]
[1211,"Consultant Transplant Surgeon & Urologist"]
["101T","Consultant Unclassified"]
["121X","Consultant Urologist"]
[1210,"Consultant Urologist & Transplant Surgeon"]
[4065,"Cook, Trainee"]
["391T","Counsellor"]
[3919,"Counsellor, Children's"]
[3918,"Counsellor, Senior"]
[3052,"Counsellor Therapist (Adult Services)"]
[3028,"Counsellor / Therapist (National Services)"]
[4905,"Craftsman's Mate"]
[5785,"C.S.S.D. Operative"]
[5777,"C.S.S.D. Supervisor"]
["422X","Dark Room Technician/Porter"]
[4006,"Dental Craftsman/Technician"]
[4007,"Dental Craftsman/Technician, Chief (GSS)"]
[4008,"Dental Craftsman/Technician, Senior (GSS)"]
[3022,"Dental Hygienist"]
[3122,"Dental Hygienist, Senior"]
[6437,"Dental Nurse"]
[6440,"Dental Nurse, Senior"]
[1988,"Dental Surgeon, Clinical Grade I"]
[1597,"Dental Surgeon, General"]
["197X","Dental Surgeon, Principal"]
[1589,"Dental Surgeon, Senior"]
[1619,"Dental Surgeon, Senior Administrative"]
[6436,"Dental Surgery Assistant (unqualified)"]
[1620,"Dentist, Examining"]
[3389,"Dietitian"]
[3715,"Dietitian, Clinical Specialist"]
[3328,"Dietitian Manager"]
[3391,"Dietitian Manager-in-charge III"]
[3395,"Dietitian, Senior"]
[4073,"Diningroom/Cafeteria Supervisor"]
[1368,"Director, Assistant General Practice Training School"]
[1341,"Director, General Practice Training School"]
[2643,"Director, Nursing/ Midwifery Education Centre"]
[1319,"Director of Community Care"]
[3027,"Director of Counselling (National Counselling Services)"]
[2916,"Director of Midwifery 1"]
[2919,"Director of Midwifery 1, Assistant"]
[2917,"Director of Midwifery 2"]
[2920,"Director of Midwifery 2, Assistant"]
[2918,"Director of Midwifery 3"]
[2921,"Director of Midwifery 3, Assistant"]
[2903,"Director of Nursing 1"]
[2910,"Director of Nursing 1, Assistant"]
[2904,"Director of Nursing 2"]
[2905,"Director of Nursing 2A"]
[2911,"Director of Nursing 2, Assistant"]
[2906,"Director of Nursing 3"]
[2912,"Director of Nursing 3, Assistant"]
[2907,"Director of Nursing 4"]
[2913,"Director of Nursing 4, Assistant"]
[2908,"Director of Nursing 5"]
[2011,"Director of Nursing, Deputy"]
[2526,"Director of Nursing (Mental Health)"]
[2542,"Director of Nursing (Mental Health), Assistant"]
[2914,"Director of Nursing & Midwifery"]
[2915,"Director of Nursing & Midwifery, Hospital Group"]
[3049,"Director of Pharmaceutical Services"]
[1318,"Director of Public Health"]
[2801,"Director of Public Health Nursing"]
["281X","Director of Public Health Nursing, Assistant"]
[2291,"Director of the Nursing & Midwifery P&D Unit"]
[2364,"Director of the Nursing & Midwifery P&D Unit, Asst"]
[102,"Director Special Care Unit, Deputy"]
[4110,"Domestic"]
[4103,"Domestic Supervisor"]
[4332,"Domestic Supervisor, Assistant"]
[3035,"Dosimetrist, Basic"]
[3036,"Dosimetrist, Senior"]
["532Y","Draughtsman/Technician I"]
[5312,"Draughtsman/Technician II"]
["413Y","Driver"]
[6124,"Driver (Doctor-on-call)"]
[4734,"Driver, Minibus"]
[6132,"Driver (Patients/Clients Public Roads)"]
[4908,"Driver/ Porter"]
["359T","E.C.G. Technician"]
[3004,"E.C.G. Technician, Chief I"]
[3581,"E.C.G. Technician, Senior"]
[6501,"Education Officer"]
[3603,"E.E.G./ E.C.G. Technician, Student"]
[5096,"Electrician"]
[6450,"Emergency Call Taker"]
[6455,"Emergency Medical Controller"]
[6931,"Emergency Medical Controller - Team Leader"]
[6457,"Emergency Medical Control Supervisor"]
[6456,"Emergency Medical Dispatcher"]
[6463,"Emergency Medical Technician"]
[6464,"Emergency Medical Technician, Leading"]
[6453,"Emergency Medical Technician, Student"]
["305T","Endocrinology Technician"]
[6017,"Endoscopy Operative (Band 1)"]
[6018,"Endoscopy Operative (Band 2)"]
[5002,"Engineer/ Engineering Officer"]
[2280,"Enhanced Midwife"]
[2286,"Enhanced Midwife, Senior"]
[2281,"Enhanced Nurse (Children's)"]
[2282,"Enhanced Nurse (Community/Primary Care)"]
[2283,"Enhanced Nurse (General)"]
[2284,"Enhanced Nurse (Intellectual Disability)"]
[2285,"Enhanced Nurse (Mental Health)"]
[2287,"Enhanced Nurse, Senior (Children's)"]
[2288,"Enhanced Nurse, Senior (Community/Primary Care)"]
[2289,"Enhanced Nurse, Senior (General)"]
[2290,"Enhanced Nurse, Senior (Intellectual Disability)"]
[2293,"Enhanced Nurse, Senior (Mental Health)"]
["319X","Environmental Health Officer"]
[3181,"Environmental Health Officer, Principal"]
[3172,"Environmental Health Officer, Regional Chief"]
[3173,"Environmental Health Officer, Senior"]
[3038,"Environmental Health Officer, Trainee"]
[6416,"Family Support Worker"]
[3959,"Family Therapist"]
[5497,"Fire Prevention Officer"]
[4068,"Gardener/ Groundsman"]
[4011,"Gardener/ Groundsman, Head"]
[3061,"Gastrointestinal (GI) Physiologist"]
[3064,"Gastrointestinal (GI) Physiologist, Chief II"]
[3062,"Gastrointestinal (GI) Physiologist, Senior"]
[919,"General Administrator"]
[6083,"General Assistant"]
[6091,"General Assistant, Senior"]
[5487,"General Operative"]
["152X","General Practitioner"]
[558,"Grade IV"]
[566,"Grade V"]
[574,"Grade VI"]
[582,"Grade VII"]
[6430,"Hairdresser/ Barber"]
[6100,"Head of Bed Management (Category A)"]
[6101,"Head of Bed Management (Category B)"]
[6102,"Head of Bed Management (Category C)"]
[4120,"Head of Catering"]
[6075,"Health Care Assistant"]
[6012,"Health Care Assistant (Band 1)/(specific sites only)"]
[6076,"Health Care Assistant, intern"]
[6494,"Health Care Support Assistant"]
[6066,"Health Education Officer"]
[6067,"Health Promotion Officer"]
[6068,"Health Promotion Officer, Senior"]
[3999,"Health & Social Care Professionals Unclassified"]
[3050,"High Support Unit Manager"]
[3055,"High Support Unit Manager, Deputy"]
[6584,"Home Help Co-Ordinator"]
[6484,"Home Help Organiser"]
[6518,"Home Help Organiser, Deputy"]
[6516,"Home Management Advisor"]
[6517,"Home Management Advisor, Senior"]
[778,"Hospital Administrator"]
[4013,"Hostel Supervisor"]
[4114,"Household Attendant/Cleaner/Domestic, Intern"]
[4082,"Household Services Manager"]
[4083,"Household Services Manager, Deputy"]
[4081,"Housekeeper"]
["409X","Housekeeper, Assistant"]
[1012,"House Officer, Senior"]
[3957,"Instructor"]
[6133,"Intermediate Care Operative"]
[1554,"Intern"]
[8,"Interviewer (not in census)"]
[5931,"Laboratory Attendant"]
["393X","Laboratory Manager"]
[5000,"Laboratory Porter"]
[3039,"Laboratory Technician (RPAL)"]
[3040,"Laboratory Technician, Senior (RPAL)"]
[4262,"Labourer"]
[4900,"Laundry Worker"]
["031Y","Librarian"]
["022T","Librarian, Assistant"]
[213,"Librarian, Senior"]
[4146,"Linen Room/Laundry Supervisor"]
[4351,"Linen Room/Laundry Supervisor, Assistant"]
[6500,"Local Area Co-ordinator (Addiction Services)"]
[5606,"Maintenance Craftsman/Technician"]
[5061,"Maintenance Foreman"]
["506T","Maintenance Foreman, Assistant"]
["507T","Maintenance Helper"]
[5070,"Maintenance Manager"]
[5071,"Maintenance Officer"]
[5991,"Maintenance/Technical Unclassified"]
[1902,"Master (Maternity Hospital)"]
[3006,"Maxillo Facial Technician"]
[3044,"Maxillo Facial Technician, Chief"]
[5126,"Mechanic"]
[1996,"Medical & Dental Unclassified"]
[1945,"Medical Director"]
[4077,"Medical Laboratory Aide"]
[1503,"Medical Officer"]
[1791,"Medical Officer, Principal"]
["183T","Medical Officer, Senior"]
[3875,"Medical Scientist"]
[3876,"Medical Scientist, Chief"]
[3877,"Medical Scientist, Senior"]
[3878,"Medical Scientist, Specialist"]
[3024,"Medical Scientist, Student"]
[6499,"Miscellaneous Childcare, Support Services"]
[4901,"Mortuary Attendant"]
[3020,"Mould Room Technician"]
[3410,"National  Clinical Laboratory Director"]
[3078,"National Lead Employee Assistance Programme"]
[3604,"Neuro-Physiologist"]
[3605,"Neuro-Physiologist, Chief I"]
[3606,"Neuro-Physiologist, Chief  II"]
[3607,"Neuro-Physiologist, Senior"]
["200X","Nurse Planner"]
[6434,"Nursery Nurse"]
[6400,"Nurse's Aide"]
[2580,"Nurse Tutor"]
[2097,"Nurse Tutor (Midwifery)"]
[2586,"Nurse Tutor (Psychiatric)"]
[6417,"Nursing Auxiliary/Orderly"]
["241Y","Nursing/ Midwifery Clinical Placement Co-ordinator"]
[2445,"Nursing/ Midwifery Practice Development Co-ordinator"]
[2001,"Nursing & Midwifery Services Director"]
[2992,"Nursing Unclassified"]
[6520,"Occupational Guidance Officer"]
[1961,"Occupational Health Physician"]
[3298,"Occupational Therapist"]
[3824,"Occupational Therapist, Clinical Specialist"]
[3302,"Occupational Therapist-in-charge III"]
["331X","Occupational Therapist Manager"]
[3301,"Occupational Therapist, Senior"]
[6505,"Occupational Therapy Assistant"]
[3304,"Occupational Therapy Placement Facilitator"]
[3305,"Occupational Therapy, Practice Tutor"]
[1491,"Ophthalmic Physician, Community"]
[3420,"Optometrist, Clinical"]
[1465,"Orthodontics, Specialist"]
[3409,"Orthoptist"]
[3417,"Orthoptist, Senior"]
["699X","Other Patient & Client Care Unclassified"]
[6502,"Outreach Worker"]
[5118,"Painter"]
[6403,"Pastoral Care Worker"]
[4645,"Pathology Technician"]
[4653,"Pathology Technician, Senior"]
[6049,"Patient Services Officer"]
[3007,"Perfusionist"]
[3059,"Perfusionist, in charge"]
[3057,"Perfusionist, Senior"]
[3058,"Perfusionist, Student"]
[3212,"Pharmaceutical Technician"]
[3021,"Pharmaceutical Technician, Senior"]
["362X","Pharmaceutical Technician, Student"]
[3247,"Pharmacist"]
[3263,"Pharmacist, Chief I"]
[3271,"Pharmacist, Chief II"]
[3239,"Pharmacist, Senior"]
[3013,"Pharmacist, Student"]
[5003,"Pharmacy Aide-Attendant"]
[4016,"Pharmacy Assistant"]
[5001,"Pharmacy Porter"]
[3425,"Phlebotomist"]
[3433,"Phlebotomist, Senior"]
[3014,"Phlebotomist, Trainee"]
[3794,"Physicist"]
[3832,"Physicist, Chief"]
[3043,"Physicist, Graduate Trainee"]
[3816,"Physicist, Principal"]
[3808,"Physicist, Senior"]
[3859,"Physics Technician"]
["314X","Physiotherapist"]
[3707,"Physiotherapist, Clinical Specialist"]
[3182,"Physiotherapist-in-charge (Grade III)"]
[3492,"Physiotherapist Manager"]
[3158,"Physiotherapist, Senior"]
[6503,"Physiotherapy Assistant"]
[3159,"Physiotherapy, Placement Facilitator"]
[3160,"Physiotherapy, Practice Tutor"]
["515Y","Plasterer"]
[4902,"Plaster Technician"]
[3706,"Play Specialist"]
[3708,"Play Specialist, Senior"]
[3015,"Play Therapist"]
[3705,"Play Therapist, Senior"]
[5134,"Plumber"]
[6492,"Pool Attendant/ Supervisor"]
[4197,"Porter"]
["420Y","Porter, Head"]
[4198,"Porter, Intern"]
["448Y","Porter, Theatre"]
["266X","Practice Nurse Facilitator"]
["247X","Principal Nurse Tutor"]
[2585,"Principal Nurse Tutor (Mental Health)"]
["268Y","Professional Development Nursing Officer"]
["042Y","Project Leader"]
[932,"Project Manager"]
[6493,"Prosthetist, Senior"]
[2704,"Psychiatric Nurse, Community"]
[6521,"Psychologist Assistant"]
[3689,"Psychologist, Clinical"]
[3691,"Psychologist, Counselling"]
[3690,"Psychologist, Educational"]
[3727,"Psychologist, Principal Clinical"]
["367Y","Psychologist, Senior Clinical"]
[3692,"Psychologist, Senior Counselling"]
[3693,"Psychologist, Senior Educational"]
[3697,"Psychologist, Trainee Clinical"]
[3662,"Psychology, Director of"]
[3056,"Psychotherapist"]
[2828,"Public Health Nurse"]
[2551,"Public Health Nurse, Senior (Immunisation)"]
[1317,"Public Health, Specialist"]
[3950,"Radiation Therapist"]
[3964,"Radiation Therapist, Clinical Specialist"]
[3951,"Radiation Therapist, Senior"]
[3972,"Radiation Therapy Service Manager I"]
["398Y","Radiation Therapy Service Manager II"]
[3093,"Radiographer"]
[3131,"Radiographer, Clinical Specialist"]
[3107,"Radiographer, Senior"]
[6525,"Radiography Aide"]
["309X","Radiography Service Manager, I"]
["310X","Radiography Service Manager, II"]
[3123,"Radiography Tutor"]
[3067,"Regional Drugs Taskforce Coordinator"]
[3759,"Regional Public Analyst"]
[3767,"Regional Public Analyst, Deputy"]
[6512,"Regional Suicide Prevention Officer"]
[1538,"Registrar"]
[1528,"Registrar, Anaesthesia"]
[6058,"Registrar Births/Deaths/Marriages"]
[1529,"Registrar, Emergency Medicine"]
[1520,"Registrar, General Practice"]
[1527,"Registrar, Intensive Care"]
[1530,"Registrar, Medicine"]
[1531,"Registrar, Obstetrics & Gynaecology"]
[1532,"Registrar, Ophthalmology"]
[1533,"Registrar, Paediatrics"]
[1534,"Registrar, Pathology"]
[1535,"Registrar, Psychiatry"]
[1536,"Registrar, Radiology"]
[1627,"Registrar, Senior"]
[1628,"Registrar, Specialist"]
[1537,"Registrar, Surgery"]
[3858,"Rehabilitation Officer"]
[3016,"Respiratory Physiologist"]
[3008,"Respiratory Physiologist, Chief I"]
[3009,"Respiratory Physiologist, Chief II"]
[3010,"Respiratory Physiologist, Senior"]
[3069,"Respiratory Technician, Student"]
[4413,"Seamstress/ Tailor"]
[4106,"Security Guard"]
[6514,"S.E.N. (General)"]
[1003,"Senior House Officer, Anaesthesia"]
[1004,"Senior House Officer, Emergency Medicine"]
[1002,"Senior House Officer, Intensive Care"]
[1005,"Senior House Officer, Medicine"]
[1006,"Senior House Officer, Obstetrics & Gynaecology"]
[1007,"Senior House Officer, Ophthalmology"]
[1008,"Senior House Officer, Paediatrics"]
[1009,"Senior House Officer, Pathology"]
[1010,"Senior House Officer, Psychiatry"]
[1011,"Senior House Officer, Surgery"]
[1626,"Senior Registrar, Psychiatry"]
[6515,"S.E.N. (Psychiatric)"]
[6006,"Services Coordinator 1 (Disability Services)"]
[6007,"Services Coordinator 2 (Disability Services)"]
[6008,"Services Coordinator 3 (Disability Services)"]
[6009,"Services Coordinator 4 (Disability Services)"]
[3030,"Social Care Leader"]
["392X","Social Care Manager"]
["392Y","Social Care Manager, Deputy"]
[3029,"Social Care Worker"]
[3031,"Social Care Worker, Trainee"]
[6491,"Social Parent"]
[3017,"Social Worker"]
[3557,"Social Worker, Medical"]
[3522,"Social Worker (Non-professionally qualified)"]
["350Y","Social Worker, Principal"]
[3948,"Social Worker, Psychiatric"]
[3037,"Social Worker, Psychiatric Senior"]
[3019,"Social Worker, Senior Medical"]
[3902,"Social Worker, Team Leader"]
[3614,"Social Work Practitioner, Senior"]
[337,"Special Care Unit Manager, Assistant"]
[2465,"Specialist Co-ordinator, Nursing"]
[1629,"Specialist Registrar, Anaesthesia"]
[1630,"Specialist Registrar, Emergency Medicine"]
[1631,"Specialist Registrar, Medicine"]
[1632,"Specialist Registrar, Obstetrics & Gynaecology"]
[1633,"Specialist Registrar, Paediatrics"]
[1634,"Specialist Registrar, Pathology"]
[1636,"Specialist Registrar, Public Health Medicine"]
[1637,"Specialist Registrar, Radiology"]
[1638,"Specialist Registrar, Surgery"]
["336Y","Speech & Language Therapist"]
[3025,"Speech & Language Therapist, Clinical Specialist"]
[3468,"Speech & Language Therapist Manager"]
[3361,"Speech & Language Therapist Manager-in-charge III"]
[3379,"Speech & Language Therapist, Senior"]
[6504,"Speech & Language Therapy Assistant"]
[3380,"Speech & Language Therapy, Placement Facilitator"]
[3381,"Speech & Language Therapy, Practice Tutor"]
[2143,"Staff Midwife"]
[2142,"Staff Midwife (Adaptation Placement)"]
[2633,"Staff Midwife (awaiting-registration)"]
[2144,"Staff Midwife (dual qualified)"]
[2089,"Staff Midwife, Senior"]
[2090,"Staff Midwife, Senior (dual qualified)"]
[2860,"Staff Nurse (Adaptation Placement), Children's"]
[2861,"Staff Nurse (Adaptation Placement), General"]
[2862,"Staff Nurse (Adaptation Placement), Mental Health"]
[2136,"Staff Nurse (Children's)"]
[2634,"Staff Nurse, Children's (awaiting-registration)"]
[2384,"Staff Nurse, Children's (Nursing Bank)"]
[2301,"Staff Nurse, Community Mental Health"]
[2618,"Staff Nurse, Dual Qualified (Children's)"]
[2617,"Staff Nurse, Dual Qualified (General)"]
["272Y","Staff Nurse, Dual Qualified (Intellectual Disability)"]
[2606,"Staff Nurse, Dual Qualified (Mental Health)"]
[2135,"Staff Nurse - General"]
[2635,"Staff Nurse, General (awaiting-registration)"]
["202X","Staff Nurse General (Community)"]
["213T","Staff Nurse - Intellectual Disability"]
[2636,"Staff Nurse, Intellectual Disability (awaiting-registration)"]
[2674,"Staff Nurse, Mental Health"]
[2382,"Staff Nurse, Mental Health (Nursing Bank)"]
[2380,"Staff Nurse (Nursing Bank)"]
[2637,"Staff Nurse, Psychiatric (awaiting-registration)"]
["219X","Staff Nurse, Senior (Children's)"]
[2385,"Staff Nurse Senior, Children's (Nursing Bank)"]
[2181,"Staff Nurse, Senior (Dual Qualified)"]
[2183,"Staff Nurse, Senior (Dual Qualified Children's)"]
[2182,"Staff Nurse, Senior (Dual Qualified Intellectual Disability)"]
[2165,"Staff Nurse, Senior (Dual-Qualified Mental Health)"]
[2173,"Staff Nurse, Senior (General)"]
[2105,"Staff Nurse, Senior (Intellectual Disability)"]
[2157,"Staff Nurse, Senior (Mental Health)"]
[2383,"Staff Nurse Senior, Mental Health (Nursing Bank)"]
[2381,"Staff Nurse, Senior (Nursing Bank)"]
[4238,"Storeperson"]
[4297,"Stores Porter/Assistant/Attendant"]
[2933,"Student Children's & General Nursing Intern (pre-registration)"]
[2931,"Student General Nursing Intern (pre-registration)"]
[2932,"Student Intellectual Disability Nursing Intern (pre-registration"]
[2209,"Student Midwifery Intern (pre-registration)"]
[2208,"Student Midwifery (post registration)"]
[2210,"Student Midwifery (post registration)/ Enhanced"]
[2062,"Student Nurse Children's Nursing (post registration)"]
[2211,"Student Nurse Children's Nursing (post registration) / Enhanced"]
[2930,"Student Psychiatric Nursing Intern (pre-registration)"]
[2934,"Student Psychiatric Nursing (post-registration)"]
[2212,"Student Psychiatric Nursing (post-registration) / Enhanced"]
[2836,"Student Public Health Nursing (post registration)"]
[6466,"Supervisor Welfare Home, Assistant"]
[884,"Supplies Officer Grade A"]
[892,"Supplies Officer Grade B"]
[906,"Supplies Officer Grade C"]
[914,"Supplies Officer Grade D"]
[4495,"Support Services Unclassified"]
[3956,"Teacher"]
[6014,"Team Leader, Support Services"]
[6519,"Team Manager EIS"]
[404,"Technical Services Manager"]
["546Y","Technical Services Officer"]
["555X","Technical Services Officer, Assistant"]
["546T","Technical Services Officer, Chief Asst."]
["555T","Technical Services Officer, Senior Asst."]
["071X","Telephonist"]
[728,"Telephonist, Night"]
[396,"Telephonist, Supervisor"]
[739,"Telephonist, Supervisor, Assistant"]
[6013,"Theatre Operative"]
[5363,"Theatre Technician/Porter"]
[3958,"Therapist"]
[4372,"Transport Officer"]
[3077,"Vascular Physiologist"]
[3255,"Vascular Physiologist, Chief I"]
[3054,"Vascular Physiologist, Chief II"]
["322Y","Vascular Physiologist, Senior"]
[6026,"Vocational Officer"]
["104X","Vocational Trainee in Dentistry"]
["496T","Ward Clerk"]
[6439,"Welfare Home, Supervisor"]
[345,"Work Placement (Management Admin)"]
[6510,"Work Placement (OP&CC)"]
[4327,"Work Placement (Support Services)"]
[6024,"Workshop Manager"]
[6425,"Workshop Supervisor/ Instructor"]
[6402,"Workshop Supervisor/Instructor, Senior"]
[2210,"Student Midwifery (post registration)/ Enhanced"]
[2211,"Student Nurse Children's Nursing (post registration) / Enhanced"]
[2212,"Student Psychiatric Nursing (post-registration) / Enhanced"]
[1310,"Community Healthcare Network GP Lead"]
[6017,"Endoscopy Operative (Band 1)"]
[6018,"Endoscopy Operative (Band 2)"]
[6012,"Health Care Assistant (Band 1)/(specific sites only)"]
[5000,"Laboratory Porter"]
[5003,"Pharmacy Aide-Attendant"]
[5001,"Pharmacy Porter"]
[6013,"Theatre Operative"]
[3410,"National Clinical Laboratory Director"]
[1150,"Consultant Medical Ophthalmologist"]
[2280,"Enhanced Midwife"]
[2286,"Enhanced Midwife, Senior"]
[2281,"Enhanced Nurse (Children's)"]
[2282,"Enhanced Nurse (Community/Primary Care)"]
[2283,"Enhanced Nurse (General)"]
[2284,"Enhanced Nurse (Intellectual Disability)"]
[2285,"Enhanced Nurse (Mental Health)"]
[2287,"Enhanced Nurse, Senior (Children's)"]
[2288,"Enhanced Nurse, Senior (Community/Primary Care)"]
[2289,"Enhanced Nurse, Senior (General)"]
[2290,"Enhanced Nurse, Senior (Intellectual Disability)"]
[2293,"Enhanced Nurse, Senior (Mental Health)"]
[6011,"Community Healthcare Network Manager"]
[6002,"Community Swabber (COVID 19)"]
[6077,"Health Care Assistant (Student Nurse/Midwife COVID-19)"]
[3879,"Medical Scientist, Undergraduate"]
[2940,"Student Children's & General Nursing Intern (COVID-19 HCA)"]
[2939,"Student General Nursing Intern  (COVID-19 HCA)"]
[2943,"Student Intellectual Disability Nursing Intern (COVID-19 HCA)"]
[2941,"Student Midwifery Intern (COVID-19 HCA)"]
[2942,"Student Psychiatric Nursing Intern (COVID-19 HCA)"]
[6003,"Testing Centre Co-Ordinator (COVID 19)"]
[6004,"Testing Centre Deputy Co-Ordinator (COVID 19)"]
[1000,"Area Director, Public Health"]
[2004,"Director of Midwifery, NWIHP"]
[3102,"Director of Services, Mayo Community Living"]
[3880,"Medical Scientist, Trainee"]
[1001,"National Director, Public Health"]
[3068,"Vaccinator - COVID 19 Vaccination Programme"]

{"sheet":"LISTS","index":5,"n_rows":116,"n_cols":30,"rows_kept":116,"cut":false,"hidden":true,"merged":[]}
["CHOHG","CHOHGLOOKUP","Location","Childrens Health Ireland","CHO 1","CHO 2","CHO 3","CHO 4","CHO 5","CHO 6","CHO 7","CHO 8","CHO 9","Corporate","Dublin Midlands Hospital Group","Health & Wellbeing","Ireland East Hospital Group","National Ambulance Service","other Acute Services","other Community Services","RCSI Hospitals Group","Saolta University Hospital Care","South/South West Hospital Group","University of Limerick Hospital Group",null,null,null,"CHO/HG",null,"Change Requests"]
["Children's Health Ireland","CHI","Ambulance Services","CHI at Connolly","Cavan/ Monaghan","Galway","Clare","Cork North","Carlow/ Kilkenny","Dublin South-East","Dublin South City","Laois /Offaly","Dublin North","Cancer Control Service","Coombe Women & Infants University","Health & Wellbeing, National","Cappagh National Orthopaedic","Ambulance Services","Other","Dublin South-West","Beaumont","Galway University","Bantry General","Croom Orthopaedic",null,null,null,"Children's Health Ireland",null,"Location Change"]
["CHO 1","CHO1","Bantry General","CHI at Crumlin","Donegal","Mayo","Limerick","Cork North Lee","Tipperary, South","Dun Laoghaire","Dublin South-West","Longford/ Westmeath","Dublin North Central","CEO's Office","Hospital Group HQ","Health Intelligence","Hospital Group HQ",null,null,"Other","Cavan General","Hospital Group HQ","Cork University","Ennis",null,null,null,null,null,"Location & WTE Change"]
["CHO 2","CHO2","Beaumont","CHI at Tallaght","Sligo/ Leitrim","Roscommon","Tipperary, North/ Limerick, East","Cork South Lee","Waterford","Wicklow","Dublin West","Louth","Dublin North-West","Clinical Design & Innovation","MRH Portlaoise","Health Promotion & Improvement","IEHG Bank",null,null,null,"Connolly","Letterkenny University","Hospital Group HQ","Hospital Group HQ",null,null,null,null,null,"Location & Grade Change"]
["CHO 3","CHO3","Cancer Control Service","CHI at Temple Street","Other","Other",null,"Cork West","Wexford","Other","Kildare/ West Wicklow","Meath","Other","Communications","MRH Tullamore","Planning & Performance (HWB)","Mater Misericordiae University",null,null,null,"Hospital Group HQ","Mayo University","Lourdes Orthopaedic Kilcreene","Nenagh",null,null,null,null,null,"Location, WTE & Grade Change"]
["CHO 4","CHO4","Cappagh National Orthopaedic","CHI Corporate",null,null,null,"Kerry",null,null,"Other","Other",null,"Compliance","Naas General","Public Health","MRH Mullingar",null,null,null,"Louth County","Portiuncula University","Mallow General","St. John's Limerick",null,null,null,null,null,"WTE Change"]
["CHO 5","CHO5","Carlow/ Kilkenny","CHI Programme",null,null,null,"Other",null,null,null,null,null,"Emergency Management","St. James's","Public Laboratory","National Maternity",null,null,null,"Monaghan","Roscommon University","Mercy University","UH Limerick",null,null,null,null,null,"WTE & Grade Change"]
["CHO 6","CHO6","Cavan General",null,null,null,null,null,null,null,null,null,null,"Environmental Health","St. Luke's Rathgar",null,"National Rehabilitation",null,null,null,"Our Lady of Lourdes","Sligo University","South Infirmary Victoria University","UMH Limerick",null,null,null,null,null,"Grade Change"]
["CHO 7","CHO7","Cavan/ Monaghan",null,null,null,null,null,null,null,null,null,null,"Finance","Tallaght University",null,"Our Lady's Navan",null,null,null,"Rotunda",null,"South Tipperary General",null,null,null,null,null,null,"Initiative Change"]
["CHO 8","CHO8","CEO's Office",null,null,null,null,null,null,null,null,null,null,"Human Resources",null,null,"Royal Victoria Eye & Ear",null,null,null,null,null,"UH Kerry",null,null,null,null,null,null,"Other"]
["CHO 9","CHO9","CHI at Connolly",null,null,null,null,null,null,null,null,null,null,"ICT",null,null,"St Luke's General Kilkenny",null,null,null,null,null,"UH Waterford"]
["Corporate","Corporate","CHI at Crumlin",null,null,null,null,null,null,null,null,null,null,"Internal Audit",null,null,"St. Columcille's"]
["Dublin Midlands Hospital Group","DublinMidlands","CHI at Tallaght",null,null,null,null,null,null,null,null,null,null,"Legal Services",null,null,"St. Michael's",null,null,null,null,null,null,null,null,null,null,null,null,"WTE Change"]
["Health & Wellbeing","Health","CHI at Temple Street",null,null,null,null,null,null,null,null,null,null,"National Screening Service",null,null,"St. Vincent's University",null,null,null,null,null,null,null,null,null,null,null,null,"Grade Change"]
["Ireland East Hospital Group","IrelandEast","CHI Corporate",null,null,null,null,null,null,null,null,null,null,"NDTP",null,null,"Wexford General"]
["National Ambulance Service","Ambulance","CHI Programme",null,null,null,null,null,null,null,null,null,null,"Other Corporate Functions"]
["other Acute Services","otherAcute","Clare",null,null,null,null,null,null,null,null,null,null,"PCRS"]
["other Community Services","otherComm","Clinical Design & Innovation",null,null,null,null,null,null,null,null,null,null,"Quality Assurance & Verification"]
["RCSI Hospitals Group","RCSI","Communications",null,null,null,null,null,null,null,null,null,null,"Quality Improvement"]
["Saolta University Hospital Care","Saolta","Compliance",null,null,null,null,null,null,null,null,null,null,"Test & Trace"]
["South/South West Hospital Group","SouthWest","Connolly",null,null,null,null,null,null,null,null,null,null,"Tobacco Control"]
["University of Limerick Hospital Group","Limerick","Coombe Women & Infants University"]
[null,null,"Cork North"]
[null,null,"Cork North Lee"]
[null,null,"Cork South Lee"]
[null,null,"Cork University"]
[null,null,"Cork West"]
[null,null,"Croom Orthopaedic"]
[null,null,"Donegal"]
[null,null,"Dublin North"]
[null,null,"Dublin North Central"]
[null,null,"Dublin North-West"]
[null,null,"Dublin South City"]
[null,null,"Dublin South-East"]
[null,null,"Dublin South-West"]
[null,null,"Dublin West"]
[null,null,"Dun Laoghaire"]
[null,null,"Emergency Management"]
[null,null,"Ennis"]
[null,null,"Environmental Health"]
[null,null,"Finance"]
[null,null,"Galway"]
[null,null,"Galway University"]
[null,null,"Health & Wellbeing, National"]
[null,null,"Health Intelligence"]
[null,null,"Health Promotion & Improvement"]
[null,null,"Hospital Group HQ"]
[null,null,"Human Resources"]
[null,null,"ICT"]
[null,null,"IEHG Bank"]
[null,null,"Internal Audit"]
[null,null,"Kerry"]
[null,null,"Kildare/ West Wicklow"]
[null,null,"Laois /Offaly"]
[null,null,"Legal Services"]
[null,null,"Letterkenny University"]
[null,null,"Limerick"]
[null,null,"Longford/ Westmeath"]
[null,null,"Lourdes Orthopaedic Kilcreene"]
[null,null,"Louth"]
[null,null,"Louth County"]
[null,null,"Mallow General"]
[null,null,"Mater Misericordiae University"]
[null,null,"Mayo"]
[null,null,"Mayo University"]
[null,null,"Meath"]
[null,null,"Mercy University"]
[null,null,"Monaghan"]
[null,null,"MRH Mullingar"]
[null,null,"MRH Portlaoise"]
[null,null,"MRH Tullamore"]
[null,null,"Naas General"]
[null,null,"National Maternity"]
[null,null,"National Rehabilitation"]
[null,null,"National Screening Service"]
[null,null,"NDTP"]
[null,null,"Nenagh"]
[null,null,"Other"]
[null,null,"Other Corporate Functions"]
[null,null,"Our Lady of Lourdes"]
[null,null,"Our Lady's Navan"]
[null,null,"PCRS"]
[null,null,"Planning & Performance (HWB)"]
[null,null,"Portiuncula University"]
[null,null,"Public Health"]
[null,null,"Public Laboratory"]
[null,null,"Quality Assurance & Verification"]
[null,null,"Quality Improvement"]
[null,null,"Roscommon"]
[null,null,"Roscommon University"]
[null,null,"Rotunda"]
[null,null,"Royal Victoria Eye & Ear"]
[null,null,"Sligo University"]
[null,null,"Sligo/ Leitrim"]
[null,null,"South Infirmary Victoria University"]
[null,null,"South Tipperary General"]
[null,null,"St Luke's General Kilkenny"]
[null,null,"St. Columcille's"]
[null,null,"St. James's"]
[null,null,"St. John's Limerick"]
[null,null,"St. Luke's Rathgar"]
[null,null,"St. Michael's"]
[null,null,"St. Vincent's University"]
[null,null,"Tallaght University"]
[null,null,"Test & Trace"]
[null,null,"Tipperary, North/ Limerick, East"]
[null,null,"Tipperary, South"]
[null,null,"Tobacco Control"]
[null,null,"UH Kerry"]
[null,null,"UH Limerick"]
[null,null,"UH Waterford"]
[null,null,"UMH Limerick"]
[null,null,"Waterford"]
[null,null,"Wexford"]
[null,null,"Wexford General"]
[null,null,"Wicklow"]

{"sheet":"Care Lists","index":6,"n_rows":22,"n_cols":15,"rows_kept":22,"cut":false,"hidden":true,"merged":[]}
["CHOHG","CHOHGLOOKUP",null,null,"Division",null,"Acute",null,"CHO",null,"Corporate",null,"Amb",null,"Hea"]
["Children's Health Ireland","AcuteCare",null,null,"Acute Services",null,"Acute Services",null,"CHO Operations",null,"Corporate",null,"National Ambulance Services",null,"Health & Wellbeing"]
["CHO 1","CHOCare",null,null,"CHO Operations",null,null,null,"Community Health & Wellbeing"]
["CHO 2","CHOCare",null,null,"Community Health & Wellbeing",null,null,null,"Disabilities"]
["CHO 3","CHOCare",null,null,"Corporate",null,null,null,"Mental Health"]
["CHO 4","CHOCare",null,null,"Disabilities",null,null,null,"Older Persons"]
["CHO 5","CHOCare",null,null,"Health & Wellbeing",null,null,null,"Primary Care"]
["CHO 6","CHOCare",null,null,"Mental Health"]
["CHO 7","CHOCare",null,null,"National Ambulance Services"]
["CHO 8","CHOCare",null,null,"Older Persons"]
["CHO 9","CHOCare",null,null,"Primary Care"]
["Corporate","CorporateCare"]
["Dublin Midlands Hospital Group","AcuteCare"]
["Health & Wellbeing","Hea"]
["Ireland East Hospital Group","AcuteCare"]
["National Ambulance Service","Amb"]
["other Acute Services","AcuteCare"]
["other Community Services","CHOCare"]
["RCSI Hospitals Group","AcuteCare"]
["Saolta University Hospital Care","AcuteCare"]
["South/South West Hospital Group","AcuteCare"]
["University of Limerick Hospital Group","AcuteCare"]

{"sheet":"Service Lists","index":7,"n_rows":11,"n_cols":13,"rows_kept":11,"cut":false,"hidden":true,"merged":[]}
["Servies","Matd",null,"Communi",null,"Acut",null,"Cp"]
["Acute Services","As",null,"CHO 1",null,"Children's Health Ireland",null,"Corporate",null,null,"Column1",null,"Column1"]
["Community","Cm",null,"CHO 2",null,"Dublin Midlands Hospital Group",null,"Health & Wellbeing",null,null,1,null,4]
["HWB, Corporate & National","Hw",null,"CHO 3",null,"Ireland East Hospital Group",null,null,null,null,2,null,5]
[null,null,null,"CHO 4",null,"National Ambulance Service",null,null,null,null,3,null,6]
[null,null,null,"CHO 5",null,"RCSI Hospitals Group"]
[null,null,null,"CHO 6",null,"Saolta University Hospital Care"]
[null,null,null,"CHO 7",null,"South/South West Hospital Group"]
[null,null,null,"CHO 8",null,"University of Limerick Hospital Group"]
[null,null,null,"CHO 9",null,"other Acute Services"]
[null,null,null,"other Community Services"]